Workbook

Sheet PHE
B7: Healthcare Variation and Value
B9: National Clinical Procedures Variation Benchmark Tool
B11: Website: | D11: https://fingertips.phe.org.uk/profile/atlas-of-variation
B12: Email: | D12: healthcare.variation@phe.gov.uk
B15: Date generated: | D15: 2017-12-01

Sheet About this data
B2: National Clinical Procedures Variation Benchmark Tool
B3: 2 years of Hospital Episode Statistics analysis
B4: 2017-12-01
B7: This tool is based on the analysis of Hospital Episode Statistics (HES: 2014/15 and 2015/16). The areas of analysis are at CCG level. Benchmarks are England, and 10 similar CCGs are given for comparison. All significance testing is based on a point comparison; e.g. CCG confidence intervals compared to the England value. To view charts and tables with directly standardised rates (DSRs)- including confidence interval (CI) limits- you can choose from a drop down list of procedures. These procedures were selected for high volume, significant cost implications and/or because they are known to be subject to variation between commissioners. Procedure codes are based on the Save to Invest report, London Health Observatory (2007). The complete list of procedures and codes can be found in the tab 'Procedures Codes List'. Please note 'Other hernia procedures' have been removed from the tool.
B8: We are looking for feedback on these codes for future iterations. Please email us if you would like to discuss the future development of this tool.
B10: healthcare.variation@phe.gov.uk
A12: HES analysis
B14: Geography: | C14: Clinical Commissioning Groups (CCGs), by CCG of responsibility
B15: Period: | C15: Financial Years 2014/15 and 2015/16
B16: Count: | C16: Finished Consultant Episodes
C17: by: Year of admission, quinary age band to 90+ (startage), sex, geography
B18: HES Conditions: | C18: CLASSPAT = 1 or 2 (ordinary admissions and day cases)
C19: EPISTAT = 3 (finished episodes)
C20: ADMIMETH = 11 , 12 or 13 (elective admissions)
C21: ADMINCAT = 01 (NHS patients)
C22: AGE is valid (not blank or -1)
C23: SUSSPELLID is valid (not blank or -1)
C24: Finished Consultant Episodes (FCE) = 1
C25: SEX = 1 or 2 (Male or Female)
D26: Note: Only Female used for the following procedures:
D27: Female genital prolapse/ stress incontinence
D28: Hysterectomy for menorrhagia
D29: Dilation and curettage
B30: Source: | C30: Hospital Episode Statistics (HES) Copyright © 2017, Re‐used with the permission of NHS Digital. All rights reserved.
B31: Disclosure: | C31: To protect patient confidentiality, small numbers (<10) are suppressed and annotated as "SUP". Where it was still possible to identify figures from the total, additional figures have been replaced with "SUP".
A32: Populations and DSR calculations
B34: CCG: | C34: NHS Digital CCG registered population Oct 2014 and 2014/15 data
C35: NHS Digital CCG registered population Oct 2015 and 2015/16 data
B36: DSRs: | C36: All DSRs are calculated using the European standard (2013) and are directly age standardised per 100,000; CIs were calculated using Byar's method.
C37: Where there is a count of less than 10 for count of procedures, the DSR and CIs have not been calculated as there are too few cases to make the DSR robust
A38: Any feedback regarding this tool would be much appreciated. If you find any issues or would like to discuss future developments of this output please send an email to:
A39: healthcare.variation@phe.gov.uk

Sheet Tool
B8: National Clinical Procedures Variation Benchmark Tool | T8: Max/Min/Fold diff
U9: 2014/15 | V9: 2015/16
T10: Max | U10: =MAX(G18:G28) -> 32.89818356 | V10: =MAX(K18:K28) -> 38.66240686
B11: Select Procedure: | E11: Aesthetic surgery (breast) | T11: Min | U11: =MIN(G18:G28) -> 10.27673113 | V11: =MIN(K18:K28) -> 7.987378534
B12: Select CCG: | E12: NHS Airedale, Wharfedale & Craven | T12: Fold diff. | U12: =U10/U11 -> 3.201230347 | V12: =V10/V11 -> 4.840437534
B14: Benchmarked against 10 similar CCGs | X14: Significance against selected CCG point value | AA14: Compared to 2014/15
O15: Error bars
F16: 2014/15 | J16: 2015/16 | O16: 2014/15 | Q16: 2015/16 | U16: Significance vs. England | X16: ="Significance vs. "&E12 -> Significance vs. NHS Airedale, Wharfedale & Craven
F17: Count | G17: DSR | H17: LCI | I17: UCI | J17: Count | K17: DSR | L17: LCI | M17: UCI | O17: LEB | P17: UEB | Q17: LEB | R17: UEB | U17: 2014/15 | V17: 2015/16 | X17: 2014/15 | Y17: 2015/16
B18: =E12 -> NHS Airedale, Wharfedale & Craven | F18: =VLOOKUP($B18&$E$11&$F$16,'Raw data'!$D$3:$L$12602,3,FALSE) -> 52 | G18: =VLOOKUP($B18&$E$11&$F$16,'Raw data'!$D$3:$L$12602,5,FALSE) -> 32.89818356 | H18: =VLOOKUP($B18&$E$11&$F$16,'Raw data'!$D$3:$L$12602,6,FALSE) -> 24.53912664 | I18: =VLOOKUP($B18&$E$11&$F$16,'Raw data'!$D$3:$L$12602,7,FALSE) -> 43.17948638 | J18: =VLOOKUP($B18&$E$11&$J$16,'Raw data'!$D$3:$L$12602,3,FALSE) -> 61 | K18: =VLOOKUP($B18&$E$11&$J$16,'Raw data'!$D$3:$L$12602,5,FALSE) -> 38.66240686 | L18: =VLOOKUP($B18&$E$11&$J$16,'Raw data'!$D$3:$L$12602,6,FALSE) -> 29.55076771 | M18: =VLOOKUP($B18&$E$11&$J$16,'Raw data'!$D$3:$L$12602,7,FALSE) -> 49.69120955 | O18: =VLOOKUP($B18&$E$11&$F$16,'Raw data'!$D$3:$L$12602,8,FALSE) -> 8.35905692 | P18: =VLOOKUP($B18&$E$11&$F$16,'Raw data'!$D$3:$L$12602,9,FALSE) -> 10.28130283 | Q18: =VLOOKUP($B18&$E$11&$J$16,'Raw data'!$D$3:$L$12602,8,FALSE) -> 9.111639145 | R18: =VLOOKUP($B18&$E$11&$J$16,'Raw data'!$D$3:$L$12602,9,FALSE) -> 11.02880269 | T18: =B18 -> NHS Airedale, Wharfedale & Craven | U18: =IF(OR(H18="SUP",I18="SUP"),"N/A",IF($G$29<H18,"significantly higher",IF(AND($G$29>=H18,$G$29<=I18),"not significantly different",IF($G$29>I18,"significantly lower","Error")))) -> not significantly different | V18: =IF(OR(L18="SUP",M18="SUP"),"N/A",IF($K$29<L18,"significantly higher",IF(AND($K$29>=L18,$K$29<=M18),"not significantly different",IF($K$29>M18,"significantly lower","Error")))) -> significantly higher | AA18: =IF(K18=G18,"the same as",IF(K18>G18,"higher than",IF(K18<G18,"lower than","error"))) -> higher than
B19: =VLOOKUP($E$12,'LUT CCG_Similar10_209 CCGs'!$B$6:$W$214,13,FALSE) -> NHS Calderdale | F19: =VLOOKUP($B19&$E$11&$F$16,'Raw data'!$D$3:$L$12602,3,FALSE) -> 63 | G19: =VLOOKUP($B19&$E$11&$F$16,'Raw data'!$D$3:$L$12602,5,FALSE) -> 28.61533063 | H19: =VLOOKUP($B19&$E$11&$F$16,'Raw data'!$D$3:$L$12602,6,FALSE) -> 21.96544456 | I19: =VLOOKUP($B19&$E$11&$F$16,'Raw data'!$D$3:$L$12602,7,FALSE) -> 36.63962793 | J19: =VLOOKUP($B19&$E$11&$J$16,'Raw data'!$D$3:$L$12602,3,FALSE) -> 64 | K19: =VLOOKUP($B19&$E$11&$J$16,'Raw data'!$D$3:$L$12602,5,FALSE) -> 29.22822361 | L19: =VLOOKUP($B19&$E$11&$J$16,'Raw data'!$D$3:$L$12602,6,FALSE) -> 22.48460145 | M19: =VLOOKUP($B19&$E$11&$J$16,'Raw data'!$D$3:$L$12602,7,FALSE) -> 37.35354047 | O19: =VLOOKUP($B19&$E$11&$F$16,'Raw data'!$D$3:$L$12602,8,FALSE) -> 6.649886062 | P19: =VLOOKUP($B19&$E$11&$F$16,'Raw data'!$D$3:$L$12602,9,FALSE) -> 8.024297299 | Q19: =VLOOKUP($B19&$E$11&$J$16,'Raw data'!$D$3:$L$12602,8,FALSE) -> 6.743622165 | R19: =VLOOKUP($B19&$E$11&$J$16,'Raw data'!$D$3:$L$12602,9,FALSE) -> 8.12531686 | T19: =B19 -> NHS Calderdale | U19: =IF(OR(H19="SUP",I19="SUP"),"N/A",IF($G$29<H19,"significantly higher",IF(AND($G$29>=H19,$G$29<=I19),"not significantly different",IF($G$29>I19,"significantly lower","Error")))) -> not significantly different | V19: =IF(OR(L19="SUP",M19="SUP"),"N/A",IF($K$29<L19,"significantly higher",IF(AND($K$29>=L19,$K$29<=M19),"not significantly different",IF($K$29>M19,"significantly lower","Error")))) -> not significantly different | X19: =IF(OR(H19="SUP",I19="SUP",$G$18="SUP"),"N/A",IF($G$18<H19,"significantly higher",IF(AND($G$18>=H19,$G$18<=I19),"not significantly different",IF($G$18>I19,"significantly lower","Error")))) -> not significantly different | Y19: =IF(OR(L19="SUP",M19="SUP",$K$18="SUP"),"N/A",IF($K$18<L19,"significantly higher",IF(AND($K$18>=L19,$K$18<=M19),"not significantly different",IF($K$18>M19,"significantly lower","Error")))) -> significantly lower
B20: =VLOOKUP($E$12,'LUT CCG_Similar10_209 CCGs'!$B$6:$W$214,14,FALSE) -> NHS South Kent Coast | F20: =VLOOKUP($B20&$E$11&$F$16,'Raw data'!$D$3:$L$12602,3,FALSE) -> 28 | G20: =VLOOKUP($B20&$E$11&$F$16,'Raw data'!$D$3:$L$12602,5,FALSE) -> 13.96662086 | H20: =VLOOKUP($B20&$E$11&$F$16,'Raw data'!$D$3:$L$12602,6,FALSE) -> 9.245029456 | I20: =VLOOKUP($B20&$E$11&$F$16,'Raw data'!$D$3:$L$12602,7,FALSE) -> 20.23302111 | J20: =VLOOKUP($B20&$E$11&$J$16,'Raw data'!$D$3:$L$12602,3,FALSE) -> 14 | K20: =VLOOKUP($B20&$E$11&$J$16,'Raw data'!$D$3:$L$12602,5,FALSE) -> 7.987378534 | L20: =VLOOKUP($B20&$E$11&$J$16,'Raw data'!$D$3:$L$12602,6,FALSE) -> 4.334203751 | M20: =VLOOKUP($B20&$E$11&$J$16,'Raw data'!$D$3:$L$12602,7,FALSE) -> 13.45016828 | O20: =VLOOKUP($B20&$E$11&$F$16,'Raw data'!$D$3:$L$12602,8,FALSE) -> 4.721591407 | P20: =VLOOKUP($B20&$E$11&$F$16,'Raw data'!$D$3:$L$12602,9,FALSE) -> 6.266400251 | Q20: =VLOOKUP($B20&$E$11&$J$16,'Raw data'!$D$3:$L$12602,8,FALSE) -> 3.653174783 | R20: =VLOOKUP($B20&$E$11&$J$16,'Raw data'!$D$3:$L$12602,9,FALSE) -> 5.462789742 | T20: NHS South Kent Coast | U20: =IF(OR(H20="SUP",I20="SUP"),"N/A",IF($G$29<H20,"significantly higher",IF(AND($G$29>=H20,$G$29<=I20),"not significantly different",IF($G$29>I20,"significantly lower","Error")))) -> significantly lower | V20: significantly lower | X20: =IF(OR(H20="SUP",I20="SUP",$G$18="SUP"),"N/A",IF($G$18<H20,"significantly higher",IF(AND($G$18>=H20,$G$18<=I20),"not significantly different",IF($G$18>I20,"significantly lower","Error")))) -> significantly lower | Y20: =IF(OR(L20="SUP",M20="SUP",$K$18="SUP"),"N/A",IF($K$18<L20,"significantly higher",IF(AND($K$18>=L20,$K$18<=M20),"not significantly different",IF($K$18>M20,"significantly lower","Error")))) -> significantly lower
B21: =VLOOKUP($E$12,'LUT CCG_Similar10_209 CCGs'!$B$6:$W$214,15,FALSE) -> NHS East Staffordshire | F21: =VLOOKUP($B21&$E$11&$F$16,'Raw data'!$D$3:$L$12602,3,FALSE) -> 28 | G21: =VLOOKUP($B21&$E$11&$F$16,'Raw data'!$D$3:$L$12602,5,FALSE) -> 20.03591315 | H21: =VLOOKUP($B21&$E$11&$F$16,'Raw data'!$D$3:$L$12602,6,FALSE) -> 13.29361091 | I21: =VLOOKUP($B21&$E$11&$F$16,'Raw data'!$D$3:$L$12602,7,FALSE) -> 28.9841598 | J21: =VLOOKUP($B21&$E$11&$J$16,'Raw data'!$D$3:$L$12602,3,FALSE) -> 26 | K21: =VLOOKUP($B21&$E$11&$J$16,'Raw data'!$D$3:$L$12602,5,FALSE) -> 19.13370251 | L21: =VLOOKUP($B21&$E$11&$J$16,'Raw data'!$D$3:$L$12602,6,FALSE) -> 12.47971642 | M21: =VLOOKUP($B21&$E$11&$J$16,'Raw data'!$D$3:$L$12602,7,FALSE) -> 28.0608698 | O21: =VLOOKUP($B21&$E$11&$F$16,'Raw data'!$D$3:$L$12602,8,FALSE) -> 6.742302243 | P21: =VLOOKUP($B21&$E$11&$F$16,'Raw data'!$D$3:$L$12602,9,FALSE) -> 8.948246644 | Q21: =VLOOKUP($B21&$E$11&$J$16,'Raw data'!$D$3:$L$12602,8,FALSE) -> 6.653986086 | R21: =VLOOKUP($B21&$E$11&$J$16,'Raw data'!$D$3:$L$12602,9,FALSE) -> 8.927167289 | T21: NHS East Staffordshire | U21: =IF(OR(H21="SUP",I21="SUP"),"N/A",IF($G$29<H21,"significantly higher",IF(AND($G$29>=H21,$G$29<=I21),"not significantly different",IF($G$29>I21,"significantly lower","Error")))) -> not significantly different | V21: not significantly different | X21: =IF(OR(H21="SUP",I21="SUP",$G$18="SUP"),"N/A",IF($G$18<H21,"significantly higher",IF(AND($G$18>=H21,$G$18<=I21),"not significantly different",IF($G$18>I21,"significantly lower","Error")))) -> significantly lower | Y21: significantly lower
B22: =VLOOKUP($E$12,'LUT CCG_Similar10_209 CCGs'!$B$6:$W$214,16,FALSE) -> NHS Ashford | F22: =VLOOKUP($B22&$E$11&$F$16,'Raw data'!$D$3:$L$12602,3,FALSE) -> 18 | G22: =VLOOKUP($B22&$E$11&$F$16,'Raw data'!$D$3:$L$12602,5,FALSE) -> 14.76868668 | H22: =VLOOKUP($B22&$E$11&$F$16,'Raw data'!$D$3:$L$12602,6,FALSE) -> 8.729927162 | I22: =VLOOKUP($B22&$E$11&$F$16,'Raw data'!$D$3:$L$12602,7,FALSE) -> 23.37356969 | J22: =VLOOKUP($B22&$E$11&$J$16,'Raw data'!$D$3:$L$12602,3,FALSE) -> 25 | K22: =VLOOKUP($B22&$E$11&$J$16,'Raw data'!$D$3:$L$12602,5,FALSE) -> 20.24748305 | L22: =VLOOKUP($B22&$E$11&$J$16,'Raw data'!$D$3:$L$12602,6,FALSE) -> 13.07597967 | M22: =VLOOKUP($B22&$E$11&$J$16,'Raw data'!$D$3:$L$12602,7,FALSE) -> 29.92588444 | O22: =VLOOKUP($B22&$E$11&$F$16,'Raw data'!$D$3:$L$12602,8,FALSE) -> 6.03875952 | P22: =VLOOKUP($B22&$E$11&$F$16,'Raw data'!$D$3:$L$12602,9,FALSE) -> 8.604883007 | Q22: =VLOOKUP($B22&$E$11&$J$16,'Raw data'!$D$3:$L$12602,8,FALSE) -> 7.171503379 | R22: =VLOOKUP($B22&$E$11&$J$16,'Raw data'!$D$3:$L$12602,9,FALSE) -> 9.678401393 | T22: NHS Ashford | U22: significantly lower | V22: not significantly different | X22: =IF(OR(H22="SUP",I22="SUP",$G$18="SUP"),"N/A",IF($G$18<H22,"significantly higher",IF(AND($G$18>=H22,$G$18<=I22),"not significantly different",IF($G$18>I22,"significantly lower","Error")))) -> significantly lower | Y22: significantly lower
B23: =VLOOKUP($E$12,'LUT CCG_Similar10_209 CCGs'!$B$6:$W$214,17,FALSE) -> NHS Harrogate & Rural District | F23: =VLOOKUP($B23&$E$11&$F$16,'Raw data'!$D$3:$L$12602,3,FALSE) -> 37 | G23: =VLOOKUP($B23&$E$11&$F$16,'Raw data'!$D$3:$L$12602,5,FALSE) -> 22.09992066 | H23: =VLOOKUP($B23&$E$11&$F$16,'Raw data'!$D$3:$L$12602,6,FALSE) -> 15.51915685 | I23: =VLOOKUP($B23&$E$11&$F$16,'Raw data'!$D$3:$L$12602,7,FALSE) -> 30.51454497 | J23: =VLOOKUP($B23&$E$11&$J$16,'Raw data'!$D$3:$L$12602,3,FALSE) -> 52 | K23: =VLOOKUP($B23&$E$11&$J$16,'Raw data'!$D$3:$L$12602,5,FALSE) -> 30.13605921 | L23: =VLOOKUP($B23&$E$11&$J$16,'Raw data'!$D$3:$L$12602,6,FALSE) -> 22.46051883 | M23: =VLOOKUP($B23&$E$11&$J$16,'Raw data'!$D$3:$L$12602,7,FALSE) -> 39.57666428 | O23: =VLOOKUP($B23&$E$11&$F$16,'Raw data'!$D$3:$L$12602,8,FALSE) -> 6.580763813 | P23: =VLOOKUP($B23&$E$11&$F$16,'Raw data'!$D$3:$L$12602,9,FALSE) -> 8.414624307 | Q23: =VLOOKUP($B23&$E$11&$J$16,'Raw data'!$D$3:$L$12602,8,FALSE) -> 7.675540388 | R23: =VLOOKUP($B23&$E$11&$J$16,'Raw data'!$D$3:$L$12602,9,FALSE) -> 9.440605063 | T23: NHS Harrogate & Rural District | U23: not significantly different | V23: not significantly different | X23: =IF(OR(H23="SUP",I23="SUP",$G$18="SUP"),"N/A",IF($G$18<H23,"significantly higher",IF(AND($G$18>=H23,$G$18<=I23),"not significantly different",IF($G$18>I23,"significantly lower","Error")))) -> significantly lower | Y23: not significantly different
B24: =VLOOKUP($E$12,'LUT CCG_Similar10_209 CCGs'!$B$6:$W$214,18,FALSE) -> NHS West Essex | F24: =VLOOKUP($B24&$E$11&$F$16,'Raw data'!$D$3:$L$12602,3,FALSE) -> 30 | G24: =VLOOKUP($B24&$E$11&$F$16,'Raw data'!$D$3:$L$12602,5,FALSE) -> 10.27673113 | H24: =VLOOKUP($B24&$E$11&$F$16,'Raw data'!$D$3:$L$12602,6,FALSE) -> 6.916196055 | I24: =VLOOKUP($B24&$E$11&$F$16,'Raw data'!$D$3:$L$12602,7,FALSE) -> 14.693636 | J24: =VLOOKUP($B24&$E$11&$J$16,'Raw data'!$D$3:$L$12602,3,FALSE) -> 58 | K24: =VLOOKUP($B24&$E$11&$J$16,'Raw data'!$D$3:$L$12602,5,FALSE) -> 19.13287553 | L24: =VLOOKUP($B24&$E$11&$J$16,'Raw data'!$D$3:$L$12602,6,FALSE) -> 14.51561469 | M24: =VLOOKUP($B24&$E$11&$J$16,'Raw data'!$D$3:$L$12602,7,FALSE) -> 24.74922354 | O24: =VLOOKUP($B24&$E$11&$F$16,'Raw data'!$D$3:$L$12602,8,FALSE) -> 3.360535075 | P24: =VLOOKUP($B24&$E$11&$F$16,'Raw data'!$D$3:$L$12602,9,FALSE) -> 4.41690487 | Q24: =VLOOKUP($B24&$E$11&$J$16,'Raw data'!$D$3:$L$12602,8,FALSE) -> 4.617260831 | R24: =VLOOKUP($B24&$E$11&$J$16,'Raw data'!$D$3:$L$12602,9,FALSE) -> 5.616348018 | T24: NHS West Essex | U24: significantly lower | V24: significantly lower | X24: significantly lower | Y24: significantly lower
B25: =VLOOKUP($E$12,'LUT CCG_Similar10_209 CCGs'!$B$6:$W$214,19,FALSE) -> NHS South West Lincolnshire | F25: =VLOOKUP($B25&$E$11&$F$16,'Raw data'!$D$3:$L$12602,3,FALSE) -> 37 | G25: =VLOOKUP($B25&$E$11&$F$16,'Raw data'!$D$3:$L$12602,5,FALSE) -> 26.71749253 | H25: =VLOOKUP($B25&$E$11&$F$16,'Raw data'!$D$3:$L$12602,6,FALSE) -> 18.75697895 | I25: =VLOOKUP($B25&$E$11&$F$16,'Raw data'!$D$3:$L$12602,7,FALSE) -> 36.89636127 | J25: =VLOOKUP($B25&$E$11&$J$16,'Raw data'!$D$3:$L$12602,3,FALSE) -> 30 | K25: =VLOOKUP($B25&$E$11&$J$16,'Raw data'!$D$3:$L$12602,5,FALSE) -> 21.00381059 | L25: =VLOOKUP($B25&$E$11&$J$16,'Raw data'!$D$3:$L$12602,6,FALSE) -> 14.12181871 | M25: =VLOOKUP($B25&$E$11&$J$16,'Raw data'!$D$3:$L$12602,7,FALSE) -> 30.04912712 | O25: =VLOOKUP($B25&$E$11&$F$16,'Raw data'!$D$3:$L$12602,8,FALSE) -> 7.96051358 | P25: =VLOOKUP($B25&$E$11&$F$16,'Raw data'!$D$3:$L$12602,9,FALSE) -> 10.17886874 | Q25: =VLOOKUP($B25&$E$11&$J$16,'Raw data'!$D$3:$L$12602,8,FALSE) -> 6.881991882 | R25: =VLOOKUP($B25&$E$11&$J$16,'Raw data'!$D$3:$L$12602,9,FALSE) -> 9.045316528 | T25: NHS South West Lincolnshire | U25: =IF(OR(H25="SUP",I25="SUP"),"N/A",IF($G$29<H25,"significantly higher",IF(AND($G$29>=H25,$G$29<=I25),"not significantly different",IF($G$29>I25,"significantly lower","Error")))) -> not significantly different | V25: not significantly different | X25: =IF(OR(H25="SUP",I25="SUP",$G$18="SUP"),"N/A",IF($G$18<H25,"significantly higher",IF(AND($G$18>=H25,$G$18<=I25),"not significantly different",IF($G$18>I25,"significantly lower","Error")))) -> not significantly different | Y25: significantly lower
B26: =VLOOKUP($E$12,'LUT CCG_Similar10_209 CCGs'!$B$6:$W$214,20,FALSE) -> NHS Great Yarmouth & Waveney | F26: =VLOOKUP($B26&$E$11&$F$16,'Raw data'!$D$3:$L$12602,3,FALSE) -> 55 | G26: =VLOOKUP($B26&$E$11&$F$16,'Raw data'!$D$3:$L$12602,5,FALSE) -> 23.87063559 | H26: =VLOOKUP($B26&$E$11&$F$16,'Raw data'!$D$3:$L$12602,6,FALSE) -> 17.91899212 | I26: =VLOOKUP($B26&$E$11&$F$16,'Raw data'!$D$3:$L$12602,7,FALSE) -> 31.14873372 | J26: =VLOOKUP($B26&$E$11&$J$16,'Raw data'!$D$3:$L$12602,3,FALSE) -> 44 | K26: =VLOOKUP($B26&$E$11&$J$16,'Raw data'!$D$3:$L$12602,5,FALSE) -> 19.14617782 | L26: =VLOOKUP($B26&$E$11&$J$16,'Raw data'!$D$3:$L$12602,6,FALSE) -> 13.87994658 | M26: =VLOOKUP($B26&$E$11&$J$16,'Raw data'!$D$3:$L$12602,7,FALSE) -> 25.74255124 | O26: =VLOOKUP($B26&$E$11&$F$16,'Raw data'!$D$3:$L$12602,8,FALSE) -> 5.951643467 | P26: =VLOOKUP($B26&$E$11&$F$16,'Raw data'!$D$3:$L$12602,9,FALSE) -> 7.278098137 | Q26: =VLOOKUP($B26&$E$11&$J$16,'Raw data'!$D$3:$L$12602,8,FALSE) -> 5.266231238 | R26: =VLOOKUP($B26&$E$11&$J$16,'Raw data'!$D$3:$L$12602,9,FALSE) -> 6.596373422 | T26: NHS Great Yarmouth & Waveney | U26: not significantly different | V26: not significantly different | X26: significantly lower | Y26: significantly lower
B27: =VLOOKUP($E$12,'LUT CCG_Similar10_209 CCGs'!$B$6:$W$214,21,FALSE) -> NHS South Worcestershire | F27: =VLOOKUP($B27&$E$11&$F$16,'Raw data'!$D$3:$L$12602,3,FALSE) -> 79 | G27: =VLOOKUP($B27&$E$11&$F$16,'Raw data'!$D$3:$L$12602,5,FALSE) -> 25.9906763 | H27: =VLOOKUP($B27&$E$11&$F$16,'Raw data'!$D$3:$L$12602,6,FALSE) -> 20.55094308 | I27: =VLOOKUP($B27&$E$11&$F$16,'Raw data'!$D$3:$L$12602,7,FALSE) -> 32.42302385 | J27: =VLOOKUP($B27&$E$11&$J$16,'Raw data'!$D$3:$L$12602,3,FALSE) -> 87 | K27: =VLOOKUP($B27&$E$11&$J$16,'Raw data'!$D$3:$L$12602,5,FALSE) -> 28.14938714 | L27: =VLOOKUP($B27&$E$11&$J$16,'Raw data'!$D$3:$L$12602,6,FALSE) -> 22.51925465 | M27: =VLOOKUP($B27&$E$11&$J$16,'Raw data'!$D$3:$L$12602,7,FALSE) -> 34.75413277 | O27: =VLOOKUP($B27&$E$11&$F$16,'Raw data'!$D$3:$L$12602,8,FALSE) -> 5.439733215 | P27: =VLOOKUP($B27&$E$11&$F$16,'Raw data'!$D$3:$L$12602,9,FALSE) -> 6.432347549 | Q27: =VLOOKUP($B27&$E$11&$J$16,'Raw data'!$D$3:$L$12602,8,FALSE) -> 5.630132487 | R27: =VLOOKUP($B27&$E$11&$J$16,'Raw data'!$D$3:$L$12602,9,FALSE) -> 6.604745636 | T27: NHS South Worcestershire | U27: =IF(OR(H27="SUP",I27="SUP"),"N/A",IF($G$29<H27,"significantly higher",IF(AND($G$29>=H27,$G$29<=I27),"not significantly different",IF($G$29>I27,"significantly lower","Error")))) -> not significantly different | V27: not significantly different | X27: =IF(OR(H27="SUP",I27="SUP",$G$18="SUP"),"N/A",IF($G$18<H27,"significantly higher",IF(AND($G$18>=H27,$G$18<=I27),"not significantly different",IF($G$18>I27,"significantly lower","Error")))) -> significantly lower | Y27: significantly lower
B28: =VLOOKUP($E$12,'LUT CCG_Similar10_209 CCGs'!$B$6:$W$214,22,FALSE) -> NHS Newark & Sherwood | F28: =VLOOKUP($B28&$E$11&$F$16,'Raw data'!$D$3:$L$12602,3,FALSE) -> 28 | G28: =VLOOKUP($B28&$E$11&$F$16,'Raw data'!$D$3:$L$12602,5,FALSE) -> 20.45105905 | H28: =VLOOKUP($B28&$E$11&$F$16,'Raw data'!$D$3:$L$12602,6,FALSE) -> 13.55000501 | I28: =VLOOKUP($B28&$E$11&$F$16,'Raw data'!$D$3:$L$12602,7,FALSE) -> 29.60999786 | J28: =VLOOKUP($B28&$E$11&$J$16,'Raw data'!$D$3:$L$12602,3,FALSE) -> 22 | K28: =VLOOKUP($B28&$E$11&$J$16,'Raw data'!$D$3:$L$12602,5,FALSE) -> 16.00322022 | L28: =VLOOKUP($B28&$E$11&$J$16,'Raw data'!$D$3:$L$12602,6,FALSE) -> 10.00348783 | M28: =VLOOKUP($B28&$E$11&$J$16,'Raw data'!$D$3:$L$12602,7,FALSE) -> 24.26437901 | O28: =VLOOKUP($B28&$E$11&$F$16,'Raw data'!$D$3:$L$12602,8,FALSE) -> 6.901054042 | P28: =VLOOKUP($B28&$E$11&$F$16,'Raw data'!$D$3:$L$12602,9,FALSE) -> 9.158938809 | Q28: =VLOOKUP($B28&$E$11&$J$16,'Raw data'!$D$3:$L$12602,8,FALSE) -> 5.999732399 | R28: =VLOOKUP($B28&$E$11&$J$16,'Raw data'!$D$3:$L$12602,9,FALSE) -> 8.261158781 | T28: NHS Newark & Sherwood | U28: not significantly different | V28: significantly lower | X28: =IF(OR(H28="SUP",I28="SUP",$G$18="SUP"),"N/A",IF($G$18<H28,"significantly higher",IF(AND($G$18>=H28,$G$18<=I28),"not significantly different",IF($G$18>I28,"significantly lower","Error")))) -> significantly lower | Y28: significantly lower
B29: England | F29: =VLOOKUP($B29&$E$11&$F$16,'Raw data'!$D$3:$L$12602,3,FALSE) -> 14134 | G29: =VLOOKUP($B29&$E$11&$F$16,'Raw data'!$D$3:$L$12602,5,FALSE) -> 25.4944121 | H29: =VLOOKUP($B29&$E$11&$F$16,'Raw data'!$D$3:$L$12602,6,FALSE) -> 25.07417095 | I29: =VLOOKUP($B29&$E$11&$F$16,'Raw data'!$D$3:$L$12602,7,FALSE) -> 25.9199094 | J29: =VLOOKUP($B29&$E$11&$J$16,'Raw data'!$D$3:$L$12602,3,FALSE) -> 13964 | K29: =VLOOKUP($B29&$E$11&$J$16,'Raw data'!$D$3:$L$12602,5,FALSE) -> 25.01842927 | L29: =VLOOKUP($B29&$E$11&$J$16,'Raw data'!$D$3:$L$12602,6,FALSE) -> 24.60373538 | M29: =VLOOKUP($B29&$E$11&$J$16,'Raw data'!$D$3:$L$12602,7,FALSE) -> 25.43834161 | O29: =VLOOKUP($B29&$E$11&$F$16,'Raw data'!$D$3:$L$12602,8,FALSE) -> 0.420241155 | P29: =VLOOKUP($B29&$E$11&$F$16,'Raw data'!$D$3:$L$12602,9,FALSE) -> 0.4254972913 | Q29: =VLOOKUP($B29&$E$11&$J$16,'Raw data'!$D$3:$L$12602,8,FALSE) -> 0.4146938875 | R29: =VLOOKUP($B29&$E$11&$J$16,'Raw data'!$D$3:$L$12602,9,FALSE) -> 0.4199123377 | T29: England
T31: significantly lower | U31: =COUNTIF(U$19:U$28,$T31) -> 3 | V31: =COUNTIF(V$19:V$28,$T31) -> 3 | X31: =COUNTIF(X$19:X$28,$T31) -> 8 | Y31: 9
T32: not significantly different | U32: =COUNTIF(U$19:U$28,$T32) -> 7 | V32: 7 | X32: 2 | Y32: 1
T33: significantly higher | U33: 0 | V33: 0 | X33: =COUNTIF(X$19:X$28,$T33) -> 0 | Y33: 0
P35: Explanatory text
O37: para 1 | P37: =IF(AND(K18="SUP",G18="SUP"),"Compared to England: The rates of "&LOWER(E11)&" in "&E12&" in "&J16&" and in "&F16&" have been suppressed due to small numbers, therefore they cannot reliably be compared to their 10 similar CCGs, or the England value.", IF(AND(K18>0,G18="SUP"),"Compared to England: The rate of "&LOWER(E11)&" in "&B18&" in "&J16&" was "&TEXT(K18,"#,###.0")&" per 100,000 population, this is "&VLOOKUP(B18&E11&J16,'Raw data'!$D$3:$M$12602,10,FALSE)&" the 2015/16 England value.", IF(AND(K18="SUP",G18>0),"Compared to England: The rate of "&LOWER(E11)&" in "&E12&" in "&J16&" has been suppressed due to small numbers, therefore it cannot reliably be compared to it's 10 similar CCGs, or the England value. However, the rate of "&LOWER(E11)&" in "&E12&" in "&F16&" was "&TEXT(G18,"#,###.0")&" per 100,000 population, this is "&VLOOKUP(B18&E11&F16,'Raw data'!$D$3:$M$12602,10,FALSE)&" the 2014/15 England value.", IF(AND(K18>0,G18>0),"Compared to England: The rate of "&LOWER(E11)&" in "&B18&" in "&J16&" was "&TEXT(K18,"#,###.0")&" per 100,000 population, this is "&VLOOKUP(B18&E11&J16,'Raw data'!$D$3:$M$12602,10,FALSE)&" the 2015/16 England value.","error")))) -> Compared to England: The rate of aesthetic surgery (breast) in NHS Airedale, Wharfedale & Craven in 2015/16 was 38.7 per 100,000 population, this is significantly higher than the 2015/16 England value.
O38: para 2 | P38: =IF(AND(K18="SUP",G18="SUP"),"", IF(AND(K18>0,G18="SUP"),"Variation: Between the 10 similar CCGs in "&J16&", the rate of "&LOWER(E11)&" ranged from "&TEXT(V11,"#,###.0")&" to "&TEXT(V10,"#,###.0")&" per 100,000 population, which is a "&TEXT(V12,"#,###.0")&"-fold difference.", IF(AND(K18="SUP",G18>0),"Variation: In 2014/15, between the 10 similar CCGs, the rate of "&LOWER(E11)&" ranged from "&TEXT(U11,"#,###.0")&" to "&TEXT(U10,"#,###.0")&" per 100,000 population, which is a "&TEXT(U12,"#,###.0")&"-fold difference.", IF(AND(K18>0,G18>0),"Variation: Between the 10 similar CCGs in "&J16&", the rate of "&LOWER(E11)&" ranged from "&TEXT(V11,"#,###.0")&" to "&TEXT(V10,"#,###.0")&" per 100,000 population, which is a "&TEXT(V12,"#,###.0")&"-fold difference.","error")))) -> Variation: Between the 10 similar CCGs in 2015/16, the rate of aesthetic surgery (breast) ranged from 8.0 to 38.7 per 100,000 population, which is a 4.8-fold difference.
O39: para 3 | P39: =IF(AND(K18="SUP",G18="SUP"),"", IF(AND(K18>0,G18="SUP"),"Similar CCGs: In 2015/16, compared to "&E12&", "&Y33&" of the 10 similar CCGs had a significantly higher rate of "&LOWER(E11)&" and "&Y31&IF(Y31=1," CCG"," CCGs")&" had a significantly lower rate.", IF(AND(K18="SUP",G18>0),"Similar CCGs: In 2014/15, compared to "&E12&", "&X33&" of the 10 similar CCGs had a significantly higher rate of "&LOWER(E11)&" and "&X31&IF(X31=1," CCG"," CCGs")&" had a significantly lower rate.", IF(AND(K18>0,G18>0),"Similar CCGs: In 2015/16, compared to "&E12&", "&Y33&" of the 10 similar CCGs had a significantly higher rate of "&LOWER(E11)&" and "&Y31&IF(Y31=1," CCG"," CCGs")&" had a significantly lower rate.")))) -> Similar CCGs: In 2015/16, compared to NHS Airedale, Wharfedale & Craven, 0 of the 10 similar CCGs had a significantly higher rate of aesthetic surgery (breast) and 9 CCGs had a significantly lower rate.
O40: para 4 | P40: =IF(AND(K18="SUP",G18="SUP"),"", IF(AND(K18>0,G18="SUP"),"Compared to 2014/15: The rate of "&LOWER(E11)&" in "&E12&" in 2015/16 cannot be compared to the rate in 2014/15, because the 2014/15 rate was suppressed due to small numbers.", IF(AND(K18="SUP",G18>0),"The rates of "&LOWER(E11)&" in "&E12&" cannot be compared between 2014/15 and 2015/16 because the rate for 2015/16 has been suppressed due to small numbers.", IF(AND(K18>0,G18>0),"Compared to 2014/15: The rate of "&LOWER(E11)&" in "&E12&" in "&J16&" was "&AA18&" the rate in "&F16&".","error")))) -> Compared to 2014/15: The rate of aesthetic surgery (breast) in NHS Airedale, Wharfedale & Craven in 2015/16 was higher than the rate in 2014/15.
B49: =P37&CHAR(10)&""&CHAR(10)&P38&CHAR(10)&""&CHAR(10)&P39&CHAR(10)&""&CHAR(10)&P40 -> Compared to England: The rate of aesthetic surgery (breast) in NHS Airedale, Wharfedale & Craven in 2015/16 was 38.7 per 100,000 population, this is significantly higher than the 2015/16 England value. Variation: Between the 10 similar CCGs in 2015/16, the rate of aesthetic surgery (breast) ranged from 8.0 to 38.7 per 100,000 population, which is a 4.8-fold difference. Similar CCGs: In 2015/16, compared to NHS Airedale, Wharfedale & Craven, 0 of the 10 similar CCGs had a significantly higher rate of aesthetic surgery (breast) and 9 CCGs had a significantly lower rate. Compared to 2014/15: The rate of aesthetic surgery (breast) in NHS Airedale, Wharfedale & Craven in 2015/16 was higher than the rate in 2014/15.

Sheet Procedure Codes List
A1: Clinical Procedure Codes
A4: Procedure Name | B4: Notes | C4: Codes used
A5: Aesthetic surgery - breast | B5: - | C5: "B301","B302","B303","B308","B309","B311","B312","B313","B314","B356"
A6: Aesthetic surgery - ENT | B6: - | C6: "D033","D038","D039","D062","E025","E026","E028","E029","E094"
A7: Aesthetic surgery - Ophthalmology | B7: - | C7: "C131","C132","C133","C134","C181","C182","C183","C184","C186","C188","C189"
A8: Aesthetic surgery - Plastics | B8: - | C8: "S011","S012","S013","S014","S018","S019","S021","S022","S028","S029","S031"," S032","S211","S212","S332","S333"
A9: Anal procedures | B9: - | C9: "H511", "H512","H518","H519","H521","H522","H523","H524","H528","H529", "H531","H532","H533","H538","H539", "H482","H558","H559","H568","H569",
A10: Back pain: injections and fusions | B10: - | C10: "V333","V335","V336","V371","V372","V373","V374","V378","V379","V381","V382", "V383","V384","V388","V389","V221","V241","V251","V253","V231","V261","V391", "V392","V393","V394","V395","V398","V399"
A11: Carpal tunnel | B11: - | C11: "A651","A658","A659"
A12: Cataract removal surgery | B12: - | C12: "C711", "C712", "C713", "C718", "C719", "C721", "C722", "C723", "C728", "C729", "C741", "C742", "C743", "C748", "C749", "C751", "C752", "C753", "C754", "C758", "C759"
A13: Cochlear implants | B13: - | C13: "D241","D242"
A14: Dilation and curettage | B14: - | C14: "Q103","Q108","Q109"
A15: Dupytrens contracture | B15: - | C15: "T541","T521","T522","T528","T529","T548","T549"
A16: Elective cardiac ablation | B16: - | C16: "K571", "K572", "K578", "K579"
A17: Endocscopies (split by) | B17: 1. Diagnostic endoscopic exam of upper GI, | C17: "G141", G142", G143","G144", "G145", G146", G147", "G148", "G149", "G151", "G152", "G153", "G154", "G155", "G156", "G157", "G158", "G159", "G161", "G162", "G163", "G168", "G169", "G171"," G172", "G173", "G174", "G178", "G179", "G451", "G452", "G453", "G454", "G458", "G489"
B18: 2. Diagnostic endoscopic exam of colon (colonoscopy) | C18: "H201", "H202", "H203", "H204", "H205", "H206", "H208", "H209", "H221", "H228", "H229"
B19: 3. Diagnostic exam of lower bowel using fibreoptic sigmoidoscope (Flexible Sigmoidoscopy) | C19: "H231", "H232", "H233", "H234", "H235", "H236", "H238", "H239", "H251", "H252", "H258", "H259"
B20: 4. Diagnostic exam of bladder (cytoscopy) | C20: "M451", "M452", "M453", "M454", "M455", "M458", "M459"
A21: Excision of gall bladder (Cholecystectomy) | B21: - | C21: "J181", "J182", "J183","J184","J185", "J188", "J189",
A22: Female genital prolapse/ stress incontinence | B22: 1. surgical, | C22: "M531","M538","M539","P219","P221","P222","P223","P228","P229","P231","P232", "P233","P234","P238","P239","P241","P243","P244","P248","P249","P251","Q544"
B23: 2. non-surgical | C23: "M533","M534","M536","M537","P261","P262","P263","P264","P268","P269"
A24: Grommets | B24: - | C24: "D151", "D152", "D158", "D159", "D202", "D203", "D208", "D209", "D288", "D289"
A25: Hernias (split by) | B25: 1. incisional & ventral hernias, | C25: "T251", "T252", "T253", "T258", "T259", "T261", "T262", "T263", "T264", "T268", "T269", "T271", "T272", "T273", "T274", "T278", "T279"
B26: 2. Inguinal, umbilical & femoral hernias | C26: "T201", "T202", "T203", "T204", "T208", "T209", "T211", "T212", "T213", "T214", "T218", "T219", "T221", "T222", "T223"
A27: Hysterectomy for menorrhagia | B27: - | C27: "Q071","Q072","Q073","Q074","Q075","Q078","Q079","Q081","Q082","Q083","Q088","Q089"
A28: Jaw replacement | B28: - | C28: "V071", "V078", "V079", "V118", "V119", "V139", "V142", "V143", "V144", "V148", "V161", "V162", "V163", "V168", "V169", "V171", "V172", "V173", "V178","V203", "V209", "V218", "V219", "V198", "V199"
A29: Knee washouts | B29: - | C29: "W851","W852", "W858", "W859","W861","W868","W869"
A30: Minor skin lesions | B30: - | C30: "S028", "S029", "S033", "S038", "S041", "S042", "S043", "S048", "S049", "S051", "S052", "S053", "S054", "S055", "S058", "S059", "S061", "S062", "S063", "S064", "S065", "S068", "S069", "S081", "S082", "S083", "S088", "S089", "S091", "S092", "S093", "S098", "S099", "S101", "S102", "S103", "S104", "S108", "S109", "S111", "S112", "S113", "S114", "S118", "S119", "S131", "S132", "S138", "S139", "S141", "S142", "S148", "S149", "S151", "S152", "S158", "S159", "S213", "S214", "S219", "S231", "S232", "S233", "S234", "S238", "S239", "S268", "S269", "S271", "S272", "S273", "S274", "S275", "S278", "S279", "S303", "S304", "S305", "S306", "S308", "S313", "S314", "S315", "S316", "S318", "S331", "S361", "S362", "S369", "S398", "S399", "S411", "S412", "S413", "S414", "S418", "S419", "S421", "S422", "S423", "S424", "S428", "S429", "S431", "S432", "S433", "S434", "S438", "S439", "S441", "S442", "S443", "S444", "S445", "S446", "S448", "S449", "S451", "S452", "S453", "S454", "S455", "S456", "S458", "S459", "S471", "S472", "S473", "S474", "S475", "S476", "S478", "S479", "S491", "S492", "S493", "S494", "S498", "S499", "S501", "S502", "S503", "S504", "S508", "S509", "S511", "S519", "S521", "S523", "S528", "S529", "S531", "S532", "S533", "S534", "S538", "S539", "S561", "S563", "S564", "S565", "S568", "S569", "S573", "S574", "S575", "S578", "S579", "S601", "S602", "S603", "S604", "S608", "S609", "S621", "S622", "S623", "S624", "S628", "S629", "S641", "S642", "S643", "S648", "S649", "S661", "S662", "S663", "S668", "S669", "S681", "S682", "S683", "S688", "S689", "S701", "S702", "S703", "S708", "S709"
A31: Other joint prosthetics (split by) | B31: 1. Primary or revisional shoulder | C31: "O061", "O068", "O071", "O078", "O079", "O081", "O088", "O089", "W491", "W498", "W499", "W501", "W504"," W508", "W509", "W511", "W515", "W518", "W519", "W961", "W965", "W968", "W969", "W971", "W975", "W978", "W979", "W981", "W986", "W988", "W989", "O062", "O063", "O072", "O073", "O082", "O083", "W492", "W493", "W502", "W503", "W512", "W513", "W962", "W963", "W964", "W966", "W972", "W973", "W975", "W976", "W982", "W983", "W985", "W987", "W581 and Z814"
B32: 2. Primary or revisonal elbow | C32: O211, O218, O219, O221, O228, O229, O231, O238, O239, O241, O248, O249, O251, O259, O261, O268, O269, O210, O212, O213, O214, O220, O222, O223, O224, O230, O232, O233, O235, O240, O242, O243, O250, O252, O253, O260, O262, O263. THESE CODES ALSO REQUIRE Z815 OR Z816 TO ALSO BE PRESENT: "W431", "W438", "W439", "W441", "W448", "W449", "W451", "W458", "W459", "W521", "W528", "W529", "W531", "W538", "W539", "W541", "W548", "W549", "W433", "W443", "W453", "W523", "W533", "W543", "W552", "W563", "W564"
B33: 3. primary or revisional ankle | C33: "W431", "W438", "W439", "W441", "W448", "W449", "W451", "W458", "W459", "W521", "W528", "W529", "W531", "W538", "W539", "W541" "W433", "W443", "W453", "W523", "W533", "W543", "W544", "W552", "W554" (AND NEEDS TO INCLUDE ANKLE CODE Z856)
A34: Spinal cord simulation | B34: - | C34: "A483"
A35: Tonsillectomy | B35: - | C35: "F341","F342", "F343", "F344","F345","F346","F348","F349","F361","F368","F369"
A36: Trigger finger | B36: - | C36: "T705","T708","T709","T711", "T718","T719","T721","T723","T724","T728","T729","T743","T748","T749","T652"," T658","T659","T691","T698","T699"
A37: Varicose veins | B37: - | C37: "L831", "L832", "L838", "L839", "L841", "L842", "L843", "L844", "L845", "L846", "L848", "L849", "L851","L852","L853","L858","L859","L861", "L862", "L868", "L869", "L871","L872","L873","L874","L875","L876","L877", "L878","L879","L881", "L882", "L883", "L888", "L889", "L918","L919","L931","L932","L933"
A38: Wisdom teeth | B38: - | C38: "F091","F093","F099"

Sheet LUT CCG_Similar10_209 CCGs (hidden)
A1: CCG + Similar 10 lookup to codes created by DM from 'closest CCG (name)' worksheet
A2: Note: Original file supplied by Ben Williams has two abbreviated different versions of the NHS Birmingham Cross City CCG name. Both are changed to "NHS Birmingham Cross City CCG" in the below
C4: COLUMNS ADDED BY DM
A5: CCG code OLD | B5: CCG name | C5: CCG 16 code | D5: SimilarCCG_Code1 | E5: SimilarCCG_Code2 | F5: SimilarCCG_Code3 | G5: SimilarCCG_Code4 | H5: SimilarCCG_Code5 | I5: SimilarCCG_Code6 | J5: SimilarCCG_Code7 | K5: SimilarCCG_Code8 | L5: SimilarCCG_Code9 | M5: SimilarCCG_Code10 | N5: SimilarCCG_Name1 | O5: SimilarCCG_Name2 | P5: SimilarCCG_Name3 | Q5: SimilarCCG_Name4 | R5: SimilarCCG_Name5 | S5: SimilarCCG_Name6 | T5: SimilarCCG_Name7 | U5: SimilarCCG_Name8 | V5: SimilarCCG_Name9 | W5: SimilarCCG_Name10
A6: 02N | B6: NHS Airedale, Wharfedale & Craven | C6: E38000001 | D6: E38000025 | E6: E38000156 | F6: E38000053 | G6: E38000002 | H6: E38000073 | I6: E38000197 | J6: E38000165 | K6: E38000063 | L6: E38000166 | M6: E38000109 | N6: NHS Calderdale | O6: NHS South Kent Coast | P6: NHS East Staffordshire | Q6: NHS Ashford | R6: NHS Harrogate & Rural District | S6: NHS West Essex | T6: NHS South West Lincolnshire | U6: NHS Great Yarmouth & Waveney | V6: NHS South Worcestershire | W6: NHS Newark & Sherwood
A7: 09C | B7: NHS Ashford | C7: E38000002 | D7: E38000110 | E7: E38000003 | F7: E38000053 | G7: E38000180 | H7: E38000025 | I7: E38000197 | J7: E38000165 | K7: E38000120 | L7: E38000151 | M7: E38000001 | N7: NHS Newbury & District | O7: NHS Aylesbury Vale | P7: NHS East Staffordshire | Q7: NHS Swale | R7: NHS Calderdale | S7: NHS West Essex | T7: NHS South West Lincolnshire | U7: NHS North Hampshire | V7: NHS South Cheshire | W7: NHS Airedale, Wharfedale & Craven
A8: 10Y | B8: NHS Aylesbury Vale | C8: E38000003 | D8: E38000110 | E8: E38000002 | F8: E38000120 | G8: E38000054 | H8: E38000214 | I8: E38000053 | J8: E38000043 | K8: E38000033 | L8: E38000165 | M8: E38000106 | N8: NHS Newbury & District | O8: NHS Ashford | P8: NHS North Hampshire | Q8: NHS East Surrey | R8: NHS Guildford & Waverley | S8: NHS East Staffordshire | T8: NHS Dartford, Gravesham & Swanley | U8: NHS Chiltern | V8: NHS South West Lincolnshire | W8: NHS Mid Essex
A9: 07L | B9: NHS Barking & Dagenham | C9: E38000004 | D9: E38000066 | E9: E38000192 | F9: E38000057 | G9: E38000102 | H9: E38000040 | I9: E38000072 | J9: E38000148 | K9: E38000123 | L9: E38000013 | M9: E38000144 | N9: NHS Greenwich | O9: NHS Waltham Forest | P9: NHS Enfield | Q9: NHS Luton | R9: NHS Croydon | S9: NHS Haringey | T9: NHS Slough | U9: NHS North Manchester | V9: NHS Birmingham South & Central | W9: NHS Sandwell & West Birmingham
A10: 07M | B10: NHS Barnet | C10: E38000005 | D10: E38000179 | E10: E38000011 | F10: E38000082 | G10: E38000107 | H10: E38000023 | I10: E38000090 | J10: E38000039 | K10: E38000043 | L10: E38000128 | M10: E38000033 | N10: NHS Sutton | O10: NHS Bexley | P10: NHS Hillingdon | Q10: NHS Milton Keynes | R10: NHS Bromley | S10: NHS Kingston | T10: NHS Crawley | U10: NHS Dartford, Gravesham & Swanley | V10: NHS North West Surrey | W10: NHS Chiltern
A11: 02P | B11: NHS Barnsley | C11: E38000006 | D11: E38000075 | E11: E38000044 | F11: E38000103 | G11: E38000172 | H11: E38000205 | I11: E38000190 | J11: E38000141 | K11: E38000119 | L11: E38000047 | M11: E38000195 | N11: NHS Hartlepool & Stockton-on-Tees | O11: NHS Doncaster | P11: NHS Mansfield & Ashfield | Q11: NHS St Helens | R11: NHS Wigan Borough | S11: NHS Wakefield | T11: NHS Rotherham | U11: NHS North East Lincolnshire | V11: NHS Durham Dales, Easington & Sedgefield | W11: NHS Warwickshire North
A12: 99E | B12: NHS Basildon & Brentwood | C12: E38000007 | D12: E38000155 | E12: E38000181 | F12: E38000043 | G12: E38000120 | H12: E38000139 | I12: E38000151 | J12: E38000197 | K12: E38000106 | L12: E38000083 | M12: E38000153 | N12: NHS South Gloucestershire | O12: NHS Swindon | P12: NHS Dartford, Gravesham & Swanley | Q12: NHS North Hampshire | R12: NHS Redditch & Bromsgrove | S12: NHS South Cheshire | T12: NHS West Essex | U12: NHS Mid Essex | V12: NHS Horsham & Mid Sussex | W12: NHS South East Staffs & Seisdon Peninsula
A13: 02Q | B13: NHS Bassetlaw | C13: E38000008 | D13: E38000071 | E13: E38000109 | F13: E38000042 | G13: E38000034 | H13: E38000119 | I13: E38000122 | J13: E38000195 | K13: E38000006 | L13: E38000139 | M13: E38000200 | N13: NHS Hardwick | O13: NHS Newark & Sherwood | P13: NHS Darlington | Q13: NHS Chorley & South Ribble | R13: NHS North East Lincolnshire | S13: NHS North Lincolnshire | T13: NHS Warwickshire North | U13: NHS Barnsley | V13: NHS Redditch & Bromsgrove | W13: NHS West Lancashire
A14: 11E | B14: NHS Bath & North East Somerset | C14: E38000009 | D14: E38000029 | E14: E38000188 | F14: E38000196 | G14: E38000093 | H14: E38000100 | I14: E38000131 | J14: E38000117 | K14: E38000201 | L14: E38000073 | M14: E38000166 | N14: NHS Canterbury & Coastal | O14: NHS Vale of York | P14: NHS West Cheshire | Q14: NHS Lancashire North | R14: NHS Lincolnshire West | S14: NHS Norwich | T14: NHS North East Essex | U14: NHS West Leicestershire | V14: NHS Harrogate & Rural District | W14: NHS South Worcestershire
A15: 06F | B15: NHS Bedfordshire | C15: E38000010 | D15: E38000106 | E15: E38000169 | F15: E38000049 | G15: E38000199 | H15: E38000033 | I15: E38000197 | J15: E38000206 | K15: E38000043 | L15: E38000108 | M15: E38000007 | N15: NHS Mid Essex | O15: NHS Southern Derbyshire | P15: NHS East & North Hertfordshire | Q15: NHS West Kent | R15: NHS Chiltern | S15: NHS West Essex | T15: NHS Wiltshire | U15: NHS Dartford, Gravesham & Swanley | V15: NHS Nene | W15: NHS Basildon & Brentwood
A16: 07N | B16: NHS Bexley | C16: E38000011 | D16: E38000179 | E16: E38000077 | F16: E38000023 | G16: E38000039 | H16: E38000005 | I16: E38000043 | J16: E38000185 | K16: E38000187 | L16: E38000181 | M16: E38000007 | N16: NHS Sutton | O16: NHS Havering | P16: NHS Bromley | Q16: NHS Crawley | R16: NHS Barnet | S16: NHS Dartford, Gravesham & Swanley | T16: NHS Thurrock | U16: NHS Trafford | V16: NHS Swindon | W16: NHS Basildon & Brentwood
A17: 13P | B17: NHS Birmingham CrossCity | C17: E38000012 | D17: E38000144 | E17: E38000038 | F17: E38000019 | G17: E38000016 | H17: E38000210 | I17: E38000082 | J17: E38000013 | K17: E38000191 | L17: E38000135 | M17: E38000080 | N17: NHS Sandwell & West Birmingham | O17: NHS Coventry & Rugby | P17: NHS Bradford Districts | Q17: NHS Bolton | R17: NHS Wolverhampton | S17: NHS Hillingdon | T17: NHS Birmingham South & Central | U17: NHS Walsall | V17: NHS Oldham | W17: NHS Heywood, Middleton & Rochdale
A18: 04X | B18: NHS Birmingham South & Central | C18: E38000013 | D18: E38000097 | E18: E38000102 | F18: E38000144 | G18: E38000123 | H18: E38000014 | I18: E38000135 | J18: E38000019 | K18: E38000080 | L18: E38000082 | M18: E38000016 | N18: NHS Leicester City | O18: NHS Luton | P18: NHS Sandwell & West Birmingham | Q18: NHS North Manchester | R18: NHS Blackburn with Darwen | S18: NHS Oldham | T18: NHS Bradford Districts | U18: NHS Heywood, Middleton & Rochdale | V18: NHS Hillingdon | W18: NHS Bolton
A19: 00Q | B19: NHS Blackburn with Darwen | C19: E38000014 | D19: E38000135 | E19: E38000019 | F19: E38000080 | G19: E38000013 | H19: E38000016 | I19: E38000121 | J19: E38000050 | K19: E38000102 | L19: E38000095 | M19: E38000191 | N19: NHS Oldham | O19: NHS Bradford Districts | P19: NHS Heywood, Middleton & Rochdale | Q19: NHS Birmingham South & Central | R19: NHS Bolton | S19: NHS North Kirklees | T19: NHS East Lancashire | U19: NHS Luton | V19: NHS Leeds South & East | W19: NHS Walsall
A20: 00R | B20: NHS Blackpool | C20: E38000015 | D20: E38000091 | E20: E38000176 | F20: E38000161 | G20: E38000162 | H20: E38000163 | I20: E38000168 | J20: E38000172 | K20: E38000208 | L20: E38000175 | M20: E38000174 | N20: NHS Knowsley | O20: NHS Sunderland | P20: NHS South Sefton | Q20: NHS South Tees | R20: NHS South Tyneside | S20: NHS Southend | T20: NHS St Helens | U20: NHS Wirral | V20: NHS Stoke on Trent | W20: NHS Stockport
A21: 00T | B21: NHS Bolton | C21: E38000016 | D21: E38000080 | E21: E38000019 | F21: E38000135 | G21: E38000024 | H21: E38000162 | I21: E38000175 | J21: E38000182 | K21: E38000095 | L21: E38000050 | M21: E38000191 | N21: NHS Heywood, Middleton & Rochdale | O21: NHS Bradford Districts | P21: NHS Oldham | Q21: NHS Bury | R21: NHS South Tees | S21: NHS Stoke on Trent | T21: NHS Tameside & Glossop | U21: NHS Leeds South & East | V21: NHS East Lancashire | W21: NHS Walsall
A22: 10G | B22: NHS Bracknell & Ascot | C22: E38000017 | D22: E38000209 | E22: E38000155 | F22: E38000118 | G22: E38000181 | H22: E38000178 | I22: E38000120 | J22: E38000054 | K22: E38000039 | L22: E38000007 | M22: E38000083 | N22: NHS Wokingham | O22: NHS South Gloucestershire | P22: NHS North East Hampshire & Farnham | Q22: NHS Swindon | R22: NHS Surrey Heath | S22: NHS North Hampshire | T22: NHS East Surrey | U22: NHS Crawley | V22: NHS Basildon & Brentwood | W22: NHS Horsham & Mid Sussex
A23: 02W | B23: NHS Bradford City | C23: E38000018 | D23: E38000148 | E23: E38000013 | F23: E38000102 | G23: E38000014 | H23: E38000097 | I23: E38000138 | J23: E38000144 | K23: E38000121 | L23: E38000186 | M23: E38000135 | N23: NHS Slough | O23: NHS Birmingham South & Central | P23: NHS Luton | Q23: NHS Blackburn with Darwen | R23: NHS Leicester City | S23: NHS Redbridge | T23: NHS Sandwell & West Birmingham | U23: NHS North Kirklees | V23: NHS Tower Hamlets | W23: NHS Oldham
A24: 02R | B24: NHS Bradford Districts | C24: E38000019 | D24: E38000135 | E24: E38000016 | F24: E38000080 | G24: E38000191 | H24: E38000121 | I24: E38000014 | J24: E38000050 | K24: E38000095 | L24: E38000024 | M24: E38000175 | N24: NHS Oldham | O24: NHS Bolton | P24: NHS Heywood, Middleton & Rochdale | Q24: NHS Walsall | R24: NHS North Kirklees | S24: NHS Blackburn with Darwen | T24: NHS East Lancashire | U24: NHS Leeds South & East | V24: NHS Bury | W24: NHS Stoke on Trent
A25: 07P | B25: NHS Brent | C25: E38000020 | D25: E38000192 | E25: E38000048 | F25: E38000040 | G25: E38000066 | H25: E38000072 | I25: E38000084 | J25: E38000105 | K25: E38000098 | L25: E38000144 | M25: E38000138 | N25: NHS Waltham Forest | O25: NHS Ealing | P25: NHS Croydon | Q25: NHS Greenwich | R25: NHS Haringey | S25: NHS Hounslow | T25: NHS Merton | U25: NHS Lewisham | V25: NHS Sandwell & West Birmingham | W25: NHS Redbridge
A26: 09D | B26: NHS Brighton & Hove | C26: E38000021 | D26: E38000212 | E26: E38000065 | F26: E38000137 | G26: E38000116 | H26: E38000022 | I26: E38000167 | J26: E38000100 | K26: E38000176 | L26: E38000093 | M26: E38000101 | N26: NHS Newcastle Gateshead | O26: NHS Greater Preston | P26: NHS Portsmouth | Q26: NHS North Durham | R26: NHS Bristol | S26: NHS Southampton | T26: NHS Lincolnshire West | U26: NHS Sunderland | V26: NHS Lancashire North | W26: NHS Liverpool
A27: 11H | B27: NHS Bristol | C27: E38000022 | D27: E38000038 | E27: E38000167 | F27: E38000021 | G27: E38000137 | H27: E38000146 | I27: E38000085 | J27: E38000101 | K27: E38000131 | L27: E38000176 | M27: E38000143 | N27: NHS Coventry & Rugby | O27: NHS Southampton | P27: NHS Brighton & Hove | Q27: NHS Portsmouth | R27: NHS Sheffield | S27: NHS Hull | T27: NHS Liverpool | U27: NHS Norwich | V27: NHS Sunderland | W27: NHS Salford
A28: 07Q | B28: NHS Bromley | C28: E38000023 | D28: E38000007 | E28: E38000077 | F28: E38000128 | G28: E38000177 | H28: E38000033 | I28: E38000181 | J28: E38000155 | K28: E38000011 | L28: E38000187 | M28: E38000043 | N28: NHS Basildon & Brentwood | O28: NHS Havering | P28: NHS North West Surrey | Q28: NHS Surrey Downs | R28: NHS Chiltern | S28: NHS Swindon | T28: NHS South Gloucestershire | U28: NHS Bexley | V28: NHS Trafford | W28: NHS Dartford, Gravesham & Swanley
A29: 00V | B29: NHS Bury | C29: E38000024 | D29: E38000182 | E29: E38000187 | F29: E38000141 | G29: E38000168 | H29: E38000194 | I29: E38000183 | J29: E38000016 | K29: E38000195 | L29: E38000189 | M29: E38000037 | N29: NHS Tameside & Glossop | O29: NHS Trafford | P29: NHS Rotherham | Q29: NHS Southend | R29: NHS Warrington | S29: NHS Telford & Wrekin | T29: NHS Bolton | U29: NHS Warwickshire North | V29: NHS Vale Royal | W29: NHS Corby
A30: 02T | B30: NHS Calderdale | C30: E38000025 | D30: E38000053 | E30: E38000180 | F30: E38000002 | G30: E38000064 | H30: E38000001 | I30: E38000197 | J30: E38000195 | K30: E38000119 | L30: E38000050 | M30: E38000024 | N30: NHS East Staffordshire | O30: NHS Swale | P30: NHS Ashford | Q30: NHS Greater Huddersfield | R30: NHS Airedale, Wharfedale & Craven | S30: NHS West Essex | T30: NHS Warwickshire North | U30: NHS North East Lincolnshire | V30: NHS East Lancashire | W30: NHS Bury
A31: 06H | B31: NHS Cambridgeshire & Peterborough | C31: E38000026 | D31: E38000136 | E31: E38000108 | F31: E38000129 | G31: E38000062 | H31: E38000169 | I31: E38000049 | J31: E38000079 | K31: E38000045 | L31: E38000150 | M31: E38000198 | N31: NHS Oxfordshire | O31: NHS Nene | P31: NHS Northern, Eastern & Western Devon | Q31: NHS Gloucestershire | R31: NHS Southern Derbyshire | S31: NHS East & North Hertfordshire | T31: NHS Herts Valleys | U31: NHS Dorset | V31: NHS Somerset | W31: NHS West Hampshire
A32: 07R | B32: NHS Camden | C32: E38000027 | D32: E38000031 | E32: E38000088 | F32: E38000167 | G32: E38000137 | H32: E38000032 | I32: E38000022 | J32: E38000021 | K32: E38000158 | L32: E38000202 | M32: E38000132 | N32: NHS Central London (Westminster) | O32: NHS Islington | P32: NHS Southampton | Q32: NHS Portsmouth | R32: NHS Central Manchester | S32: NHS Bristol | T32: NHS Brighton & Hove | U32: NHS South Manchester | V32: NHS West London | W32: NHS Nottingham City
A33: 04Y | B33: NHS Cannock Chase | C33: E38000028 | D33: E38000058 | E33: E38000133 | F33: E38000153 | G33: E38000139 | H33: E38000034 | I33: E38000194 | J33: E38000103 | K33: E38000071 | L33: E38000127 | M33: E38000195 | N33: NHS Erewash | O33: NHS Nottingham North & East | P33: NHS South East Staffs & Seisdon Peninsula | Q33: NHS Redditch & Bromsgrove | R33: NHS Chorley & South Ribble | S33: NHS Warrington | T33: NHS Mansfield & Ashfield | U33: NHS Hardwick | V33: NHS North Tyneside | W33: NHS Warwickshire North
A34: 09E | B34: NHS Canterbury & Coastal | C34: E38000029 | D34: E38000009 | E34: E38000116 | F34: E38000093 | G34: E38000100 | H34: E38000188 | I34: E38000131 | J34: E38000201 | K34: E38000196 | L34: E38000065 | M34: E38000117 | N34: NHS Bath & North East Somerset | O34: NHS North Durham | P34: NHS Lancashire North | Q34: NHS Lincolnshire West | R34: NHS Vale of York | S34: NHS Norwich | T34: NHS West Leicestershire | U34: NHS West Cheshire | V34: NHS Greater Preston | W34: NHS North East Essex
A35: 99F | B35: NHS Castle Point & Rochford | C35: E38000030 | D35: E38000154 | E35: E38000059 | F35: E38000153 | G35: E38000134 | H35: E38000149 | I35: E38000133 | J35: E38000056 | K35: E38000125 | L35: E38000058 | M35: E38000155 | N35: NHS South Eastern Hampshire | O35: NHS Fareham & Gosport | P35: NHS South East Staffs & Seisdon Peninsula | Q35: NHS Nottingham West | R35: NHS Solihull | S35: NHS Nottingham North & East | T35: NHS Eastern Cheshire | U35: NHS North Somerset | V35: NHS Erewash | W35: NHS South Gloucestershire
A36: 09A | B36: NHS Central London (Westminster) | C36: E38000031 | D36: E38000027 | E36: E38000202 | F36: E38000021 | G36: E38000137 | H36: E38000088 | I36: E38000167 | J36: E38000193 | K36: E38000022 | L36: E38000096 | M36: E38000070 | N36: NHS Camden | O36: NHS West London | P36: NHS Brighton & Hove | Q36: NHS Portsmouth | R36: NHS Islington | S36: NHS Southampton | T36: NHS Wandsworth | U36: NHS Bristol | V36: NHS Leeds West | W36: NHS Hammersmith & Fulham
A37: 00W | B37: NHS Central Manchester | C37: E38000032 | D37: E38000132 | E37: E38000097 | F37: E38000013 | G37: E38000123 | H37: E38000160 | I37: E38000158 | J37: E38000144 | K37: E38000027 | L37: E38000192 | M37: E38000066 | N37: NHS Nottingham City | O37: NHS Leicester City | P37: NHS Birmingham South & Central | Q37: NHS North Manchester | R37: NHS South Reading | S37: NHS South Manchester | T37: NHS Sandwell & West Birmingham | U37: NHS Camden | V37: NHS Waltham Forest | W37: NHS Greenwich
A38: 10H | B38: NHS Chiltern | C38: E38000033 | D38: E38000177 | E38: E38000120 | F38: E38000010 | G38: E38000106 | H38: E38000118 | I38: E38000007 | J38: E38000197 | K38: E38000128 | L38: E38000051 | M38: E38000083 | N38: NHS Surrey Downs | O38: NHS North Hampshire | P38: NHS Bedfordshire | Q38: NHS Mid Essex | R38: NHS North East Hampshire & Farnham | S38: NHS Basildon & Brentwood | T38: NHS West Essex | U38: NHS North West Surrey | V38: NHS East Leicestershire & Rutland | W38: NHS Horsham & Mid Sussex
A39: 00X | B39: NHS Chorley & South Ribble | C39: E38000034 | D39: E38000139 | E39: E38000195 | F39: E38000194 | G39: E38000008 | H39: E38000109 | I39: E38000071 | J39: E38000006 | K39: E38000151 | L39: E38000133 | M39: E38000042 | N39: NHS Redditch & Bromsgrove | O39: NHS Warwickshire North | P39: NHS Warrington | Q39: NHS Bassetlaw | R39: NHS Newark & Sherwood | S39: NHS Hardwick | T39: NHS Barnsley | U39: NHS South Cheshire | V39: NHS Nottingham North & East | W39: NHS Darlington
A40: 07T | B40: NHS City & Hackney | C40: E38000035 | D40: E38000098 | E40: E38000171 | F40: E38000192 | G40: E38000072 | H40: E38000092 | I40: E38000066 | J40: E38000070 | K40: E38000020 | L40: E38000088 | M40: E38000193 | N40: NHS Lewisham | O40: NHS Southwark | P40: NHS Waltham Forest | Q40: NHS Haringey | R40: NHS Lambeth | S40: NHS Greenwich | T40: NHS Hammersmith & Fulham | U40: NHS Brent | V40: NHS Islington | W40: NHS Wandsworth
A41: 09G | B41: NHS Corby | C41: E38000037 | D41: E38000068 | E41: E38000024 | F41: E38000182 | G41: E38000183 | H41: E38000189 | I41: E38000172 | J41: E38000141 | K41: E38000194 | L41: E38000187 | M41: E38000103 | N41: NHS Halton | O41: NHS Bury | P41: NHS Tameside & Glossop | Q41: NHS Telford & Wrekin | R41: NHS Vale Royal | S41: NHS St Helens | T41: NHS Rotherham | U41: NHS Warrington | V41: NHS Trafford | W41: NHS Mansfield & Ashfield
A42: 03V | B42: NHS Coventry & Rugby | C42: E38000038 | D42: E38000022 | E42: E38000064 | F42: E38000146 | G42: E38000169 | H42: E38000175 | I42: E38000082 | J42: E38000016 | K42: E38000085 | L42: E38000065 | M42: E38000190 | N42: NHS Bristol | O42: NHS Greater Huddersfield | P42: NHS Sheffield | Q42: NHS Southern Derbyshire | R42: NHS Stoke on Trent | S42: NHS Hillingdon | T42: NHS Bolton | U42: NHS Hull | V42: NHS Greater Preston | W42: NHS Wakefield
A43: 05A | B43: NHS Crawley | C43: E38000039 | D43: E38000181 | E43: E38000179 | F43: E38000017 | G43: E38000043 | H43: E38000187 | I43: E38000183 | J43: E38000064 | K43: E38000139 | L43: E38000194 | M43: E38000007 | N43: NHS Swindon | O43: NHS Sutton | P43: NHS Bracknell & Ascot | Q43: NHS Dartford, Gravesham & Swanley | R43: NHS Trafford | S43: NHS Telford & Wrekin | T43: NHS Greater Huddersfield | U43: NHS Redditch & Bromsgrove | V43: NHS Warrington | W43: NHS Basildon & Brentwood
A44: 09H | B44: NHS Croydon | C44: E38000040 | D44: E38000066 | E44: E38000057 | F44: E38000072 | G44: E38000192 | H44: E38000020 | I44: E38000098 | J44: E38000005 | K44: E38000004 | L44: E38000105 | M44: E38000082 | N44: NHS Greenwich | O44: NHS Enfield | P44: NHS Haringey | Q44: NHS Waltham Forest | R44: NHS Brent | S44: NHS Lewisham | T44: NHS Barnet | U44: NHS Barking & Dagenham | V44: NHS Merton | W44: NHS Hillingdon
A45: 07V | B45: NHS Cumbria | C45: E38000041 | D45: E38000089 | E45: E38000150 | F45: E38000130 | G45: E38000052 | H45: E38000213 | I45: E38000062 | J45: E38000086 | K45: E38000166 | L45: E38000063 | M45: E38000045 | N45: NHS Kernow | O45: NHS Somerset | P45: NHS Northumberland | Q45: NHS East Riding of Yorkshire | R45: NHS Coastal West Sussex | S45: NHS Gloucestershire | T45: NHS Ipswich & East Suffolk | U45: NHS South Worcestershire | V45: NHS Great Yarmouth & Waveney | W45: NHS Dorset
A46: 01H | B46: NHS Darlington | C46: E38000042 | D46: E38000008 | E46: E38000071 | F46: E38000119 | G46: E38000006 | H46: E38000034 | I46: E38000109 | J46: E38000122 | K46: E38000195 | L46: E38000047 | M46: E38000172 | N46: NHS Bassetlaw | O46: NHS Hardwick | P46: NHS North East Lincolnshire | Q46: NHS Barnsley | R46: NHS Chorley & South Ribble | S46: NHS Newark & Sherwood | T46: NHS North Lincolnshire | U46: NHS Warwickshire North | V46: NHS Durham Dales, Easington & Sedgefield | W46: NHS St Helens
A47: 00C | B47: NHS Dartford, Gravesham & Swanley | C47: E38000043 | D47: E38000007 | E47: E38000104 | F47: E38000181 | G47: E38000054 | H47: E38000064 | I47: E38000010 | J47: E38000053 | K47: E38000155 | L47: E38000003 | M47: E38000139 | N47: NHS Basildon & Brentwood | O47: NHS Medway | P47: NHS Swindon | Q47: NHS East Surrey | R47: NHS Greater Huddersfield | S47: NHS Bedfordshire | T47: NHS East Staffordshire | U47: NHS South Gloucestershire | V47: NHS Aylesbury Vale | W47: NHS Redditch & Bromsgrove
A48: 09J | B48: NHS Doncaster | C48: E38000044 | D48: E38000075 | E48: E38000006 | F48: E38000047 | G48: E38000205 | H48: E38000141 | I48: E38000190 | J48: E38000103 | K48: E38000119 | L48: E38000042 | M48: E38000182 | N48: NHS Hartlepool & Stockton-on-Tees | O48: NHS Barnsley | P48: NHS Durham Dales, Easington & Sedgefield | Q48: NHS Wigan Borough | R48: NHS Rotherham | S48: NHS Wakefield | T48: NHS Mansfield & Ashfield | U48: NHS North East Lincolnshire | V48: NHS Darlington | W48: NHS Tameside & Glossop
A49: 02X | B49: NHS Dorset | C49: E38000045 | D49: E38000089 | E49: E38000213 | F49: E38000150 | G49: E38000129 | H49: E38000062 | I49: E38000198 | J49: E38000041 | K49: E38000026 | L49: E38000206 | M49: E38000169 | N49: NHS Kernow | O49: NHS Coastal West Sussex | P49: NHS Somerset | Q49: NHS Northern, Eastern & Western Devon | R49: NHS Gloucestershire | S49: NHS West Hampshire | T49: NHS Cumbria | U49: NHS Cambridgeshire & Peterborough | V49: NHS Wiltshire | W49: NHS Southern Derbyshire
A50: 11J | B50: NHS Dudley | C50: E38000046 | D50: E38000077 | E50: E38000174 | F50: E38000127 | G50: E38000149 | H50: E38000133 | I50: E38000205 | J50: E38000187 | K50: E38000153 | L50: E38000058 | M50: E38000103 | N50: NHS Havering | O50: NHS Stockport | P50: NHS North Tyneside | Q50: NHS Solihull | R50: NHS Nottingham North & East | S50: NHS Wigan Borough | T50: NHS Trafford | U50: NHS South East Staffs & Seisdon Peninsula | V50: NHS Erewash | W50: NHS Mansfield & Ashfield
A51: 05C | B51: NHS Durham Dales, Easington & Sedgefield | C51: E38000047 | D51: E38000044 | E51: E38000006 | F51: E38000190 | G51: E38000119 | H51: E38000042 | I51: E38000008 | J51: E38000141 | K51: E38000208 | L51: E38000075 | M51: E38000172 | N51: NHS Doncaster | O51: NHS Barnsley | P51: NHS Wakefield | Q51: NHS North East Lincolnshire | R51: NHS Darlington | S51: NHS Bassetlaw | T51: NHS Rotherham | U51: NHS Wirral | V51: NHS Hartlepool & Stockton-on-Tees | W51: NHS St Helens
A52: 00D | B52: NHS Ealing | C52: E38000048 | D52: E38000084 | E52: E38000020 | F52: E38000192 | G52: E38000105 | H52: E38000138 | I52: E38000082 | J52: E38000144 | K52: E38000074 | L52: E38000097 | M52: E38000013 | N52: NHS Hounslow | O52: NHS Brent | P52: NHS Waltham Forest | Q52: NHS Merton | R52: NHS Redbridge | S52: NHS Hillingdon | T52: NHS Sandwell & West Birmingham | U52: NHS Harrow | V52: NHS Leicester City | W52: NHS Birmingham South & Central
A53: 07W | B53: NHS East & North Hertfordshire | C53: E38000049 | D53: E38000010 | E53: E38000169 | F53: E38000079 | G53: E38000108 | H53: E38000106 | I53: E38000062 | J53: E38000206 | K53: E38000199 | L53: E38000198 | M53: E38000128 | N53: NHS Bedfordshire | O53: NHS Southern Derbyshire | P53: NHS Herts Valleys | Q53: NHS Nene | R53: NHS Mid Essex | S53: NHS Gloucestershire | T53: NHS Wiltshire | U53: NHS West Kent | V53: NHS West Hampshire | W53: NHS North West Surrey
A54: 06K | B54: NHS East Lancashire | C54: E38000050 | D54: E38000025 | E54: E38000095 | F54: E38000016 | G54: E38000065 | H54: E38000175 | I54: E38000080 | J54: E38000135 | K54: E38000162 | L54: E38000019 | M54: E38000182 | N54: NHS Calderdale | O54: NHS Leeds South & East | P54: NHS Bolton | Q54: NHS Greater Preston | R54: NHS Stoke on Trent | S54: NHS Heywood, Middleton & Rochdale | T54: NHS Oldham | U54: NHS South Tees | V54: NHS Bradford Districts | W54: NHS Tameside & Glossop
A55: 01A | B55: NHS East Leicestershire & Rutland | C55: E38000051 | D55: E38000106 | E55: E38000166 | F55: E38000214 | G55: E38000083 | H55: E38000164 | I55: E38000125 | J55: E38000206 | K55: E38000086 | L55: E38000159 | M55: E38000177 | N55: NHS Mid Essex | O55: NHS South Worcestershire | P55: NHS Guildford & Waverley | Q55: NHS Horsham & Mid Sussex | R55: NHS South Warwickshire | S55: NHS North Somerset | T55: NHS Wiltshire | U55: NHS Ipswich & East Suffolk | V55: NHS South Norfolk | W55: NHS Surrey Downs
A56: 03W | B56: NHS East Riding of Yorkshire | C56: E38000052 | D56: E38000166 | E56: E38000130 | F56: E38000164 | G56: E38000115 | H56: E38000063 | I56: E38000204 | J56: E38000159 | K56: E38000086 | L56: E38000147 | M56: E38000157 | N56: NHS South Worcestershire | O56: NHS Northumberland | P56: NHS South Warwickshire | Q56: NHS North Derbyshire | R56: NHS Great Yarmouth & Waveney | S56: NHS West Suffolk | T56: NHS South Norfolk | U56: NHS Ipswich & East Suffolk | V56: NHS Shropshire | W56: NHS South Lincolnshire
A57: 02Y | B57: NHS East Staffordshire | C57: E38000053 | D57: E38000122 | E57: E38000180 | F57: E38000109 | G57: E38000002 | H57: E38000025 | I57: E38000165 | J57: E38000156 | K57: E38000151 | L57: E38000043 | M57: E38000195 | N57: NHS North Lincolnshire | O57: NHS Swale | P57: NHS Newark & Sherwood | Q57: NHS Ashford | R57: NHS Calderdale | S57: NHS South West Lincolnshire | T57: NHS South Kent Coast | U57: NHS South Cheshire | V57: NHS Dartford, Gravesham & Swanley | W57: NHS Warwickshire North
A58: 05D | B58: NHS East Surrey | C58: E38000054 | D58: E38000083 | E58: E38000120 | F58: E38000043 | G58: E38000110 | H58: E38000181 | I58: E38000007 | J58: E38000142 | K58: E38000003 | L58: E38000177 | M58: E38000155 | N58: NHS Horsham & Mid Sussex | O58: NHS North Hampshire | P58: NHS Dartford, Gravesham & Swanley | Q58: NHS Newbury & District | R58: NHS Swindon | S58: NHS Basildon & Brentwood | T58: NHS Rushcliffe | U58: NHS Aylesbury Vale | V58: NHS Surrey Downs | W58: NHS South Gloucestershire
A59: 09L | B59: NHS Eastbourne, Hailsham & Seaford | C59: E38000055 | D59: E38000060 | E59: E38000099 | F59: E38000087 | G59: E38000152 | H59: E38000203 | I59: E38000063 | J59: E38000124 | K59: E38000115 | L59: E38000126 | M59: E38000211 | N59: NHS Fylde & Wyre | O59: NHS Lincolnshire East | P59: NHS Isle of Wight | Q59: NHS South Devon & Torbay | R59: NHS West Norfolk | S59: NHS Great Yarmouth & Waveney | T59: NHS North Norfolk | U59: NHS North Derbyshire | V59: NHS North Staffordshire | W59: NHS Wyre Forest
A60: 09F | B60: NHS Eastern Cheshire | C60: E38000056 | D60: E38000125 | E60: E38000157 | F60: E38000211 | G60: E38000154 | H60: E38000115 | I60: E38000164 | J60: E38000166 | K60: E38000173 | L60: E38000051 | M60: E38000151 | N60: NHS North Somerset | O60: NHS South Lincolnshire | P60: NHS Wyre Forest | Q60: NHS South Eastern Hampshire | R60: NHS North Derbyshire | S60: NHS South Warwickshire | T60: NHS South Worcestershire | U60: NHS Stafford & Surrounds | V60: NHS East Leicestershire & Rutland | W60: NHS South Cheshire
A61: 01C | B61: NHS Enfield | C61: E38000057 | D61: E38000040 | E61: E38000066 | F61: E38000005 | G61: E38000185 | H61: E38000011 | I61: E38000004 | J61: E38000072 | K61: E38000107 | L61: E38000102 | M61: E38000179 | N61: NHS Croydon | O61: NHS Greenwich | P61: NHS Barnet | Q61: NHS Thurrock | R61: NHS Bexley | S61: NHS Barking & Dagenham | T61: NHS Haringey | U61: NHS Milton Keynes | V61: NHS Luton | W61: NHS Sutton
A62: 07X | B62: NHS Erewash | C62: E38000058 | D62: E38000133 | E62: E38000028 | F62: E38000127 | G62: E38000153 | H62: E38000071 | I62: E38000139 | J62: E38000034 | K62: E38000195 | L62: E38000134 | M62: E38000103 | N62: NHS Nottingham North & East | O62: NHS Cannock Chase | P62: NHS North Tyneside | Q62: NHS South East Staffs & Seisdon Peninsula | R62: NHS Hardwick | S62: NHS Redditch & Bromsgrove | T62: NHS Chorley & South Ribble | U62: NHS Warwickshire North | V62: NHS Nottingham West | W62: NHS Mansfield & Ashfield
A63: 03X | B63: NHS Fareham & Gosport | C63: E38000059 | D63: E38000030 | E63: E38000153 | F63: E38000155 | G63: E38000154 | H63: E38000083 | I63: E38000125 | J63: E38000133 | K63: E38000007 | L63: E38000058 | M63: E38000177 | N63: NHS Castle Point & Rochford | O63: NHS South East Staffs & Seisdon Peninsula | P63: NHS South Gloucestershire | Q63: NHS South Eastern Hampshire | R63: NHS Horsham & Mid Sussex | S63: NHS North Somerset | T63: NHS Nottingham North & East | U63: NHS Basildon & Brentwood | V63: NHS Erewash | W63: NHS Surrey Downs
A64: 10K | B64: NHS Fylde & Wyre | C64: E38000060 | D64: E38000152 | E64: E38000055 | F64: E38000211 | G64: E38000099 | H64: E38000056 | I64: E38000170 | J64: E38000154 | K64: E38000125 | L64: E38000087 | M64: E38000115 | N64: NHS South Devon & Torbay | O64: NHS Eastbourne, Hailsham & Seaford | P64: NHS Wyre Forest | Q64: NHS Lincolnshire East | R64: NHS Eastern Cheshire | S64: NHS Southport & Formby | T64: NHS South Eastern Hampshire | U64: NHS North Somerset | V64: NHS Isle of Wight | W64: NHS North Derbyshire
A65: 02M | B65: NHS Gloucestershire | C65: E38000062 | D65: E38000198 | E65: E38000150 | F65: E38000206 | G65: E38000169 | H65: E38000089 | I65: E38000049 | J65: E38000086 | K65: E38000106 | L65: E38000108 | M65: E38000199 | N65: NHS West Hampshire | O65: NHS Somerset | P65: NHS Wiltshire | Q65: NHS Southern Derbyshire | R65: NHS Kernow | S65: NHS East & North Hertfordshire | T65: NHS Ipswich & East Suffolk | U65: NHS Mid Essex | V65: NHS Nene | W65: NHS West Kent
A66: 11M | B66: NHS Great Yarmouth & Waveney | C66: E38000063 | D66: E38000156 | E66: E38000099 | F66: E38000203 | G66: E38000076 | H66: E38000052 | I66: E38000166 | J66: E38000087 | K66: E38000130 | L66: E38000115 | M66: E38000117 | N66: NHS South Kent Coast | O66: NHS Lincolnshire East | P66: NHS West Norfolk | Q66: NHS Hastings & Rother | R66: NHS East Riding of Yorkshire | S66: NHS South Worcestershire | T66: NHS Isle of Wight | U66: NHS Northumberland | V66: NHS North Derbyshire | W66: NHS North East Essex
A67: 06M | B67: NHS Greater Huddersfield | C67: E38000064 | D67: E38000183 | E67: E38000043 | F67: E38000195 | G67: E38000104 | H67: E38000025 | I67: E38000075 | J67: E38000194 | K67: E38000139 | L67: E38000182 | M67: E38000044 | N67: NHS Telford & Wrekin | O67: NHS Dartford, Gravesham & Swanley | P67: NHS Warwickshire North | Q67: NHS Medway | R67: NHS Calderdale | S67: NHS Hartlepool & Stockton-on-Tees | T67: NHS Warrington | U67: NHS Redditch & Bromsgrove | V67: NHS Tameside & Glossop | W67: NHS Doncaster
A68: 03A | B68: NHS Greater Preston | C68: E38000065 | D68: E38000050 | E68: E38000094 | F68: E38000162 | G68: E38000095 | H68: E38000175 | I68: E38000025 | J68: E38000100 | K68: E38000119 | L68: E38000200 | M68: E38000182 | N68: NHS East Lancashire | O68: NHS Leeds North | P68: NHS South Tees | Q68: NHS Leeds South & East | R68: NHS Stoke on Trent | S68: NHS Calderdale | T68: NHS Lincolnshire West | U68: NHS North East Lincolnshire | V68: NHS West Lancashire | W68: NHS Tameside & Glossop
A69: 01E | B69: NHS Greenwich | C69: E38000066 | D69: E38000192 | E69: E38000040 | F69: E38000072 | G69: E38000004 | H69: E38000057 | I69: E38000098 | J69: E38000020 | K69: E38000123 | L69: E38000144 | M69: E38000105 | N69: NHS Waltham Forest | O69: NHS Croydon | P69: NHS Haringey | Q69: NHS Barking & Dagenham | R69: NHS Enfield | S69: NHS Lewisham | T69: NHS Brent | U69: NHS North Manchester | V69: NHS Sandwell & West Birmingham | W69: NHS Merton
A70: 08A | B70: NHS Halton | C70: E38000068 | D70: E38000182 | E70: E38000141 | F70: E38000172 | G70: E38000037 | H70: E38000161 | I70: E38000075 | J70: E38000175 | K70: E38000006 | L70: E38000103 | M70: E38000183 | N70: NHS Tameside & Glossop | O70: NHS Rotherham | P70: NHS St Helens | Q70: NHS Corby | R70: NHS South Sefton | S70: NHS Hartlepool & Stockton-on-Tees | T70: NHS Stoke on Trent | U70: NHS Barnsley | V70: NHS Mansfield & Ashfield | W70: NHS Telford & Wrekin
A71: 09N | B71: NHS Hambleton, Richmondshire & Whitby | C71: E38000069 | D71: E38000078 | E71: E38000157 | F71: E38000204 | G71: E38000159 | H71: E38000147 | I71: E38000165 | J71: E38000173 | K71: E38000081 | L71: E38000087 | M71: E38000052 | N71: NHS Herefordshire | O71: NHS South Lincolnshire | P71: NHS West Suffolk | Q71: NHS South Norfolk | R71: NHS Shropshire | S71: NHS South West Lincolnshire | T71: NHS Stafford & Surrounds | U71: NHS High Weald Lewes Havens | V71: NHS Isle of Wight | W71: NHS East Riding of Yorkshire
A72: 01F | B72: NHS Hammersmith & Fulham | C72: E38000070 | D72: E38000193 | E72: E38000088 | F72: E38000035 | G72: E38000105 | H72: E38000092 | I72: E38000171 | J72: E38000192 | K72: E38000048 | L72: E38000027 | M72: E38000020 | N72: NHS Wandsworth | O72: NHS Islington | P72: NHS City & Hackney | Q72: NHS Merton | R72: NHS Lambeth | S72: NHS Southwark | T72: NHS Waltham Forest | U72: NHS Ealing | V72: NHS Camden | W72: NHS Brent
A73: 03D | B73: NHS Hardwick | C73: E38000071 | D73: E38000008 | E73: E38000109 | F73: E38000034 | G73: E38000042 | H73: E38000103 | I73: E38000195 | J73: E38000058 | K73: E38000006 | L73: E38000133 | M73: E38000119 | N73: NHS Bassetlaw | O73: NHS Newark & Sherwood | P73: NHS Chorley & South Ribble | Q73: NHS Darlington | R73: NHS Mansfield & Ashfield | S73: NHS Warwickshire North | T73: NHS Erewash | U73: NHS Barnsley | V73: NHS Nottingham North & East | W73: NHS North East Lincolnshire
A74: 08C | B74: NHS Haringey | C74: E38000072 | D74: E38000066 | E74: E38000040 | F74: E38000098 | G74: E38000192 | H74: E38000057 | I74: E38000020 | J74: E38000035 | K74: E38000088 | L74: E38000193 | M74: E38000004 | N74: NHS Greenwich | O74: NHS Croydon | P74: NHS Lewisham | Q74: NHS Waltham Forest | R74: NHS Enfield | S74: NHS Brent | T74: NHS City & Hackney | U74: NHS Islington | V74: NHS Wandsworth | W74: NHS Barking & Dagenham
A75: 03Y | B75: NHS Harrogate & Rural District | C75: E38000073 | D75: E38000164 | E75: E38000081 | F75: E38000165 | G75: E38000166 | H75: E38000157 | I75: E38000052 | J75: E38000125 | K75: E38000196 | L75: E38000056 | M75: E38000159 | N75: NHS South Warwickshire | O75: NHS High Weald Lewes Havens | P75: NHS South West Lincolnshire | Q75: NHS South Worcestershire | R75: NHS South Lincolnshire | S75: NHS East Riding of Yorkshire | T75: NHS North Somerset | U75: NHS West Cheshire | V75: NHS Eastern Cheshire | W75: NHS South Norfolk
A76: 08D | B76: NHS Harrow | C76: E38000074 | D76: E38000138 | E76: E38000082 | F76: E38000084 | G76: E38000005 | H76: E38000148 | I76: E38000048 | J76: E38000090 | K76: E38000102 | L76: E38000179 | M76: E38000105 | N76: NHS Redbridge | O76: NHS Hillingdon | P76: NHS Hounslow | Q76: NHS Barnet | R76: NHS Slough | S76: NHS Ealing | T76: NHS Kingston | U76: NHS Luton | V76: NHS Sutton | W76: NHS Merton
A77: 03E | B77: NHS Hartlepool & Stockton-on-Tees | C77: E38000075 | D77: E38000205 | E77: E38000044 | F77: E38000006 | G77: E38000141 | H77: E38000103 | I77: E38000190 | J77: E38000182 | K77: E38000194 | L77: E38000183 | M77: E38000172 | N77: NHS Wigan Borough | O77: NHS Doncaster | P77: NHS Barnsley | Q77: NHS Rotherham | R77: NHS Mansfield & Ashfield | S77: NHS Wakefield | T77: NHS Tameside & Glossop | U77: NHS Warrington | V77: NHS Telford & Wrekin | W77: NHS St Helens
A78: 08E | B78: NHS Hastings & Rother | C78: E38000076 | D78: E38000203 | E78: E38000063 | F78: E38000156 | G78: E38000087 | H78: E38000145 | I78: E38000099 | J78: E38000078 | K78: E38000130 | L78: E38000055 | M78: E38000052 | N78: NHS West Norfolk | O78: NHS Great Yarmouth & Waveney | P78: NHS South Kent Coast | Q78: NHS Isle of Wight | R78: NHS Scarborough & Ryedale | S78: NHS Lincolnshire East | T78: NHS Herefordshire | U78: NHS Northumberland | V78: NHS Eastbourne, Hailsham & Seaford | W78: NHS East Riding of Yorkshire
A79: 00K | B79: NHS Havering | C79: E38000077 | D79: E38000046 | E79: E38000023 | F79: E38000149 | G79: E38000011 | H79: E38000187 | I79: E38000059 | J79: E38000007 | K79: E38000133 | L79: E38000155 | M79: E38000153 | N79: NHS Dudley | O79: NHS Bromley | P79: NHS Solihull | Q79: NHS Bexley | R79: NHS Trafford | S79: NHS Fareham & Gosport | T79: NHS Basildon & Brentwood | U79: NHS Nottingham North & East | V79: NHS South Gloucestershire | W79: NHS South East Staffs & Seisdon Peninsula
A80: 09P | B80: NHS Herefordshire | C80: E38000078 | D80: E38000069 | E80: E38000204 | F80: E38000203 | G80: E38000147 | H80: E38000159 | I80: E38000052 | J80: E38000087 | K80: E38000165 | L80: E38000156 | M80: E38000063 | N80: NHS Hambleton, Richmondshire & Whitby | O80: NHS West Suffolk | P80: NHS West Norfolk | Q80: NHS Shropshire | R80: NHS South Norfolk | S80: NHS East Riding of Yorkshire | T80: NHS Isle of Wight | U80: NHS South West Lincolnshire | V80: NHS South Kent Coast | W80: NHS Great Yarmouth & Waveney
A81: 08F | B81: NHS Herts Valleys | C81: E38000079 | D81: E38000049 | E81: E38000108 | F81: E38000010 | G81: E38000033 | H81: E38000128 | I81: E38000169 | J81: E38000106 | K81: E38000023 | L81: E38000062 | M81: E38000197 | N81: NHS East & North Hertfordshire | O81: NHS Nene | P81: NHS Bedfordshire | Q81: NHS Chiltern | R81: NHS North West Surrey | S81: NHS Southern Derbyshire | T81: NHS Mid Essex | U81: NHS Bromley | V81: NHS Gloucestershire | W81: NHS West Essex
A82: 05F | B82: NHS Heywood, Middleton & Rochdale | C82: E38000080 | D82: E38000016 | E82: E38000135 | F82: E38000019 | G82: E38000175 | H82: E38000162 | I82: E38000024 | J82: E38000182 | K82: E38000095 | L82: E38000191 | M82: E38000050 | N82: NHS Bolton | O82: NHS Oldham | P82: NHS Bradford Districts | Q82: NHS Stoke on Trent | R82: NHS South Tees | S82: NHS Bury | T82: NHS Tameside & Glossop | U82: NHS Leeds South & East | V82: NHS Walsall | W82: NHS East Lancashire
A83: 06N | B83: NHS High Weald Lewes Havens | C83: E38000081 | D83: E38000165 | E83: E38000159 | F83: E38000157 | G83: E38000204 | H83: E38000069 | I83: E38000166 | J83: E38000142 | K83: E38000125 | L83: E38000164 | M83: E38000073 | N83: NHS South West Lincolnshire | O83: NHS South Norfolk | P83: NHS South Lincolnshire | Q83: NHS West Suffolk | R83: NHS Hambleton, Richmondshire & Whitby | S83: NHS South Worcestershire | T83: NHS Rushcliffe | U83: NHS North Somerset | V83: NHS South Warwickshire | W83: NHS Harrogate & Rural District
A84: 01D | B84: NHS Hillingdon | C84: E38000082 | D84: E38000005 | E84: E38000102 | F84: E38000138 | G84: E38000210 | H84: E38000038 | I84: E38000084 | J84: E38000179 | K84: E38000039 | L84: E38000019 | M84: E38000090 | N84: NHS Barnet | O84: NHS Luton | P84: NHS Redbridge | Q84: NHS Wolverhampton | R84: NHS Coventry & Rugby | S84: NHS Hounslow | T84: NHS Sutton | U84: NHS Crawley | V84: NHS Bradford Districts | W84: NHS Kingston
A85: 99K | B85: NHS Horsham & Mid Sussex | C85: E38000083 | D85: E38000177 | E85: E38000054 | F85: E38000142 | G85: E38000051 | H85: E38000155 | I85: E38000125 | J85: E38000120 | K85: E38000106 | L85: E38000007 | M85: E38000214 | N85: NHS Surrey Downs | O85: NHS East Surrey | P85: NHS Rushcliffe | Q85: NHS East Leicestershire & Rutland | R85: NHS South Gloucestershire | S85: NHS North Somerset | T85: NHS North Hampshire | U85: NHS Mid Essex | V85: NHS Basildon & Brentwood | W85: NHS Guildford & Waverley
A86: 08G | B86: NHS Hounslow | C86: E38000084 | D86: E38000048 | E86: E38000138 | F86: E38000082 | G86: E38000105 | H86: E38000074 | I86: E38000102 | J86: E38000148 | K86: E38000013 | L86: E38000192 | M86: E38000020 | N86: NHS Ealing | O86: NHS Redbridge | P86: NHS Hillingdon | Q86: NHS Merton | R86: NHS Harrow | S86: NHS Luton | T86: NHS Slough | U86: NHS Birmingham South & Central | V86: NHS Waltham Forest | W86: NHS Brent
A87: 09X | B87: NHS Hull | C87: E38000085 | D87: E38000175 | E87: E38000143 | F87: E38000182 | G87: E38000176 | H87: E38000162 | I87: E38000075 | J87: E38000141 | K87: E38000068 | L87: E38000190 | M87: E38000006 | N87: NHS Stoke on Trent | O87: NHS Salford | P87: NHS Tameside & Glossop | Q87: NHS Sunderland | R87: NHS South Tees | S87: NHS Hartlepool & Stockton-on-Tees | T87: NHS Rotherham | U87: NHS Halton | V87: NHS Wakefield | W87: NHS Barnsley
A88: 07Y | B88: NHS Ipswich & East Suffolk | C88: E38000086 | D88: E38000206 | E88: E38000166 | F88: E38000204 | G88: E38000159 | H88: E38000052 | I88: E38000199 | J88: E38000106 | K88: E38000051 | L88: E38000150 | M88: E38000130 | N88: NHS Wiltshire | O88: NHS South Worcestershire | P88: NHS West Suffolk | Q88: NHS South Norfolk | R88: NHS East Riding of Yorkshire | S88: NHS West Kent | T88: NHS Mid Essex | U88: NHS East Leicestershire & Rutland | V88: NHS Somerset | W88: NHS Northumberland
A89: 03F | B89: NHS Isle of Wight | C89: E38000087 | D89: E38000203 | E89: E38000099 | F89: E38000076 | G89: E38000063 | H89: E38000055 | I89: E38000069 | J89: E38000078 | K89: E38000156 | L89: E38000052 | M89: E38000130 | N89: NHS West Norfolk | O89: NHS Lincolnshire East | P89: NHS Hastings & Rother | Q89: NHS Great Yarmouth & Waveney | R89: NHS Eastbourne, Hailsham & Seaford | S89: NHS Hambleton, Richmondshire & Whitby | T89: NHS Herefordshire | U89: NHS South Kent Coast | V89: NHS East Riding of Yorkshire | W89: NHS Northumberland
A90: 06L | B90: NHS Islington | C90: E38000088 | D90: E38000202 | E90: E38000193 | F90: E38000070 | G90: E38000072 | H90: E38000027 | I90: E38000031 | J90: E38000035 | K90: E38000186 | L90: E38000098 | M90: E38000020 | N90: NHS West London | O90: NHS Wandsworth | P90: NHS Hammersmith & Fulham | Q90: NHS Haringey | R90: NHS Camden | S90: NHS Central London (Westminster) | T90: NHS City & Hackney | U90: NHS Tower Hamlets | V90: NHS Lewisham | W90: NHS Brent
A91: 10L | B91: NHS Kernow | C91: E38000089 | D91: E38000150 | E91: E38000041 | F91: E38000213 | G91: E38000062 | H91: E38000045 | I91: E38000198 | J91: E38000130 | K91: E38000052 | L91: E38000117 | M91: E38000086 | N91: NHS Somerset | O91: NHS Cumbria | P91: NHS Coastal West Sussex | Q91: NHS Gloucestershire | R91: NHS Dorset | S91: NHS West Hampshire | T91: NHS Northumberland | U91: NHS East Riding of Yorkshire | V91: NHS North East Essex | W91: NHS Ipswich & East Suffolk
A92: 08H | B92: NHS Kingston | C92: E38000090 | D92: E38000179 | E92: E38000207 | F92: E38000039 | G92: E38000118 | H92: E38000181 | I92: E38000005 | J92: E38000082 | K92: E38000077 | L92: E38000178 | M92: E38000128 | N92: NHS Sutton | O92: NHS Windsor, Ascot & Maidenhead | P92: NHS Crawley | Q92: NHS North East Hampshire & Farnham | R92: NHS Swindon | S92: NHS Barnet | T92: NHS Hillingdon | U92: NHS Havering | V92: NHS Surrey Heath | W92: NHS North West Surrey
A93: 11N | B93: NHS Knowsley | C93: E38000091 | D93: E38000162 | E93: E38000015 | F93: E38000068 | G93: E38000176 | H93: E38000161 | I93: E38000175 | J93: E38000085 | K93: E38000080 | L93: E38000037 | M93: E38000182 | N93: NHS South Tees | O93: NHS Blackpool | P93: NHS Halton | Q93: NHS Sunderland | R93: NHS South Sefton | S93: NHS Stoke on Trent | T93: NHS Hull | U93: NHS Heywood, Middleton & Rochdale | V93: NHS Corby | W93: NHS Tameside & Glossop
A94: 08J | B94: NHS Lambeth | C94: E38000092 | D94: E38000171 | E94: E38000035 | F94: E38000098 | G94: E38000070 | H94: E38000192 | I94: E38000193 | J94: E38000020 | K94: E38000072 | L94: E38000066 | M94: E38000113 | N94: NHS Southwark | O94: NHS City & Hackney | P94: NHS Lewisham | Q94: NHS Hammersmith & Fulham | R94: NHS Waltham Forest | S94: NHS Wandsworth | T94: NHS Brent | U94: NHS Haringey | V94: NHS Greenwich | W94: NHS Newham
A95: 01J | B95: NHS Lancashire North | C95: E38000093 | D95: E38000029 | E95: E38000009 | F95: E38000065 | G95: E38000021 | H95: E38000096 | I95: E38000131 | J95: E38000116 | K95: E38000196 | L95: E38000100 | M95: E38000167 | N95: NHS Canterbury & Coastal | O95: NHS Bath & North East Somerset | P95: NHS Greater Preston | Q95: NHS Brighton & Hove | R95: NHS Leeds West | S95: NHS Norwich | T95: NHS North Durham | U95: NHS West Cheshire | V95: NHS Lincolnshire West | W95: NHS Southampton
A96: 08K | B96: NHS Leeds North | C96: E38000094 | D96: E38000095 | E96: E38000197 | F96: E38000025 | G96: E38000064 | H96: E38000065 | I96: E38000114 | J96: E38000024 | K96: E38000001 | L96: E38000195 | M96: E38000196 | N96: NHS Leeds South & East | O96: NHS West Essex | P96: NHS Calderdale | Q96: NHS Greater Huddersfield | R96: NHS Greater Preston | S96: NHS North & West Reading | T96: NHS Bury | U96: NHS Airedale, Wharfedale & Craven | V96: NHS Warwickshire North | W96: NHS West Cheshire
A97: 01K | B97: NHS Leeds South & East | C97: E38000095 | D97: E38000175 | E97: E38000050 | F97: E38000094 | G97: E38000016 | H97: E38000080 | I97: E38000025 | J97: E38000024 | K97: E38000182 | L97: E38000143 | M97: E38000162 | N97: NHS Stoke on Trent | O97: NHS East Lancashire | P97: NHS Leeds North | Q97: NHS Bolton | R97: NHS Heywood, Middleton & Rochdale | S97: NHS Calderdale | T97: NHS Bury | U97: NHS Tameside & Glossop | V97: NHS Salford | W97: NHS South Tees
A98: 02V | B98: NHS Leeds West | C98: E38000096 | D98: E38000167 | E98: E38000132 | F98: E38000029 | G98: E38000093 | H98: E38000021 | I98: E38000137 | J98: E38000131 | K98: E38000022 | L98: E38000116 | M98: E38000146 | N98: NHS Southampton | O98: NHS Nottingham City | P98: NHS Canterbury & Coastal | Q98: NHS Lancashire North | R98: NHS Brighton & Hove | S98: NHS Portsmouth | T98: NHS Norwich | U98: NHS Bristol | V98: NHS North Durham | W98: NHS Sheffield
A99: 03G | B99: NHS Leicester City | C99: E38000097 | D99: E38000013 | E99: E38000144 | F99: E38000032 | G99: E38000014 | H99: E38000084 | I99: E38000048 | J99: E38000082 | K99: E38000102 | L99: E38000160 | M99: E38000135 | N99: NHS Birmingham South & Central | O99: NHS Sandwell & West Birmingham | P99: NHS Central Manchester | Q99: NHS Blackburn with Darwen | R99: NHS Hounslow | S99: NHS Ealing | T99: NHS Hillingdon | U99: NHS Luton | V99: NHS South Reading | W99: NHS Oldham
A100: 03C | B100: NHS Lewisham | C100: E38000098 | D100: E38000035 | E100: E38000072 | F100: E38000066 | G100: E38000192 | H100: E38000171 | I100: E38000040 | J100: E38000020 | K100: E38000092 | L100: E38000004 | M100: E38000193 | N100: NHS City & Hackney | O100: NHS Haringey | P100: NHS Greenwich | Q100: NHS Waltham Forest | R100: NHS Southwark | S100: NHS Croydon | T100: NHS Brent | U100: NHS Lambeth | V100: NHS Barking & Dagenham | W100: NHS Wandsworth
A101: 04C | B101: NHS Lincolnshire East | C101: E38000099 | D101: E38000063 | E101: E38000152 | F101: E38000115 | G101: E38000203 | H101: E38000087 | I101: E38000055 | J101: E38000130 | K101: E38000076 | L101: E38000211 | M101: E38000156 | N101: NHS Great Yarmouth & Waveney | O101: NHS South Devon & Torbay | P101: NHS North Derbyshire | Q101: NHS West Norfolk | R101: NHS Isle of Wight | S101: NHS Eastbourne, Hailsham & Seaford | T101: NHS Northumberland | U101: NHS Hastings & Rother | V101: NHS Wyre Forest | W101: NHS South Kent Coast
A102: 08L | B102: NHS Lincolnshire West | C102: E38000100 | D102: E38000156 | E102: E38000119 | F102: E38000126 | G102: E38000116 | H102: E38000122 | I102: E38000109 | J102: E38000196 | K102: E38000151 | L102: E38000117 | M102: E38000166 | N102: NHS South Kent Coast | O102: NHS North East Lincolnshire | P102: NHS North Staffordshire | Q102: NHS North Durham | R102: NHS North Lincolnshire | S102: NHS Newark & Sherwood | T102: NHS West Cheshire | U102: NHS South Cheshire | V102: NHS North East Essex | W102: NHS South Worcestershire
A103: 03T | B103: NHS Liverpool | C103: E38000101 | D103: E38000143 | E103: E38000022 | F103: E38000021 | G103: E38000085 | H103: E38000146 | I103: E38000176 | J103: E38000212 | K103: E38000162 | L103: E38000175 | M103: E38000158 | N103: NHS Salford | O103: NHS Bristol | P103: NHS Brighton & Hove | Q103: NHS Hull | R103: NHS Sheffield | S103: NHS Sunderland | T103: NHS Newcastle Gateshead | U103: NHS South Tees | V103: NHS Stoke on Trent | W103: NHS South Manchester
A104: 04D | B104: NHS Luton | C104: E38000102 | D104: E38000148 | E104: E38000138 | F104: E38000013 | G104: E38000082 | H104: E38000121 | I104: E38000019 | J104: E38000135 | K104: E38000144 | L104: E38000084 | M104: E38000014 | N104: NHS Slough | O104: NHS Redbridge | P104: NHS Birmingham South & Central | Q104: NHS Hillingdon | R104: NHS North Kirklees | S104: NHS Bradford Districts | T104: NHS Oldham | U104: NHS Sandwell & West Birmingham | V104: NHS Hounslow | W104: NHS Blackburn with Darwen
A105: 99A | B105: NHS Mansfield & Ashfield | C105: E38000103 | D105: E38000006 | E105: E38000172 | F105: E38000127 | G105: E38000205 | H105: E38000075 | I105: E38000071 | J105: E38000034 | K105: E38000141 | L105: E38000044 | M105: E38000058 | N105: NHS Barnsley | O105: NHS St Helens | P105: NHS North Tyneside | Q105: NHS Wigan Borough | R105: NHS Hartlepool & Stockton-on-Tees | S105: NHS Hardwick | T105: NHS Chorley & South Ribble | U105: NHS Rotherham | V105: NHS Doncaster | W105: NHS Erewash
A106: 06P | B106: NHS Medway | C106: E38000104 | D106: E38000043 | E106: E38000064 | F106: E38000183 | G106: E38000181 | H106: E38000194 | I106: E38000007 | J106: E38000075 | K106: E38000180 | L106: E38000139 | M106: E38000010 | N106: NHS Dartford, Gravesham & Swanley | O106: NHS Greater Huddersfield | P106: NHS Telford & Wrekin | Q106: NHS Swindon | R106: NHS Warrington | S106: NHS Basildon & Brentwood | T106: NHS Hartlepool & Stockton-on-Tees | U106: NHS Swale | V106: NHS Redditch & Bromsgrove | W106: NHS Bedfordshire
A107: 04E | B107: NHS Merton | C107: E38000105 | D107: E38000084 | E107: E38000048 | F107: E38000179 | G107: E38000082 | H107: E38000140 | I107: E38000193 | J107: E38000114 | K107: E38000090 | L107: E38000192 | M107: E38000005 | N107: NHS Hounslow | O107: NHS Ealing | P107: NHS Sutton | Q107: NHS Hillingdon | R107: NHS Richmond | S107: NHS Wandsworth | T107: NHS North & West Reading | U107: NHS Kingston | V107: NHS Waltham Forest | W107: NHS Barnet
A108: 09W | B108: NHS Mid Essex | C108: E38000106 | D108: E38000206 | E108: E38000051 | F108: E38000010 | G108: E38000083 | H108: E38000086 | I108: E38000007 | J108: E38000120 | K108: E38000177 | L108: E38000214 | M108: E38000033 | N108: NHS Wiltshire | O108: NHS East Leicestershire & Rutland | P108: NHS Bedfordshire | Q108: NHS Horsham & Mid Sussex | R108: NHS Ipswich & East Suffolk | S108: NHS Basildon & Brentwood | T108: NHS North Hampshire | U108: NHS Surrey Downs | V108: NHS Guildford & Waverley | W108: NHS Chiltern
A109: 08R | B109: NHS Milton Keynes | C109: E38000107 | D109: E38000185 | E109: E38000039 | F109: E38000181 | G109: E38000017 | H109: E38000005 | I109: E38000179 | J109: E38000011 | K109: E38000023 | L109: E38000118 | M109: E38000043 | N109: NHS Thurrock | O109: NHS Crawley | P109: NHS Swindon | Q109: NHS Bracknell & Ascot | R109: NHS Barnet | S109: NHS Sutton | T109: NHS Bexley | U109: NHS Bromley | V109: NHS North East Hampshire & Farnham | W109: NHS Dartford, Gravesham & Swanley
A110: 06Q | B110: NHS Nene | C110: E38000108 | D110: E38000169 | E110: E38000049 | F110: E38000079 | G110: E38000010 | H110: E38000062 | I110: E38000026 | J110: E38000136 | K110: E38000150 | L110: E38000206 | M110: E38000106 | N110: NHS Southern Derbyshire | O110: NHS East & North Hertfordshire | P110: NHS Herts Valleys | Q110: NHS Bedfordshire | R110: NHS Gloucestershire | S110: NHS Cambridgeshire & Peterborough | T110: NHS Oxfordshire | U110: NHS Somerset | V110: NHS Wiltshire | W110: NHS Mid Essex
A111: 04F | B111: NHS Newark & Sherwood | C111: E38000109 | D111: E38000008 | E111: E38000151 | F111: E38000122 | G111: E38000195 | H111: E38000211 | I111: E38000071 | J111: E38000034 | K111: E38000139 | L111: E38000156 | M111: E38000126 | N111: NHS Bassetlaw | O111: NHS South Cheshire | P111: NHS North Lincolnshire | Q111: NHS Warwickshire North | R111: NHS Wyre Forest | S111: NHS Hardwick | T111: NHS Chorley & South Ribble | U111: NHS Redditch & Bromsgrove | V111: NHS South Kent Coast | W111: NHS North Staffordshire
A112: 04G | B112: NHS Newbury & District | C112: E38000110 | D112: E38000002 | E112: E38000003 | F112: E38000120 | G112: E38000054 | H112: E38000197 | I112: E38000053 | J112: E38000083 | K112: E38000165 | L112: E38000151 | M112: E38000214 | N112: NHS Ashford | O112: NHS Aylesbury Vale | P112: NHS North Hampshire | Q112: NHS East Surrey | R112: NHS West Essex | S112: NHS East Staffordshire | T112: NHS Horsham & Mid Sussex | U112: NHS South West Lincolnshire | V112: NHS South Cheshire | W112: NHS Guildford & Waverley
A113: 04H | B113: NHS Newham | C113: E38000113 | D113: E38000192 | E113: E38000020 | F113: E38000048 | G113: E38000035 | H113: E38000186 | I113: E38000084 | J113: E38000097 | K113: E38000144 | L113: E38000171 | M113: E38000013 | N113: NHS Waltham Forest | O113: NHS Brent | P113: NHS Ealing | Q113: NHS City & Hackney | R113: NHS Tower Hamlets | S113: NHS Hounslow | T113: NHS Leicester City | U113: NHS Sandwell & West Birmingham | V113: NHS Southwark | W113: NHS Birmingham South & Central
A114: 10M | B114: NHS North & West Reading | C114: E38000114 | D114: E38000189 | E114: E38000197 | F114: E38000118 | G114: E38000094 | H114: E38000120 | I114: E38000207 | J114: E38000024 | K114: E38000187 | L114: E38000110 | M114: E38000168 | N114: NHS Vale Royal | O114: NHS West Essex | P114: NHS North East Hampshire & Farnham | Q114: NHS Leeds North | R114: NHS North Hampshire | S114: NHS Windsor, Ascot & Maidenhead | T114: NHS Bury | U114: NHS Trafford | V114: NHS Newbury & District | W114: NHS Southend
A115: 13T | B115: NHS North Derbyshire | C115: E38000115 | D115: E38000130 | E115: E38000126 | F115: E38000166 | G115: E38000052 | H115: E38000117 | I115: E38000099 | J115: E38000056 | K115: E38000211 | L115: E38000109 | M115: E38000173 | N115: NHS Northumberland | O115: NHS North Staffordshire | P115: NHS South Worcestershire | Q115: NHS East Riding of Yorkshire | R115: NHS North East Essex | S115: NHS Lincolnshire East | T115: NHS Eastern Cheshire | U115: NHS Wyre Forest | V115: NHS Newark & Sherwood | W115: NHS Stafford & Surrounds
A116: 08M | B116: NHS North Durham | C116: E38000116 | D116: E38000100 | E116: E38000126 | F116: E38000212 | G116: E38000131 | H116: E38000029 | I116: E38000201 | J116: E38000117 | K116: E38000119 | L116: E38000196 | M116: E38000006 | N116: NHS Lincolnshire West | O116: NHS North Staffordshire | P116: NHS Newcastle Gateshead | Q116: NHS Norwich | R116: NHS Canterbury & Coastal | S116: NHS West Leicestershire | T116: NHS North East Essex | U116: NHS North East Lincolnshire | V116: NHS West Cheshire | W116: NHS Barnsley
A117: 10N | B117: NHS North East Essex | C117: E38000117 | D117: E38000196 | E117: E38000166 | F117: E38000115 | G117: E38000154 | H117: E38000126 | I117: E38000201 | J117: E38000151 | K117: E38000052 | L117: E38000152 | M117: E38000063 | N117: NHS West Cheshire | O117: NHS South Worcestershire | P117: NHS North Derbyshire | Q117: NHS South Eastern Hampshire | R117: NHS North Staffordshire | S117: NHS West Leicestershire | T117: NHS South Cheshire | U117: NHS East Riding of Yorkshire | V117: NHS South Devon & Torbay | W117: NHS Great Yarmouth & Waveney
A118: 04J | B118: NHS North East Hampshire & Farnham | C118: E38000118 | D118: E38000120 | E118: E38000207 | F118: E38000209 | G118: E38000033 | H118: E38000017 | I118: E38000007 | J118: E38000181 | K118: E38000177 | L118: E38000155 | M118: E38000178 | N118: NHS North Hampshire | O118: NHS Windsor, Ascot & Maidenhead | P118: NHS Wokingham | Q118: NHS Chiltern | R118: NHS Bracknell & Ascot | S118: NHS Basildon & Brentwood | T118: NHS Swindon | U118: NHS Surrey Downs | V118: NHS South Gloucestershire | W118: NHS Surrey Heath
A119: 00J | B119: NHS North East Lincolnshire | C119: E38000119 | D119: E38000006 | E119: E38000184 | F119: E38000008 | G119: E38000042 | H119: E38000195 | I119: E38000200 | J119: E38000071 | K119: E38000109 | L119: E38000044 | M119: E38000172 | N119: NHS Barnsley | O119: NHS Thanet | P119: NHS Bassetlaw | Q119: NHS Darlington | R119: NHS Warwickshire North | S119: NHS West Lancashire | T119: NHS Hardwick | U119: NHS Newark & Sherwood | V119: NHS Doncaster | W119: NHS St Helens
A120: 06T | B120: NHS North Hampshire | C120: E38000120 | D120: E38000118 | E120: E38000110 | F120: E38000054 | G120: E38000007 | H120: E38000083 | I120: E38000033 | J120: E38000197 | K120: E38000181 | L120: E38000106 | M120: E38000003 | N120: NHS North East Hampshire & Farnham | O120: NHS Newbury & District | P120: NHS East Surrey | Q120: NHS Basildon & Brentwood | R120: NHS Horsham & Mid Sussex | S120: NHS Chiltern | T120: NHS West Essex | U120: NHS Swindon | V120: NHS Mid Essex | W120: NHS Aylesbury Vale
A121: 99M | B121: NHS North Kirklees | C121: E38000121 | D121: E38000135 | E121: E38000019 | F121: E38000191 | G121: E38000039 | H121: E38000080 | I121: E38000014 | J121: E38000016 | K121: E38000064 | L121: E38000102 | M121: E38000183 | N121: NHS Oldham | O121: NHS Bradford Districts | P121: NHS Walsall | Q121: NHS Crawley | R121: NHS Heywood, Middleton & Rochdale | S121: NHS Blackburn with Darwen | T121: NHS Bolton | U121: NHS Greater Huddersfield | V121: NHS Luton | W121: NHS Telford & Wrekin
A122: 03H | B122: NHS North Lincolnshire | C122: E38000122 | D122: E38000109 | E122: E38000053 | F122: E38000008 | G122: E38000156 | H122: E38000034 | I122: E38000071 | J122: E38000151 | K122: E38000042 | L122: E38000126 | M122: E38000195 | N122: NHS Newark & Sherwood | O122: NHS East Staffordshire | P122: NHS Bassetlaw | Q122: NHS South Kent Coast | R122: NHS Chorley & South Ribble | S122: NHS Hardwick | T122: NHS South Cheshire | U122: NHS Darlington | V122: NHS North Staffordshire | W122: NHS Warwickshire North
A123: 10J | B123: NHS North Manchester | C123: E38000123 | D123: E38000013 | E123: E38000080 | F123: E38000095 | G123: E38000143 | H123: E38000016 | I123: E38000135 | J123: E38000210 | K123: E38000019 | L123: E38000144 | M123: E38000175 | N123: NHS Birmingham South & Central | O123: NHS Heywood, Middleton & Rochdale | P123: NHS Leeds South & East | Q123: NHS Salford | R123: NHS Bolton | S123: NHS Oldham | T123: NHS Wolverhampton | U123: NHS Bradford Districts | V123: NHS Sandwell & West Birmingham | W123: NHS Stoke on Trent
A124: 03J | B124: NHS North Norfolk | C124: E38000124 | D124: E38000055 | E124: E38000087 | F124: E38000060 | G124: E38000157 | H124: E38000069 | I124: E38000056 | J124: E38000203 | K124: E38000173 | L124: E38000115 | M124: E38000211 | N124: NHS Eastbourne, Hailsham & Seaford | O124: NHS Isle of Wight | P124: NHS Fylde & Wyre | Q124: NHS South Lincolnshire | R124: NHS Hambleton, Richmondshire & Whitby | S124: NHS Eastern Cheshire | T124: NHS West Norfolk | U124: NHS Stafford & Surrounds | V124: NHS North Derbyshire | W124: NHS Wyre Forest
A125: 03K | B125: NHS North Somerset | C125: E38000125 | D125: E38000056 | E125: E38000154 | F125: E38000157 | G125: E38000166 | H125: E38000151 | I125: E38000211 | J125: E38000164 | K125: E38000083 | L125: E38000081 | M125: E38000051 | N125: NHS Eastern Cheshire | O125: NHS South Eastern Hampshire | P125: NHS South Lincolnshire | Q125: NHS South Worcestershire | R125: NHS South Cheshire | S125: NHS Wyre Forest | T125: NHS South Warwickshire | U125: NHS Horsham & Mid Sussex | V125: NHS High Weald Lewes Havens | W125: NHS East Leicestershire & Rutland
A126: 01M | B126: NHS North Staffordshire | C126: E38000126 | D126: E38000115 | E126: E38000173 | F126: E38000109 | G126: E38000130 | H126: E38000122 | I126: E38000211 | J126: E38000151 | K126: E38000008 | L126: E38000071 | M126: E38000117 | N126: NHS North Derbyshire | O126: NHS Stafford & Surrounds | P126: NHS Newark & Sherwood | Q126: NHS Northumberland | R126: NHS North Lincolnshire | S126: NHS Wyre Forest | T126: NHS South Cheshire | U126: NHS Bassetlaw | V126: NHS Hardwick | W126: NHS North East Essex
A127: 06V | B127: NHS North Tyneside | C127: E38000127 | D127: E38000133 | E127: E38000103 | F127: E38000058 | G127: E38000172 | H127: E38000034 | I127: E38000163 | J127: E38000174 | K127: E38000071 | L127: E38000006 | M127: E38000205 | N127: NHS Nottingham North & East | O127: NHS Mansfield & Ashfield | P127: NHS Erewash | Q127: NHS St Helens | R127: NHS Chorley & South Ribble | S127: NHS South Tyneside | T127: NHS Stockport | U127: NHS Hardwick | V127: NHS Barnsley | W127: NHS Wigan Borough
A128: 11T | B128: NHS North West Surrey | C128: E38000128 | D128: E38000177 | E128: E38000023 | F128: E38000106 | G128: E38000155 | H128: E38000033 | I128: E38000007 | J128: E38000181 | K128: E38000083 | L128: E38000120 | M128: E38000054 | N128: NHS Surrey Downs | O128: NHS Bromley | P128: NHS Mid Essex | Q128: NHS South Gloucestershire | R128: NHS Chiltern | S128: NHS Basildon & Brentwood | T128: NHS Swindon | U128: NHS Horsham & Mid Sussex | V128: NHS North Hampshire | W128: NHS East Surrey
A129: 05G | B129: NHS Northern, Eastern & Western Devon | C129: E38000129 | D129: E38000045 | E129: E38000026 | F129: E38000136 | G129: E38000089 | H129: E38000062 | I129: E38000150 | J129: E38000041 | K129: E38000108 | L129: E38000198 | M129: E38000169 | N129: NHS Dorset | O129: NHS Cambridgeshire & Peterborough | P129: NHS Oxfordshire | Q129: NHS Kernow | R129: NHS Gloucestershire | S129: NHS Somerset | T129: NHS Cumbria | U129: NHS Nene | V129: NHS West Hampshire | W129: NHS Southern Derbyshire
A130: 99C | B130: NHS Northumberland | C130: E38000130 | D130: E38000115 | E130: E38000052 | F130: E38000166 | G130: E38000147 | H130: E38000156 | I130: E38000126 | J130: E38000063 | K130: E38000099 | L130: E38000122 | M130: E38000086 | N130: NHS North Derbyshire | O130: NHS East Riding of Yorkshire | P130: NHS South Worcestershire | Q130: NHS Shropshire | R130: NHS South Kent Coast | S130: NHS North Staffordshire | T130: NHS Great Yarmouth & Waveney | U130: NHS Lincolnshire East | V130: NHS North Lincolnshire | W130: NHS Ipswich & East Suffolk
A131: 09Y | B131: NHS Norwich | C131: E38000131 | D131: E38000116 | E131: E38000163 | F131: E38000029 | G131: E38000137 | H131: E38000117 | I131: E38000167 | J131: E38000196 | K131: E38000201 | L131: E38000212 | M131: E38000176 | N131: NHS North Durham | O131: NHS South Tyneside | P131: NHS Canterbury & Coastal | Q131: NHS Portsmouth | R131: NHS North East Essex | S131: NHS Southampton | T131: NHS West Cheshire | U131: NHS West Leicestershire | V131: NHS Newcastle Gateshead | W131: NHS Sunderland
A132: 99P | B132: NHS Nottingham City | C132: E38000132 | D132: E38000096 | E132: E38000167 | F132: E38000158 | G132: E38000032 | H132: E38000160 | I132: E38000137 | J132: E38000101 | K132: E38000022 | L132: E38000146 | M132: E38000038 | N132: NHS Leeds West | O132: NHS Southampton | P132: NHS South Manchester | Q132: NHS Central Manchester | R132: NHS South Reading | S132: NHS Portsmouth | T132: NHS Liverpool | U132: NHS Bristol | V132: NHS Sheffield | W132: NHS Coventry & Rugby
A133: 00L | B133: NHS Nottingham North & East | C133: E38000133 | D133: E38000058 | E133: E38000153 | F133: E38000127 | G133: E38000028 | H133: E38000139 | I133: E38000034 | J133: E38000071 | K133: E38000195 | L133: E38000134 | M133: E38000211 | N133: NHS Erewash | O133: NHS South East Staffs & Seisdon Peninsula | P133: NHS North Tyneside | Q133: NHS Cannock Chase | R133: NHS Redditch & Bromsgrove | S133: NHS Chorley & South Ribble | T133: NHS Hardwick | U133: NHS Warwickshire North | V133: NHS Nottingham West | W133: NHS Wyre Forest
A134: 06W | B134: NHS Nottingham West | C134: E38000134 | D134: E38000133 | E134: E38000058 | F134: E38000030 | G134: E38000211 | H134: E38000059 | I134: E38000127 | J134: E38000154 | K134: E38000170 | L134: E38000153 | M134: E38000149 | N134: NHS Nottingham North & East | O134: NHS Erewash | P134: NHS Castle Point & Rochford | Q134: NHS Wyre Forest | R134: NHS Fareham & Gosport | S134: NHS North Tyneside | T134: NHS South Eastern Hampshire | U134: NHS Southport & Formby | V134: NHS South East Staffs & Seisdon Peninsula | W134: NHS Solihull
A135: 04K | B135: NHS Oldham | C135: E38000135 | D135: E38000019 | E135: E38000080 | F135: E38000016 | G135: E38000014 | H135: E38000121 | I135: E38000191 | J135: E38000050 | K135: E38000095 | L135: E38000024 | M135: E38000025 | N135: NHS Bradford Districts | O135: NHS Heywood, Middleton & Rochdale | P135: NHS Bolton | Q135: NHS Blackburn with Darwen | R135: NHS North Kirklees | S135: NHS Walsall | T135: NHS East Lancashire | U135: NHS Leeds South & East | V135: NHS Bury | W135: NHS Calderdale
A136: 04L | B136: NHS Oxfordshire | C136: E38000136 | D136: E38000026 | E136: E38000108 | F136: E38000062 | G136: E38000169 | H136: E38000129 | I136: E38000150 | J136: E38000079 | K136: E38000049 | L136: E38000089 | M136: E38000010 | N136: NHS Cambridgeshire & Peterborough | O136: NHS Nene | P136: NHS Gloucestershire | Q136: NHS Southern Derbyshire | R136: NHS Northern, Eastern & Western Devon | S136: NHS Somerset | T136: NHS Herts Valleys | U136: NHS East & North Hertfordshire | V136: NHS Kernow | W136: NHS Bedfordshire
A137: 04M | B137: NHS Portsmouth | C137: E38000137 | D137: E38000167 | E137: E38000212 | F137: E38000131 | G137: E38000085 | H137: E38000116 | I137: E38000021 | J137: E38000143 | K137: E38000022 | L137: E38000029 | M137: E38000064 | N137: NHS Southampton | O137: NHS Newcastle Gateshead | P137: NHS Norwich | Q137: NHS Hull | R137: NHS North Durham | S137: NHS Brighton & Hove | T137: NHS Salford | U137: NHS Bristol | V137: NHS Canterbury & Coastal | W137: NHS Greater Huddersfield
A138: 00Y | B138: NHS Redbridge | C138: E38000138 | D138: E38000148 | E138: E38000074 | F138: E38000102 | G138: E38000082 | H138: E38000084 | I138: E38000048 | J138: E38000005 | K138: E38000013 | L138: E38000144 | M138: E38000121 | N138: NHS Slough | O138: NHS Harrow | P138: NHS Luton | Q138: NHS Hillingdon | R138: NHS Hounslow | S138: NHS Ealing | T138: NHS Barnet | U138: NHS Birmingham South & Central | V138: NHS Sandwell & West Birmingham | W138: NHS North Kirklees
A139: 10Q | B139: NHS Redditch & Bromsgrove | C139: E38000139 | D139: E38000195 | E139: E38000194 | F139: E38000034 | G139: E38000151 | H139: E38000153 | I139: E38000133 | J139: E38000109 | K139: E38000028 | L139: E38000058 | M139: E38000007 | N139: NHS Warwickshire North | O139: NHS Warrington | P139: NHS Chorley & South Ribble | Q139: NHS South Cheshire | R139: NHS South East Staffs & Seisdon Peninsula | S139: NHS Nottingham North & East | T139: NHS Newark & Sherwood | U139: NHS Cannock Chase | V139: NHS Erewash | W139: NHS Basildon & Brentwood
A140: 10R | B140: NHS Richmond | C140: E38000140 | D140: E38000118 | E140: E38000114 | F140: E38000207 | G140: E38000178 | H140: E38000209 | I140: E38000179 | J140: E38000128 | K140: E38000090 | L140: E38000120 | M140: E38000023 | N140: NHS North East Hampshire & Farnham | O140: NHS North & West Reading | P140: NHS Windsor, Ascot & Maidenhead | Q140: NHS Surrey Heath | R140: NHS Wokingham | S140: NHS Sutton | T140: NHS North West Surrey | U140: NHS Kingston | V140: NHS North Hampshire | W140: NHS Bromley
A141: 08N | B141: NHS Rotherham | C141: E38000141 | D141: E38000182 | E141: E38000075 | F141: E38000006 | G141: E38000172 | H141: E38000190 | I141: E38000205 | J141: E38000208 | K141: E38000175 | L141: E38000044 | M141: E38000068 | N141: NHS Tameside & Glossop | O141: NHS Hartlepool & Stockton-on-Tees | P141: NHS Barnsley | Q141: NHS St Helens | R141: NHS Wakefield | S141: NHS Wigan Borough | T141: NHS Wirral | U141: NHS Stoke on Trent | V141: NHS Doncaster | W141: NHS Halton
A142: 05J | B142: NHS Rushcliffe | C142: E38000142 | D142: E38000157 | E142: E38000083 | F142: E38000159 | G142: E38000214 | H142: E38000081 | I142: E38000173 | J142: E38000165 | K142: E38000054 | L142: E38000204 | M142: E38000051 | N142: NHS South Lincolnshire | O142: NHS Horsham & Mid Sussex | P142: NHS South Norfolk | Q142: NHS Guildford & Waverley | R142: NHS High Weald Lewes Havens | S142: NHS Stafford & Surrounds | T142: NHS South West Lincolnshire | U142: NHS East Surrey | V142: NHS West Suffolk | W142: NHS East Leicestershire & Rutland
A143: 08P | B143: NHS Salford | C143: E38000143 | D143: E38000175 | E143: E38000085 | F143: E38000182 | G143: E38000162 | H143: E38000068 | I143: E38000176 | J143: E38000141 | K143: E38000075 | L143: E38000095 | M143: E38000006 | N143: NHS Stoke on Trent | O143: NHS Hull | P143: NHS Tameside & Glossop | Q143: NHS South Tees | R143: NHS Halton | S143: NHS Sunderland | T143: NHS Rotherham | U143: NHS Hartlepool & Stockton-on-Tees | V143: NHS Leeds South & East | W143: NHS Barnsley
A144: 03L | B144: NHS Sandwell & West Birmingham | C144: E38000144 | D144: E38000012 | E144: E38000013 | F144: E38000097 | G144: E38000102 | H144: E38000123 | I144: E38000210 | J144: E38000082 | K144: E38000019 | L144: E38000192 | M144: E38000138 | N144: NHS Birmingham CrossCity | O144: NHS Birmingham South & Central | P144: NHS Leicester City | Q144: NHS Luton | R144: NHS North Manchester | S144: NHS Wolverhampton | T144: NHS Hillingdon | U144: NHS Bradford Districts | V144: NHS Waltham Forest | W144: NHS Redbridge
A145: 04N | B145: NHS Scarborough & Ryedale | C145: E38000145 | D145: E38000076 | E145: E38000063 | F145: E38000203 | G145: E38000156 | H145: E38000087 | I145: E38000099 | J145: E38000078 | K145: E38000001 | L145: E38000100 | M145: E38000073 | N145: NHS Hastings & Rother | O145: NHS Great Yarmouth & Waveney | P145: NHS West Norfolk | Q145: NHS South Kent Coast | R145: NHS Isle of Wight | S145: NHS Lincolnshire East | T145: NHS Herefordshire | U145: NHS Airedale, Wharfedale & Craven | V145: NHS Lincolnshire West | W145: NHS Harrogate & Rural District
A146: 01G | B146: NHS Sheffield | C146: E38000146 | D146: E38000038 | E146: E38000169 | F146: E38000022 | G146: E38000201 | H146: E38000101 | I146: E38000116 | J146: E38000137 | K146: E38000064 | L146: E38000212 | M146: E38000100 | N146: NHS Coventry & Rugby | O146: NHS Southern Derbyshire | P146: NHS Bristol | Q146: NHS West Leicestershire | R146: NHS Liverpool | S146: NHS North Durham | T146: NHS Portsmouth | U146: NHS Greater Huddersfield | V146: NHS Newcastle Gateshead | W146: NHS Lincolnshire West
A147: 05L | B147: NHS Shropshire | C147: E38000147 | D147: E38000130 | E147: E38000069 | F147: E38000204 | G147: E38000078 | H147: E38000052 | I147: E38000159 | J147: E38000115 | K147: E38000086 | L147: E38000157 | M147: E38000173 | N147: NHS Northumberland | O147: NHS Hambleton, Richmondshire & Whitby | P147: NHS West Suffolk | Q147: NHS Herefordshire | R147: NHS East Riding of Yorkshire | S147: NHS South Norfolk | T147: NHS North Derbyshire | U147: NHS Ipswich & East Suffolk | V147: NHS South Lincolnshire | W147: NHS Stafford & Surrounds
A148: 03M | B148: NHS Slough | C148: E38000148 | D148: E38000102 | E148: E38000138 | F148: E38000084 | G148: E38000082 | H148: E38000074 | I148: E38000121 | J148: E38000013 | K148: E38000005 | L148: E38000019 | M148: E38000135 | N148: NHS Luton | O148: NHS Redbridge | P148: NHS Hounslow | Q148: NHS Hillingdon | R148: NHS Harrow | S148: NHS North Kirklees | T148: NHS Birmingham South & Central | U148: NHS Barnet | V148: NHS Bradford Districts | W148: NHS Oldham
A149: 03N | B149: NHS Solihull | C149: E38000149 | D149: E38000187 | E149: E38000174 | F149: E38000154 | G149: E38000077 | H149: E38000007 | I149: E38000168 | J149: E38000046 | K149: E38000030 | L149: E38000195 | M149: E38000139 | N149: NHS Trafford | O149: NHS Stockport | P149: NHS South Eastern Hampshire | Q149: NHS Havering | R149: NHS Basildon & Brentwood | S149: NHS Southend | T149: NHS Dudley | U149: NHS Castle Point & Rochford | V149: NHS Warwickshire North | W149: NHS Redditch & Bromsgrove
A150: 05N | B150: NHS Somerset | C150: E38000150 | D150: E38000089 | E150: E38000062 | F150: E38000206 | G150: E38000198 | H150: E38000041 | I150: E38000086 | J150: E38000213 | K150: E38000166 | L150: E38000052 | M150: E38000169 | N150: NHS Kernow | O150: NHS Gloucestershire | P150: NHS Wiltshire | Q150: NHS West Hampshire | R150: NHS Cumbria | S150: NHS Ipswich & East Suffolk | T150: NHS Coastal West Sussex | U150: NHS South Worcestershire | V150: NHS East Riding of Yorkshire | W150: NHS Southern Derbyshire
A151: 10T | B151: NHS South Cheshire | C151: E38000151 | D151: E38000195 | E151: E38000109 | F151: E38000139 | G151: E38000153 | H151: E38000034 | I151: E38000154 | J151: E38000166 | K151: E38000125 | L151: E38000189 | M151: E38000194 | N151: NHS Warwickshire North | O151: NHS Newark & Sherwood | P151: NHS Redditch & Bromsgrove | Q151: NHS South East Staffs & Seisdon Peninsula | R151: NHS Chorley & South Ribble | S151: NHS South Eastern Hampshire | T151: NHS South Worcestershire | U151: NHS North Somerset | V151: NHS Vale Royal | W151: NHS Warrington
A152: 05P | B152: NHS South Devon & Torbay | C152: E38000152 | D152: E38000099 | E152: E38000060 | F152: E38000196 | G152: E38000055 | H152: E38000117 | I152: E38000063 | J152: E38000115 | K152: E38000211 | L152: E38000154 | M152: E38000166 | N152: NHS Lincolnshire East | O152: NHS Fylde & Wyre | P152: NHS West Cheshire | Q152: NHS Eastbourne, Hailsham & Seaford | R152: NHS North East Essex | S152: NHS Great Yarmouth & Waveney | T152: NHS North Derbyshire | U152: NHS Wyre Forest | V152: NHS South Eastern Hampshire | W152: NHS South Worcestershire
A153: 11X | B153: NHS South East Staffs & Seisdon Peninsula | C153: E38000153 | D153: E38000139 | E153: E38000133 | F153: E38000028 | G153: E38000155 | H153: E38000151 | I153: E38000058 | J153: E38000059 | K153: E38000195 | L153: E38000034 | M153: E38000194 | N153: NHS Redditch & Bromsgrove | O153: NHS Nottingham North & East | P153: NHS Cannock Chase | Q153: NHS South Gloucestershire | R153: NHS South Cheshire | S153: NHS Erewash | T153: NHS Fareham & Gosport | U153: NHS Warwickshire North | V153: NHS Chorley & South Ribble | W153: NHS Warrington
A154: 01R | B154: NHS South Eastern Hampshire | C154: E38000154 | D154: E38000125 | E154: E38000030 | F154: E38000056 | G154: E38000151 | H154: E38000211 | I154: E38000059 | J154: E38000117 | K154: E38000153 | L154: E38000166 | M154: E38000149 | N154: NHS North Somerset | O154: NHS Castle Point & Rochford | P154: NHS Eastern Cheshire | Q154: NHS South Cheshire | R154: NHS Wyre Forest | S154: NHS Fareham & Gosport | T154: NHS North East Essex | U154: NHS South East Staffs & Seisdon Peninsula | V154: NHS South Worcestershire | W154: NHS Solihull
A155: 99Q | B155: NHS South Gloucestershire | C155: E38000155 | D155: E38000153 | E155: E38000007 | F155: E38000181 | G155: E38000059 | H155: E38000083 | I155: E38000177 | J155: E38000017 | K155: E38000128 | L155: E38000120 | M155: E38000054 | N155: NHS South East Staffs & Seisdon Peninsula | O155: NHS Basildon & Brentwood | P155: NHS Swindon | Q155: NHS Fareham & Gosport | R155: NHS Horsham & Mid Sussex | S155: NHS Surrey Downs | T155: NHS Bracknell & Ascot | U155: NHS North West Surrey | V155: NHS North Hampshire | W155: NHS East Surrey
A156: 05Q | B156: NHS South Kent Coast | C156: E38000156 | D156: E38000063 | E156: E38000122 | F156: E38000076 | G156: E38000109 | H156: E38000130 | I156: E38000203 | J156: E38000166 | K156: E38000053 | L156: E38000100 | M156: E38000008 | N156: NHS Great Yarmouth & Waveney | O156: NHS North Lincolnshire | P156: NHS Hastings & Rother | Q156: NHS Newark & Sherwood | R156: NHS Northumberland | S156: NHS West Norfolk | T156: NHS South Worcestershire | U156: NHS East Staffordshire | V156: NHS Lincolnshire West | W156: NHS Bassetlaw
A157: 10V | B157: NHS South Lincolnshire | C157: E38000157 | D157: E38000081 | E157: E38000159 | F157: E38000056 | G157: E38000125 | H157: E38000165 | I157: E38000069 | J157: E38000173 | K157: E38000142 | L157: E38000204 | M157: E38000166 | N157: NHS High Weald Lewes Havens | O157: NHS South Norfolk | P157: NHS Eastern Cheshire | Q157: NHS North Somerset | R157: NHS South West Lincolnshire | S157: NHS Hambleton, Richmondshire & Whitby | T157: NHS Stafford & Surrounds | U157: NHS Rushcliffe | V157: NHS West Suffolk | W157: NHS South Worcestershire
A158: 12A | B158: NHS South Manchester | C158: E38000158 | D158: E38000167 | E158: E38000143 | F158: E38000085 | G158: E38000137 | H158: E38000101 | I158: E38000132 | J158: E38000175 | K158: E38000162 | L158: E38000091 | M158: E38000176 | N158: NHS Southampton | O158: NHS Salford | P158: NHS Hull | Q158: NHS Portsmouth | R158: NHS Liverpool | S158: NHS Nottingham City | T158: NHS Stoke on Trent | U158: NHS South Tees | V158: NHS Knowsley | W158: NHS Sunderland
A159: 10A | B159: NHS South Norfolk | C159: E38000159 | D159: E38000204 | E159: E38000081 | F159: E38000157 | G159: E38000165 | H159: E38000069 | I159: E38000052 | J159: E38000142 | K159: E38000078 | L159: E38000086 | M159: E38000166 | N159: NHS West Suffolk | O159: NHS High Weald Lewes Havens | P159: NHS South Lincolnshire | Q159: NHS South West Lincolnshire | R159: NHS Hambleton, Richmondshire & Whitby | S159: NHS East Riding of Yorkshire | T159: NHS Rushcliffe | U159: NHS Herefordshire | V159: NHS Ipswich & East Suffolk | W159: NHS South Worcestershire
A160: 99D | B160: NHS South Reading | C160: E38000160 | D160: E38000167 | E160: E38000022 | F160: E38000065 | G160: E38000158 | H160: E38000132 | I160: E38000137 | J160: E38000094 | K160: E38000038 | L160: E38000082 | M160: E38000096 | N160: NHS Southampton | O160: NHS Bristol | P160: NHS Greater Preston | Q160: NHS South Manchester | R160: NHS Nottingham City | S160: NHS Portsmouth | T160: NHS Leeds North | U160: NHS Coventry & Rugby | V160: NHS Hillingdon | W160: NHS Leeds West
A161: 01N | B161: NHS South Sefton | C161: E38000161 | D161: E38000163 | E161: E38000172 | F161: E38000176 | G161: E38000208 | H161: E38000184 | I161: E38000119 | J161: E38000006 | K161: E38000141 | L161: E38000200 | M161: E38000068 | N161: NHS South Tyneside | O161: NHS St Helens | P161: NHS Sunderland | Q161: NHS Wirral | R161: NHS Thanet | S161: NHS North East Lincolnshire | T161: NHS Barnsley | U161: NHS Rotherham | V161: NHS West Lancashire | W161: NHS Halton
A162: 06Y | B162: NHS South Tees | C162: E38000162 | D162: E38000175 | E162: E38000176 | F162: E38000182 | G162: E38000141 | H162: E38000016 | I162: E38000143 | J162: E38000161 | K162: E38000190 | L162: E38000024 | M162: E38000085 | N162: NHS Stoke on Trent | O162: NHS Sunderland | P162: NHS Tameside & Glossop | Q162: NHS Rotherham | R162: NHS Bolton | S162: NHS Salford | T162: NHS South Sefton | U162: NHS Wakefield | V162: NHS Bury | W162: NHS Hull
A163: 10W | B163: NHS South Tyneside | C163: E38000163 | D163: E38000161 | E163: E38000172 | F163: E38000176 | G163: E38000127 | H163: E38000168 | I163: E38000208 | J163: E38000071 | K163: E38000103 | L163: E38000184 | M163: E38000006 | N163: NHS South Sefton | O163: NHS St Helens | P163: NHS Sunderland | Q163: NHS North Tyneside | R163: NHS Southend | S163: NHS Wirral | T163: NHS Hardwick | U163: NHS Mansfield & Ashfield | V163: NHS Thanet | W163: NHS Barnsley
A164: 01T | B164: NHS South Warwickshire | C164: E38000164 | D164: E38000166 | E164: E38000073 | F164: E38000052 | G164: E38000051 | H164: E38000056 | I164: E38000125 | J164: E38000081 | K164: E38000157 | L164: E38000204 | M164: E38000159 | N164: NHS South Worcestershire | O164: NHS Harrogate & Rural District | P164: NHS East Riding of Yorkshire | Q164: NHS East Leicestershire & Rutland | R164: NHS Eastern Cheshire | S164: NHS North Somerset | T164: NHS High Weald Lewes Havens | U164: NHS South Lincolnshire | V164: NHS West Suffolk | W164: NHS South Norfolk
A165: 00M | B165: NHS South West Lincolnshire | C165: E38000165 | D165: E38000081 | E165: E38000159 | F165: E38000157 | G165: E38000204 | H165: E38000069 | I165: E38000109 | J165: E38000053 | K165: E38000166 | L165: E38000142 | M165: E38000151 | N165: NHS High Weald Lewes Havens | O165: NHS South Norfolk | P165: NHS South Lincolnshire | Q165: NHS West Suffolk | R165: NHS Hambleton, Richmondshire & Whitby | S165: NHS Newark & Sherwood | T165: NHS East Staffordshire | U165: NHS South Worcestershire | V165: NHS Rushcliffe | W165: NHS South Cheshire
A166: 00N | B166: NHS South Worcestershire | C166: E38000166 | D166: E38000164 | E166: E38000052 | F166: E38000115 | G166: E38000117 | H166: E38000051 | I166: E38000130 | J166: E38000125 | K166: E38000196 | L166: E38000086 | M166: E38000151 | N166: NHS South Warwickshire | O166: NHS East Riding of Yorkshire | P166: NHS North Derbyshire | Q166: NHS North East Essex | R166: NHS East Leicestershire & Rutland | S166: NHS Northumberland | T166: NHS North Somerset | U166: NHS West Cheshire | V166: NHS Ipswich & East Suffolk | W166: NHS South Cheshire
A167: 05R | B167: NHS Southampton | C167: E38000167 | D167: E38000137 | E167: E38000096 | F167: E38000131 | G167: E38000022 | H167: E38000212 | I167: E38000158 | J167: E38000021 | K167: E38000085 | L167: E38000132 | M167: E38000029 | N167: NHS Portsmouth | O167: NHS Leeds West | P167: NHS Norwich | Q167: NHS Bristol | R167: NHS Newcastle Gateshead | S167: NHS South Manchester | T167: NHS Brighton & Hove | U167: NHS Hull | V167: NHS Nottingham City | W167: NHS Canterbury & Coastal
A168: 04Q | B168: NHS Southend | C168: E38000168 | D168: E38000174 | E168: E38000187 | F168: E38000163 | G168: E38000172 | H168: E38000024 | I168: E38000149 | J168: E38000208 | K168: E38000127 | L168: E38000161 | M168: E38000184 | N168: NHS Stockport | O168: NHS Trafford | P168: NHS South Tyneside | Q168: NHS St Helens | R168: NHS Bury | S168: NHS Solihull | T168: NHS Wirral | U168: NHS North Tyneside | V168: NHS South Sefton | W168: NHS Thanet
A169: 05T | B169: NHS Southern Derbyshire | C169: E38000169 | D169: E38000010 | E169: E38000108 | F169: E38000049 | G169: E38000062 | H169: E38000206 | I169: E38000201 | J169: E38000106 | K169: E38000150 | L169: E38000190 | M169: E38000086 | N169: NHS Bedfordshire | O169: NHS Nene | P169: NHS East & North Hertfordshire | Q169: NHS Gloucestershire | R169: NHS Wiltshire | S169: NHS West Leicestershire | T169: NHS Mid Essex | U169: NHS Somerset | V169: NHS Wakefield | W169: NHS Ipswich & East Suffolk
A170: 10X | B170: NHS Southport & Formby | C170: E38000170 | D170: E38000060 | E170: E38000134 | F170: E38000030 | G170: E38000133 | H170: E38000211 | I170: E38000127 | J170: E38000055 | K170: E38000163 | L170: E38000152 | M170: E38000058 | N170: NHS Fylde & Wyre | O170: NHS Nottingham West | P170: NHS Castle Point & Rochford | Q170: NHS Nottingham North & East | R170: NHS Wyre Forest | S170: NHS North Tyneside | T170: NHS Eastbourne, Hailsham & Seaford | U170: NHS South Tyneside | V170: NHS South Devon & Torbay | W170: NHS Erewash
A171: 99G | B171: NHS Southwark | C171: E38000171 | D171: E38000092 | E171: E38000035 | F171: E38000098 | G171: E38000070 | H171: E38000192 | I171: E38000020 | J171: E38000066 | K171: E38000072 | L171: E38000193 | M171: E38000088 | N171: NHS Lambeth | O171: NHS City & Hackney | P171: NHS Lewisham | Q171: NHS Hammersmith & Fulham | R171: NHS Waltham Forest | S171: NHS Brent | T171: NHS Greenwich | U171: NHS Haringey | V171: NHS Wandsworth | W171: NHS Islington
A172: 04R | B172: NHS St Helens | C172: E38000172 | D172: E38000006 | E172: E38000161 | F172: E38000141 | G172: E38000103 | H172: E38000163 | I172: E38000208 | J172: E38000182 | K172: E38000127 | L172: E38000190 | M172: E38000195 | N172: NHS Barnsley | O172: NHS South Sefton | P172: NHS Rotherham | Q172: NHS Mansfield & Ashfield | R172: NHS South Tyneside | S172: NHS Wirral | T172: NHS Tameside & Glossop | U172: NHS North Tyneside | V172: NHS Wakefield | W172: NHS Warwickshire North
A173: 01V | B173: NHS Stafford & Surrounds | C173: E38000173 | D173: E38000157 | E173: E38000126 | F173: E38000069 | G173: E38000142 | H173: E38000115 | I173: E38000056 | J173: E38000159 | K173: E38000211 | L173: E38000109 | M173: E38000204 | N173: NHS South Lincolnshire | O173: NHS North Staffordshire | P173: NHS Hambleton, Richmondshire & Whitby | Q173: NHS Rushcliffe | R173: NHS North Derbyshire | S173: NHS Eastern Cheshire | T173: NHS South Norfolk | U173: NHS Wyre Forest | V173: NHS Newark & Sherwood | W173: NHS West Suffolk
A174: 08Q | B174: NHS Stockport | C174: E38000174 | D174: E38000168 | E174: E38000187 | F174: E38000208 | G174: E38000127 | H174: E38000149 | I174: E38000190 | J174: E38000172 | K174: E38000046 | L174: E38000141 | M174: E38000194 | N174: NHS Southend | O174: NHS Trafford | P174: NHS Wirral | Q174: NHS North Tyneside | R174: NHS Solihull | S174: NHS Wakefield | T174: NHS St Helens | U174: NHS Dudley | V174: NHS Rotherham | W174: NHS Warrington
A175: 01X | B175: NHS Stoke on Trent | C175: E38000175 | D175: E38000182 | E175: E38000162 | F175: E38000143 | G175: E38000141 | H175: E38000085 | I175: E38000190 | J175: E38000176 | K175: E38000075 | L175: E38000024 | M175: E38000006 | N175: NHS Tameside & Glossop | O175: NHS South Tees | P175: NHS Salford | Q175: NHS Rotherham | R175: NHS Hull | S175: NHS Wakefield | T175: NHS Sunderland | U175: NHS Hartlepool & Stockton-on-Tees | V175: NHS Bury | W175: NHS Barnsley
A176: 05V | B176: NHS Sunderland | C176: E38000176 | D176: E38000161 | E176: E38000208 | F176: E38000163 | G176: E38000162 | H176: E38000172 | I176: E38000190 | J176: E38000175 | K176: E38000182 | L176: E38000141 | M176: E38000174 | N176: NHS South Sefton | O176: NHS Wirral | P176: NHS South Tyneside | Q176: NHS South Tees | R176: NHS St Helens | S176: NHS Wakefield | T176: NHS Stoke on Trent | U176: NHS Tameside & Glossop | V176: NHS Rotherham | W176: NHS Stockport
A177: 01W | B177: NHS Surrey Downs | C177: E38000177 | D177: E38000083 | E177: E38000033 | F177: E38000128 | G177: E38000155 | H177: E38000106 | I177: E38000051 | J177: E38000007 | K177: E38000120 | L177: E38000054 | M177: E38000209 | N177: NHS Horsham & Mid Sussex | O177: NHS Chiltern | P177: NHS North West Surrey | Q177: NHS South Gloucestershire | R177: NHS Mid Essex | S177: NHS East Leicestershire & Rutland | T177: NHS Basildon & Brentwood | U177: NHS North Hampshire | V177: NHS East Surrey | W177: NHS Wokingham
A178: 05W | B178: NHS Surrey Heath | C178: E38000178 | D178: E38000209 | E178: E38000017 | F178: E38000155 | G178: E38000118 | H178: E38000059 | I178: E38000207 | J178: E38000030 | K178: E38000177 | L178: E38000083 | M178: E38000181 | N178: NHS Wokingham | O178: NHS Bracknell & Ascot | P178: NHS South Gloucestershire | Q178: NHS North East Hampshire & Farnham | R178: NHS Fareham & Gosport | S178: NHS Windsor, Ascot & Maidenhead | T178: NHS Castle Point & Rochford | U178: NHS Surrey Downs | V178: NHS Horsham & Mid Sussex | W178: NHS Swindon
A179: 00P | B179: NHS Sutton | C179: E38000179 | D179: E38000011 | E179: E38000039 | F179: E38000187 | G179: E38000077 | H179: E38000023 | I179: E38000090 | J179: E38000005 | K179: E38000181 | L179: E38000168 | M179: E38000149 | N179: NHS Bexley | O179: NHS Crawley | P179: NHS Trafford | Q179: NHS Havering | R179: NHS Bromley | S179: NHS Kingston | T179: NHS Barnet | U179: NHS Swindon | V179: NHS Southend | W179: NHS Solihull
A180: 99H | B180: NHS Swale | C180: E38000180 | D180: E38000053 | E180: E38000025 | F180: E38000002 | G180: E38000119 | H180: E38000042 | I180: E38000122 | J180: E38000183 | K180: E38000109 | L180: E38000195 | M180: E38000008 | N180: NHS East Staffordshire | O180: NHS Calderdale | P180: NHS Ashford | Q180: NHS North East Lincolnshire | R180: NHS Darlington | S180: NHS North Lincolnshire | T180: NHS Telford & Wrekin | U180: NHS Newark & Sherwood | V180: NHS Warwickshire North | W180: NHS Bassetlaw
A181: 10C | B181: NHS Swindon | C181: E38000181 | D181: E38000039 | E181: E38000007 | F181: E38000155 | G181: E38000043 | H181: E38000139 | I181: E38000120 | J181: E38000194 | K181: E38000054 | L181: E38000017 | M181: E38000118 | N181: NHS Crawley | O181: NHS Basildon & Brentwood | P181: NHS South Gloucestershire | Q181: NHS Dartford, Gravesham & Swanley | R181: NHS Redditch & Bromsgrove | S181: NHS North Hampshire | T181: NHS Warrington | U181: NHS East Surrey | V181: NHS Bracknell & Ascot | W181: NHS North East Hampshire & Farnham
A182: 08T | B182: NHS Tameside & Glossop | C182: E38000182 | D182: E38000141 | E182: E38000175 | F182: E38000024 | G182: E38000190 | H182: E38000075 | I182: E38000006 | J182: E38000172 | K182: E38000068 | L182: E38000162 | M182: E38000183 | N182: NHS Rotherham | O182: NHS Stoke on Trent | P182: NHS Bury | Q182: NHS Wakefield | R182: NHS Hartlepool & Stockton-on-Tees | S182: NHS Barnsley | T182: NHS St Helens | U182: NHS Halton | V182: NHS South Tees | W182: NHS Telford & Wrekin
A183: 10D | B183: NHS Telford & Wrekin | C183: E38000183 | D183: E38000194 | E183: E38000075 | F183: E38000182 | G183: E38000064 | H183: E38000141 | I183: E38000195 | J183: E38000139 | K183: E38000024 | L183: E38000180 | M183: E38000104 | N183: NHS Warrington | O183: NHS Hartlepool & Stockton-on-Tees | P183: NHS Tameside & Glossop | Q183: NHS Greater Huddersfield | R183: NHS Rotherham | S183: NHS Warwickshire North | T183: NHS Redditch & Bromsgrove | U183: NHS Bury | V183: NHS Swale | W183: NHS Medway
A184: 12D | B184: NHS Thanet | C184: E38000184 | D184: E38000119 | E184: E38000200 | F184: E38000042 | G184: E38000008 | H184: E38000161 | I184: E38000172 | J184: E38000071 | K184: E38000163 | L184: E38000109 | M184: E38000156 | N184: NHS North East Lincolnshire | O184: NHS West Lancashire | P184: NHS Darlington | Q184: NHS Bassetlaw | R184: NHS South Sefton | S184: NHS St Helens | T184: NHS Hardwick | U184: NHS South Tyneside | V184: NHS Newark & Sherwood | W184: NHS South Kent Coast
A185: 01Y | B185: NHS Thurrock | C185: E38000185 | D185: E38000107 | E185: E38000104 | F185: E38000043 | G185: E38000011 | H185: E38000039 | I185: E38000181 | J185: E38000017 | K185: E38000054 | L185: E38000183 | M185: E38000064 | N185: NHS Milton Keynes | O185: NHS Medway | P185: NHS Dartford, Gravesham & Swanley | Q185: NHS Bexley | R185: NHS Crawley | S185: NHS Swindon | T185: NHS Bracknell & Ascot | U185: NHS East Surrey | V185: NHS Telford & Wrekin | W185: NHS Greater Huddersfield
A186: 05X | B186: NHS Tower Hamlets | C186: E38000186 | D186: E38000032 | E186: E38000020 | F186: E38000048 | G186: E38000097 | H186: E38000027 | I186: E38000084 | J186: E38000013 | K186: E38000192 | L186: E38000144 | M186: E38000138 | N186: NHS Central Manchester | O186: NHS Brent | P186: NHS Ealing | Q186: NHS Leicester City | R186: NHS Camden | S186: NHS Hounslow | T186: NHS Birmingham South & Central | U186: NHS Waltham Forest | V186: NHS Sandwell & West Birmingham | W186: NHS Redbridge
A187: 10E | B187: NHS Trafford | C187: E38000187 | D187: E38000149 | E187: E38000174 | F187: E38000168 | G187: E38000024 | H187: E38000194 | I187: E38000077 | J187: E38000046 | K187: E38000139 | L187: E38000007 | M187: E38000181 | N187: NHS Solihull | O187: NHS Stockport | P187: NHS Southend | Q187: NHS Bury | R187: NHS Warrington | S187: NHS Havering | T187: NHS Dudley | U187: NHS Redditch & Bromsgrove | V187: NHS Basildon & Brentwood | W187: NHS Swindon
A188: 07G | B188: NHS Vale of York | C188: E38000188 | D188: E38000201 | E188: E38000100 | F188: E38000052 | G188: E38000009 | H188: E38000166 | I188: E38000214 | J188: E38000196 | K188: E38000117 | L188: E38000164 | M188: E38000029 | N188: NHS West Leicestershire | O188: NHS Lincolnshire West | P188: NHS East Riding of Yorkshire | Q188: NHS Bath & North East Somerset | R188: NHS South Worcestershire | S188: NHS Guildford & Waverley | T188: NHS West Cheshire | U188: NHS North East Essex | V188: NHS South Warwickshire | W188: NHS Canterbury & Coastal
A189: 08V | B189: NHS Vale Royal | C189: E38000189 | D189: E38000200 | E189: E38000151 | F189: E38000195 | G189: E38000139 | H189: E38000194 | I189: E38000024 | J189: E38000154 | K189: E38000197 | L189: E38000109 | M189: E38000120 | N189: NHS West Lancashire | O189: NHS South Cheshire | P189: NHS Warwickshire North | Q189: NHS Redditch & Bromsgrove | R189: NHS Warrington | S189: NHS Bury | T189: NHS South Eastern Hampshire | U189: NHS West Essex | V189: NHS Newark & Sherwood | W189: NHS North Hampshire
A190: 02A | B190: NHS Wakefield | C190: E38000190 | D190: E38000006 | E190: E38000208 | F190: E38000141 | G190: E38000205 | H190: E38000182 | I190: E38000075 | J190: E38000172 | K190: E38000044 | L190: E38000174 | M190: E38000195 | N190: NHS Barnsley | O190: NHS Wirral | P190: NHS Rotherham | Q190: NHS Wigan Borough | R190: NHS Tameside & Glossop | S190: NHS Hartlepool & Stockton-on-Tees | T190: NHS St Helens | U190: NHS Doncaster | V190: NHS Stockport | W190: NHS Warwickshire North
A191: 03Q | B191: NHS Walsall | C191: E38000191 | D191: E38000210 | E191: E38000019 | F191: E38000121 | G191: E38000141 | H191: E38000182 | I191: E38000016 | J191: E38000175 | K191: E38000080 | L191: E38000135 | M191: E38000064 | N191: NHS Wolverhampton | O191: NHS Bradford Districts | P191: NHS North Kirklees | Q191: NHS Rotherham | R191: NHS Tameside & Glossop | S191: NHS Bolton | T191: NHS Stoke on Trent | U191: NHS Heywood, Middleton & Rochdale | V191: NHS Oldham | W191: NHS Greater Huddersfield
A192: 02D | B192: NHS Waltham Forest | C192: E38000192 | D192: E38000066 | E192: E38000020 | F192: E38000048 | G192: E38000072 | H192: E38000040 | I192: E38000004 | J192: E38000098 | K192: E38000105 | L192: E38000144 | M192: E38000035 | N192: NHS Greenwich | O192: NHS Brent | P192: NHS Ealing | Q192: NHS Haringey | R192: NHS Croydon | S192: NHS Barking & Dagenham | T192: NHS Lewisham | U192: NHS Merton | V192: NHS Sandwell & West Birmingham | W192: NHS City & Hackney
A193: 03R | B193: NHS Wandsworth | C193: E38000193 | D193: E38000070 | E193: E38000105 | F193: E38000088 | G193: E38000202 | H193: E38000072 | I193: E38000048 | J193: E38000020 | K193: E38000192 | L193: E38000022 | M193: E38000084 | N193: NHS Hammersmith & Fulham | O193: NHS Merton | P193: NHS Islington | Q193: NHS West London | R193: NHS Haringey | S193: NHS Ealing | T193: NHS Brent | U193: NHS Waltham Forest | V193: NHS Bristol | W193: NHS Hounslow
A194: 05Y | B194: NHS Warrington | C194: E38000194 | D194: E38000139 | E194: E38000195 | F194: E38000034 | G194: E38000006 | H194: E38000183 | I194: E38000151 | J194: E38000205 | K194: E38000153 | L194: E38000075 | M194: E38000028 | N194: NHS Redditch & Bromsgrove | O194: NHS Warwickshire North | P194: NHS Chorley & South Ribble | Q194: NHS Barnsley | R194: NHS Telford & Wrekin | S194: NHS South Cheshire | T194: NHS Wigan Borough | U194: NHS South East Staffs & Seisdon Peninsula | V194: NHS Hartlepool & Stockton-on-Tees | W194: NHS Cannock Chase
A195: 08W | B195: NHS Warwickshire North | C195: E38000195 | D195: E38000139 | E195: E38000194 | F195: E38000034 | G195: E38000151 | H195: E38000109 | I195: E38000008 | J195: E38000006 | K195: E38000200 | L195: E38000119 | M195: E38000071 | N195: NHS Redditch & Bromsgrove | O195: NHS Warrington | P195: NHS Chorley & South Ribble | Q195: NHS South Cheshire | R195: NHS Newark & Sherwood | S195: NHS Bassetlaw | T195: NHS Barnsley | U195: NHS West Lancashire | V195: NHS North East Lincolnshire | W195: NHS Hardwick
A196: 08X | B196: NHS West Cheshire | C196: E38000196 | D196: E38000117 | E196: E38000166 | F196: E38000151 | G196: E38000200 | H196: E38000164 | I196: E38000152 | J196: E38000115 | K196: E38000154 | L196: E38000195 | M196: E38000099 | N196: NHS North East Essex | O196: NHS South Worcestershire | P196: NHS South Cheshire | Q196: NHS West Lancashire | R196: NHS South Warwickshire | S196: NHS South Devon & Torbay | T196: NHS North Derbyshire | U196: NHS South Eastern Hampshire | V196: NHS Warwickshire North | W196: NHS Lincolnshire East
A197: 02E | B197: NHS West Essex | C197: E38000197 | D197: E38000007 | E197: E38000120 | F197: E38000010 | G197: E38000033 | H197: E38000106 | I197: E38000166 | J197: E38000151 | K197: E38000025 | L197: E38000002 | M197: E38000189 | N197: NHS Basildon & Brentwood | O197: NHS North Hampshire | P197: NHS Bedfordshire | Q197: NHS Chiltern | R197: NHS Mid Essex | S197: NHS South Worcestershire | T197: NHS South Cheshire | U197: NHS Calderdale | V197: NHS Ashford | W197: NHS Vale Royal
A198: 05H | B198: NHS West Hampshire | C198: E38000198 | D198: E38000062 | E198: E38000206 | F198: E38000150 | G198: E38000106 | H198: E38000051 | I198: E38000213 | J198: E38000086 | K198: E38000049 | L198: E38000089 | M198: E38000166 | N198: NHS Gloucestershire | O198: NHS Wiltshire | P198: NHS Somerset | Q198: NHS Mid Essex | R198: NHS East Leicestershire & Rutland | S198: NHS Coastal West Sussex | T198: NHS Ipswich & East Suffolk | U198: NHS East & North Hertfordshire | V198: NHS Kernow | W198: NHS South Worcestershire
A199: 02F | B199: NHS West Kent | C199: E38000199 | D199: E38000206 | E199: E38000086 | F199: E38000010 | G199: E38000106 | H199: E38000049 | I199: E38000062 | J199: E38000051 | K199: E38000169 | L199: E38000003 | M199: E38000198 | N199: NHS Wiltshire | O199: NHS Ipswich & East Suffolk | P199: NHS Bedfordshire | Q199: NHS Mid Essex | R199: NHS East & North Hertfordshire | S199: NHS Gloucestershire | T199: NHS East Leicestershire & Rutland | U199: NHS Southern Derbyshire | V199: NHS Aylesbury Vale | W199: NHS West Hampshire
A200: 07H | B200: NHS West Lancashire | C200: E38000200 | D200: E38000195 | E200: E38000189 | F200: E38000119 | G200: E38000109 | H200: E38000008 | I200: E38000151 | J200: E38000196 | K200: E38000184 | L200: E38000172 | M200: E38000161 | N200: NHS Warwickshire North | O200: NHS Vale Royal | P200: NHS North East Lincolnshire | Q200: NHS Newark & Sherwood | R200: NHS Bassetlaw | S200: NHS South Cheshire | T200: NHS West Cheshire | U200: NHS Thanet | V200: NHS St Helens | W200: NHS South Sefton
A201: 11A | B201: NHS West Leicestershire | C201: E38000201 | D201: E38000117 | E201: E38000051 | F201: E38000188 | G201: E38000214 | H201: E38000169 | I201: E38000151 | J201: E38000166 | K201: E38000100 | L201: E38000106 | M201: E38000126 | N201: NHS North East Essex | O201: NHS East Leicestershire & Rutland | P201: NHS Vale of York | Q201: NHS Guildford & Waverley | R201: NHS Southern Derbyshire | S201: NHS South Cheshire | T201: NHS South Worcestershire | U201: NHS Lincolnshire West | V201: NHS Mid Essex | W201: NHS North Staffordshire
... 13 more rows

Sheet Raw data
F1: Persons
A2: Procedure Group | B2: CCG16CD | C2: CCG16NM | D2: CCG16NM&Procedure&Year | E2: Timeperiod | F2: Numerator | G2: Denominator | H2: DSR | I2: LCI | J2: UCI | K2: LEB | L2: UEB | M2: Significance level compared to England | N2: Significance level - compared to England
A3: Aesthetic surgery (breast) | B3: E38000001 | C3: NHS Airedale, Wharfedale & Craven | D3: =C3&A3&E3 -> NHS Airedale, Wharfedale & CravenAesthetic surgery (breast)2014/15 | E3: 2014/15 | F3: 52 | G3: 157328 | H3: 32.89818356 | I3: 24.53912664 | J3: 43.17948638 | K3: 8.35905692 | L3: 10.28130283 | M3: =IF(H3="SUP","SUP",IF((VLOOKUP("England"&A3&E3,'England values'!$D$2:$H$61,5,FALSE))<'Raw data'!I3,"significantly higher than",IF(AND((VLOOKUP("England"&A3&E3,'England values'!$D$2:$H$61,5,FALSE))>='Raw data'!I3,(VLOOKUP("England"&A3&E3,'England values'!$D$2:$H$61,5,FALSE))<='Raw data'!J3),"not significantly different from",IF((VLOOKUP("England"&A3&E3,'England values'!$D$2:$H$61,5,FALSE))>'Raw data'!J3,"significantly lower than","Error")))) -> not significantly different from | N3: =IF(M3="not significantly different from","not significantly different",IF(M3="significantly higher than","significantly higher",IF(M3="significantly lower than","significantly lower",IF(M3="SUP","SUP",IF(M3="","N/A"))))) -> not significantly different
A4: Aesthetic surgery (breast) | B4: E38000002 | C4: NHS Ashford | D4: NHS AshfordAesthetic surgery (breast)2014/15 | E4: 2014/15 | F4: 18 | G4: 127057 | H4: 14.76868668 | I4: 8.729927162 | J4: 23.37356969 | K4: 6.03875952 | L4: 8.604883007 | M4: =IF(H4="SUP","SUP",IF((VLOOKUP("England"&A4&E4,'England values'!$D$2:$H$61,5,FALSE))<'Raw data'!I4,"significantly higher than",IF(AND((VLOOKUP("England"&A4&E4,'England values'!$D$2:$H$61,5,FALSE))>='Raw data'!I4,(VLOOKUP("England"&A4&E4,'England values'!$D$2:$H$61,5,FALSE))<='Raw data'!J4),"not significantly different from",IF((VLOOKUP("England"&A4&E4,'England values'!$D$2:$H$61,5,FALSE))>'Raw data'!J4,"significantly lower than","Error")))) -> significantly lower than | N4: significantly lower
A5: Aesthetic surgery (breast) | B5: E38000003 | C5: NHS Aylesbury Vale | D5: NHS Aylesbury ValeAesthetic surgery (breast)2014/15 | E5: 2014/15 | F5: 44 | G5: 204563 | H5: 21.46673675 | I5: 15.55718518 | J5: 28.86892006 | K5: 5.909551576 | L5: 7.402183305 | M5: =IF(H5="SUP","SUP",IF((VLOOKUP("England"&A5&E5,'England values'!$D$2:$H$61,5,FALSE))<'Raw data'!I5,"significantly higher than",IF(AND((VLOOKUP("England"&A5&E5,'England values'!$D$2:$H$61,5,FALSE))>='Raw data'!I5,(VLOOKUP("England"&A5&E5,'England values'!$D$2:$H$61,5,FALSE))<='Raw data'!J5),"not significantly different from",IF((VLOOKUP("England"&A5&E5,'England values'!$D$2:$H$61,5,FALSE))>'Raw data'!J5,"significantly lower than","Error")))) -> not significantly different from | N5: not significantly different
A6: Aesthetic surgery (breast) | B6: E38000004 | C6: NHS Barking & Dagenham | D6: NHS Barking & DagenhamAesthetic surgery (breast)2014/15 | E6: 2014/15 | F6: 24 | G6: 209806 | H6: 14.23600351 | I6: 8.812127293 | J6: 21.6018834 | K6: 5.423876214 | L6: 7.365879891 | M6: =IF(H6="SUP","SUP",IF((VLOOKUP("England"&A6&E6,'England values'!$D$2:$H$61,5,FALSE))<'Raw data'!I6,"significantly higher than",IF(AND((VLOOKUP("England"&A6&E6,'England values'!$D$2:$H$61,5,FALSE))>='Raw data'!I6,(VLOOKUP("England"&A6&E6,'England values'!$D$2:$H$61,5,FALSE))<='Raw data'!J6),"not significantly different from",IF((VLOOKUP("England"&A6&E6,'England values'!$D$2:$H$61,5,FALSE))>'Raw data'!J6,"significantly lower than","Error")))) -> significantly lower than | N6: significantly lower
A7: Aesthetic surgery (breast) | B7: E38000005 | C7: NHS Barnet | D7: NHS BarnetAesthetic surgery (breast)2014/15 | E7: 2014/15 | F7: 76 | G7: 395286 | H7: 20.87143356 | I7: 16.36078074 | J7: 26.22281633 | K7: 4.51065282 | L7: 5.351382762 | M7: =IF(H7="SUP","SUP",IF((VLOOKUP("England"&A7&E7,'England values'!$D$2:$H$61,5,FALSE))<'Raw data'!I7,"significantly higher than",IF(AND((VLOOKUP("England"&A7&E7,'England values'!$D$2:$H$61,5,FALSE))>='Raw data'!I7,(VLOOKUP("England"&A7&E7,'England values'!$D$2:$H$61,5,FALSE))<='Raw data'!J7),"not significantly different from",IF((VLOOKUP("England"&A7&E7,'England values'!$D$2:$H$61,5,FALSE))>'Raw data'!J7,"significantly lower than","Error")))) -> not significantly different from | N7: not significantly different
A8: Aesthetic surgery (breast) | B8: E38000006 | C8: NHS Barnsley | D8: NHS BarnsleyAesthetic surgery (breast)2014/15 | E8: 2014/15 | F8: 86 | G8: 253864 | H8: 33.33650896 | I8: 26.65011947 | J8: 41.18767755 | K8: 6.686389486 | L8: 7.851168587 | M8: =IF(H8="SUP","SUP",IF((VLOOKUP("England"&A8&E8,'England values'!$D$2:$H$61,5,FALSE))<'Raw data'!I8,"significantly higher than",IF(AND((VLOOKUP("England"&A8&E8,'England values'!$D$2:$H$61,5,FALSE))>='Raw data'!I8,(VLOOKUP("England"&A8&E8,'England values'!$D$2:$H$61,5,FALSE))<='Raw data'!J8),"not significantly different from",IF((VLOOKUP("England"&A8&E8,'England values'!$D$2:$H$61,5,FALSE))>'Raw data'!J8,"significantly lower than","Error")))) -> significantly higher than | N8: significantly higher
A9: Aesthetic surgery (breast) | B9: E38000007 | C9: NHS Basildon & Brentwood | D9: NHS Basildon & BrentwoodAesthetic surgery (breast)2014/15 | E9: 2014/15 | F9: 44 | G9: 270291 | H9: 16.62881351 | I9: 12.05958913 | J9: 22.35213041 | K9: 4.569224382 | L9: 5.723316905 | M9: =IF(H9="SUP","SUP",IF((VLOOKUP("England"&A9&E9,'England values'!$D$2:$H$61,5,FALSE))<'Raw data'!I9,"significantly higher than",IF(AND((VLOOKUP("England"&A9&E9,'England values'!$D$2:$H$61,5,FALSE))>='Raw data'!I9,(VLOOKUP("England"&A9&E9,'England values'!$D$2:$H$61,5,FALSE))<='Raw data'!J9),"not significantly different from",IF((VLOOKUP("England"&A9&E9,'England values'!$D$2:$H$61,5,FALSE))>'Raw data'!J9,"significantly lower than","Error")))) -> significantly lower than | N9: significantly lower
A10: Aesthetic surgery (breast) | B10: E38000008 | C10: NHS Bassetlaw | D10: NHS BassetlawAesthetic surgery (breast)2014/15 | E10: 2014/15 | F10: 38 | G10: 113445 | H10: 32.58586109 | I10: 23.01277455 | J10: 44.78643843 | K10: 9.573086534 | L10: 12.20057734 | M10: =IF(H10="SUP","SUP",IF((VLOOKUP("England"&A10&E10,'England values'!$D$2:$H$61,5,FALSE))<'Raw data'!I10,"significantly higher than",IF(AND((VLOOKUP("England"&A10&E10,'England values'!$D$2:$H$61,5,FALSE))>='Raw data'!I10,(VLOOKUP("England"&A10&E10,'England values'!$D$2:$H$61,5,FALSE))<='Raw data'!J10),"not significantly different from",IF((VLOOKUP("England"&A10&E10,'England values'!$D$2:$H$61,5,FALSE))>'Raw data'!J10,"significantly lower than","Error")))) -> not significantly different from | N10: not significantly different
A11: Aesthetic surgery (breast) | B11: E38000009 | C11: NHS Bath & North East Somerset | D11: NHS Bath & North East SomersetAesthetic surgery (breast)2014/15 | E11: 2014/15 | F11: 35 | G11: 200567 | H11: 18.37374378 | I11: 12.77536851 | J11: 25.58255312 | K11: 5.59837527 | L11: 7.208809339 | M11: =IF(H11="SUP","SUP",IF((VLOOKUP("England"&A11&E11,'England values'!$D$2:$H$61,5,FALSE))<'Raw data'!I11,"significantly higher than",IF(AND((VLOOKUP("England"&A11&E11,'England values'!$D$2:$H$61,5,FALSE))>='Raw data'!I11,(VLOOKUP("England"&A11&E11,'England values'!$D$2:$H$61,5,FALSE))<='Raw data'!J11),"not significantly different from",IF((VLOOKUP("England"&A11&E11,'England values'!$D$2:$H$61,5,FALSE))>'Raw data'!J11,"significantly lower than","Error")))) -> not significantly different from | N11: not significantly different
A12: Aesthetic surgery (breast) | B12: E38000010 | C12: NHS Bedfordshire | D12: NHS BedfordshireAesthetic surgery (breast)2014/15 | E12: 2014/15 | F12: 97 | G12: 455978 | H12: 21.18987363 | I12: 17.17269571 | J12: 25.86248577 | K12: 4.017177919 | L12: 4.672612141 | M12: =IF(H12="SUP","SUP",IF((VLOOKUP("England"&A12&E12,'England values'!$D$2:$H$61,5,FALSE))<'Raw data'!I12,"significantly higher than",IF(AND((VLOOKUP("England"&A12&E12,'England values'!$D$2:$H$61,5,FALSE))>='Raw data'!I12,(VLOOKUP("England"&A12&E12,'England values'!$D$2:$H$61,5,FALSE))<='Raw data'!J12),"not significantly different from",IF((VLOOKUP("England"&A12&E12,'England values'!$D$2:$H$61,5,FALSE))>'Raw data'!J12,"significantly lower than","Error")))) -> not significantly different from | N12: not significantly different
A13: Aesthetic surgery (breast) | B13: E38000011 | C13: NHS Bexley | D13: NHS BexleyAesthetic surgery (breast)2014/15 | E13: 2014/15 | F13: 26 | G13: 231331 | H13: 11.57747543 | I13: 7.548498752 | J13: 16.98285927 | K13: 4.028976679 | L13: 5.405383834 | M13: =IF(H13="SUP","SUP",IF((VLOOKUP("England"&A13&E13,'England values'!$D$2:$H$61,5,FALSE))<'Raw data'!I13,"significantly higher than",IF(AND((VLOOKUP("England"&A13&E13,'England values'!$D$2:$H$61,5,FALSE))>='Raw data'!I13,(VLOOKUP("England"&A13&E13,'England values'!$D$2:$H$61,5,FALSE))<='Raw data'!J13),"not significantly different from",IF((VLOOKUP("England"&A13&E13,'England values'!$D$2:$H$61,5,FALSE))>'Raw data'!J13,"significantly lower than","Error")))) -> significantly lower than | N13: significantly lower
A14: Aesthetic surgery (breast) | B14: E38000012 | C14: NHS Birmingham CrossCity | D14: NHS Birmingham CrossCityAesthetic surgery (breast)2014/15 | E14: 2014/15 | F14: 134 | G14: 747166 | H14: 18.69787709 | I14: 15.61624282 | J14: 22.20187698 | K14: 3.081634269 | L14: 3.503999892 | M14: =IF(H14="SUP","SUP",IF((VLOOKUP("England"&A14&E14,'England values'!$D$2:$H$61,5,FALSE))<'Raw data'!I14,"significantly higher than",IF(AND((VLOOKUP("England"&A14&E14,'England values'!$D$2:$H$61,5,FALSE))>='Raw data'!I14,(VLOOKUP("England"&A14&E14,'England values'!$D$2:$H$61,5,FALSE))<='Raw data'!J14),"not significantly different from",IF((VLOOKUP("England"&A14&E14,'England values'!$D$2:$H$61,5,FALSE))>'Raw data'!J14,"significantly lower than","Error")))) -> significantly lower than | N14: significantly lower
A15: Aesthetic surgery (breast) | B15: E38000013 | C15: NHS Birmingham South & Central | D15: NHS Birmingham South & CentralAesthetic surgery (breast)2014/15 | E15: 2014/15 | F15: 54 | G15: 251007 | H15: 25.56785003 | I15: 18.97828768 | J15: 33.6411442 | K15: 6.589562349 | L15: 8.073294178 | M15: =IF(H15="SUP","SUP",IF((VLOOKUP("England"&A15&E15,'England values'!$D$2:$H$61,5,FALSE))<'Raw data'!I15,"significantly higher than",IF(AND((VLOOKUP("England"&A15&E15,'England values'!$D$2:$H$61,5,FALSE))>='Raw data'!I15,(VLOOKUP("England"&A15&E15,'England values'!$D$2:$H$61,5,FALSE))<='Raw data'!J15),"not significantly different from",IF((VLOOKUP("England"&A15&E15,'England values'!$D$2:$H$61,5,FALSE))>'Raw data'!J15,"significantly lower than","Error")))) -> not significantly different from | N15: not significantly different
A16: Aesthetic surgery (breast) | B16: E38000014 | C16: NHS Blackburn with Darwen | D16: NHS Blackburn with DarwenAesthetic surgery (breast)2014/15 | E16: 2014/15 | F16: 49 | G16: 169878 | H16: 31.81879575 | I16: 23.46384574 | J16: 42.16004831 | K16: 8.354950007 | L16: 10.34125256 | M16: =IF(H16="SUP","SUP",IF((VLOOKUP("England"&A16&E16,'England values'!$D$2:$H$61,5,FALSE))<'Raw data'!I16,"significantly higher than",IF(AND((VLOOKUP("England"&A16&E16,'England values'!$D$2:$H$61,5,FALSE))>='Raw data'!I16,(VLOOKUP("England"&A16&E16,'England values'!$D$2:$H$61,5,FALSE))<='Raw data'!J16),"not significantly different from",IF((VLOOKUP("England"&A16&E16,'England values'!$D$2:$H$61,5,FALSE))>'Raw data'!J16,"significantly lower than","Error")))) -> not significantly different from | N16: not significantly different
A17: Aesthetic surgery (breast) | B17: E38000015 | C17: NHS Blackpool | D17: NHS BlackpoolAesthetic surgery (breast)2014/15 | E17: 2014/15 | F17: 77 | G17: 171635 | H17: 45.02951968 | I17: 35.48158175 | J17: 56.34436468 | K17: 9.547937937 | L17: 11.31484499 | M17: =IF(H17="SUP","SUP",IF((VLOOKUP("England"&A17&E17,'England values'!$D$2:$H$61,5,FALSE))<'Raw data'!I17,"significantly higher than",IF(AND((VLOOKUP("England"&A17&E17,'England values'!$D$2:$H$61,5,FALSE))>='Raw data'!I17,(VLOOKUP("England"&A17&E17,'England values'!$D$2:$H$61,5,FALSE))<='Raw data'!J17),"not significantly different from",IF((VLOOKUP("England"&A17&E17,'England values'!$D$2:$H$61,5,FALSE))>'Raw data'!J17,"significantly lower than","Error")))) -> significantly higher than | N17: significantly higher
A18: Aesthetic surgery (breast) | B18: E38000016 | C18: NHS Bolton | D18: NHS BoltonAesthetic surgery (breast)2014/15 | E18: 2014/15 | F18: 63 | G18: 299327 | H18: 22.07038983 | I18: 16.93606419 | J18: 28.26588777 | K18: 5.134325644 | L18: 6.19549794 | M18: =IF(H18="SUP","SUP",IF((VLOOKUP("England"&A18&E18,'England values'!$D$2:$H$61,5,FALSE))<'Raw data'!I18,"significantly higher than",IF(AND((VLOOKUP("England"&A18&E18,'England values'!$D$2:$H$61,5,FALSE))>='Raw data'!I18,(VLOOKUP("England"&A18&E18,'England values'!$D$2:$H$61,5,FALSE))<='Raw data'!J18),"not significantly different from",IF((VLOOKUP("England"&A18&E18,'England values'!$D$2:$H$61,5,FALSE))>'Raw data'!J18,"significantly lower than","Error")))) -> not significantly different from | N18: not significantly different
A19: Aesthetic surgery (breast) | B19: E38000017 | C19: NHS Bracknell & Ascot | D19: NHS Bracknell & AscotAesthetic surgery (breast)2014/15 | E19: 2014/15 | F19: 29 | G19: 138896 | H19: 21.03434859 | I19: 14.01535963 | J19: 30.3034842 | K19: 7.018988969 | L19: 9.269135601 | M19: =IF(H19="SUP","SUP",IF((VLOOKUP("England"&A19&E19,'England values'!$D$2:$H$61,5,FALSE))<'Raw data'!I19,"significantly higher than",IF(AND((VLOOKUP("England"&A19&E19,'England values'!$D$2:$H$61,5,FALSE))>='Raw data'!I19,(VLOOKUP("England"&A19&E19,'England values'!$D$2:$H$61,5,FALSE))<='Raw data'!J19),"not significantly different from",IF((VLOOKUP("England"&A19&E19,'England values'!$D$2:$H$61,5,FALSE))>'Raw data'!J19,"significantly lower than","Error")))) -> not significantly different from | N19: not significantly different
A20: Aesthetic surgery (breast) | B20: E38000018 | C20: NHS Bradford City | D20: NHS Bradford CityAesthetic surgery (breast)2014/15 | E20: 2014/15 | F20: SUP | G20: 121766 | H20: SUP | I20: SUP | J20: SUP | K20: SUP | L20: SUP | M20: =IF(H20="SUP","SUP",IF((VLOOKUP("England"&A20&E20,'England values'!$D$2:$H$61,5,FALSE))<'Raw data'!I20,"significantly higher than",IF(AND((VLOOKUP("England"&A20&E20,'England values'!$D$2:$H$61,5,FALSE))>='Raw data'!I20,(VLOOKUP("England"&A20&E20,'England values'!$D$2:$H$61,5,FALSE))<='Raw data'!J20),"not significantly different from",IF((VLOOKUP("England"&A20&E20,'England values'!$D$2:$H$61,5,FALSE))>'Raw data'!J20,"significantly lower than","Error")))) -> SUP | N20: SUP
A21: Aesthetic surgery (breast) | B21: E38000019 | C21: NHS Bradford Districts | D21: NHS Bradford DistrictsAesthetic surgery (breast)2014/15 | E21: 2014/15 | F21: 91 | G21: 337376 | H21: 28.54648649 | I21: 22.95484204 | J21: 35.08266788 | K21: 5.591644444 | L21: 6.536181392 | M21: =IF(H21="SUP","SUP",IF((VLOOKUP("England"&A21&E21,'England values'!$D$2:$H$61,5,FALSE))<'Raw data'!I21,"significantly higher than",IF(AND((VLOOKUP("England"&A21&E21,'England values'!$D$2:$H$61,5,FALSE))>='Raw data'!I21,(VLOOKUP("England"&A21&E21,'England values'!$D$2:$H$61,5,FALSE))<='Raw data'!J21),"not significantly different from",IF((VLOOKUP("England"&A21&E21,'England values'!$D$2:$H$61,5,FALSE))>'Raw data'!J21,"significantly lower than","Error")))) -> not significantly different from | N21: not significantly different
A22: Aesthetic surgery (breast) | B22: E38000020 | C22: NHS Brent | D22: NHS BrentAesthetic surgery (breast)2014/15 | E22: 2014/15 | F22: 35 | G22: 360155 | H22: 10.8664091 | I22: 7.399828965 | J22: 15.33018905 | K22: 3.466580136 | L22: 4.463779946 | M22: =IF(H22="SUP","SUP",IF((VLOOKUP("England"&A22&E22,'England values'!$D$2:$H$61,5,FALSE))<'Raw data'!I22,"significantly higher than",IF(AND((VLOOKUP("England"&A22&E22,'England values'!$D$2:$H$61,5,FALSE))>='Raw data'!I22,(VLOOKUP("England"&A22&E22,'England values'!$D$2:$H$61,5,FALSE))<='Raw data'!J22),"not significantly different from",IF((VLOOKUP("England"&A22&E22,'England values'!$D$2:$H$61,5,FALSE))>'Raw data'!J22,"significantly lower than","Error")))) -> significantly lower than | N22: significantly lower
A23: Aesthetic surgery (breast) | B23: E38000021 | C23: NHS Brighton & Hove | D23: NHS Brighton & HoveAesthetic surgery (breast)2014/15 | E23: 2014/15 | F23: 61 | G23: 307741 | H23: 21.75870628 | I23: 16.46848335 | J23: 28.16203548 | K23: 5.290222938 | L23: 6.403329199 | M23: =IF(H23="SUP","SUP",IF((VLOOKUP("England"&A23&E23,'England values'!$D$2:$H$61,5,FALSE))<'Raw data'!I23,"significantly higher than",IF(AND((VLOOKUP("England"&A23&E23,'England values'!$D$2:$H$61,5,FALSE))>='Raw data'!I23,(VLOOKUP("England"&A23&E23,'England values'!$D$2:$H$61,5,FALSE))<='Raw data'!J23),"not significantly different from",IF((VLOOKUP("England"&A23&E23,'England values'!$D$2:$H$61,5,FALSE))>'Raw data'!J23,"significantly lower than","Error")))) -> not significantly different from | N23: not significantly different
A24: Aesthetic surgery (breast) | B24: E38000022 | C24: NHS Bristol | D24: NHS BristolAesthetic surgery (breast)2014/15 | E24: 2014/15 | F24: 119 | G24: 488400 | H24: 26.93161059 | I24: 22.21678907 | J24: 32.33521018 | K24: 4.714821515 | L24: 5.403599593 | M24: =IF(H24="SUP","SUP",IF((VLOOKUP("England"&A24&E24,'England values'!$D$2:$H$61,5,FALSE))<'Raw data'!I24,"significantly higher than",IF(AND((VLOOKUP("England"&A24&E24,'England values'!$D$2:$H$61,5,FALSE))>='Raw data'!I24,(VLOOKUP("England"&A24&E24,'England values'!$D$2:$H$61,5,FALSE))<='Raw data'!J24),"not significantly different from",IF((VLOOKUP("England"&A24&E24,'England values'!$D$2:$H$61,5,FALSE))>'Raw data'!J24,"significantly lower than","Error")))) -> not significantly different from | N24: not significantly different
A25: Aesthetic surgery (breast) | B25: E38000023 | C25: NHS Bromley | D25: NHS BromleyAesthetic surgery (breast)2014/15 | E25: 2014/15 | F25: 78 | G25: 337102 | H25: 23.78642881 | I25: 18.76562369 | J25: 29.72981908 | K25: 5.020805118 | L25: 5.943390267 | M25: =IF(H25="SUP","SUP",IF((VLOOKUP("England"&A25&E25,'England values'!$D$2:$H$61,5,FALSE))<'Raw data'!I25,"significantly higher than",IF(AND((VLOOKUP("England"&A25&E25,'England values'!$D$2:$H$61,5,FALSE))>='Raw data'!I25,(VLOOKUP("England"&A25&E25,'England values'!$D$2:$H$61,5,FALSE))<='Raw data'!J25),"not significantly different from",IF((VLOOKUP("England"&A25&E25,'England values'!$D$2:$H$61,5,FALSE))>'Raw data'!J25,"significantly lower than","Error")))) -> not significantly different from | N25: not significantly different
A26: Aesthetic surgery (breast) | B26: E38000024 | C26: NHS Bury | D26: NHS BuryAesthetic surgery (breast)2014/15 | E26: 2014/15 | F26: 57 | G26: 197929 | H26: 29.24877024 | I26: 22.12567515 | J26: 37.92814387 | K26: 7.123095085 | L26: 8.679373632 | M26: =IF(H26="SUP","SUP",IF((VLOOKUP("England"&A26&E26,'England values'!$D$2:$H$61,5,FALSE))<'Raw data'!I26,"significantly higher than",IF(AND((VLOOKUP("England"&A26&E26,'England values'!$D$2:$H$61,5,FALSE))>='Raw data'!I26,(VLOOKUP("England"&A26&E26,'England values'!$D$2:$H$61,5,FALSE))<='Raw data'!J26),"not significantly different from",IF((VLOOKUP("England"&A26&E26,'England values'!$D$2:$H$61,5,FALSE))>'Raw data'!J26,"significantly lower than","Error")))) -> not significantly different from | N26: not significantly different
A27: Aesthetic surgery (breast) | B27: E38000025 | C27: NHS Calderdale | D27: NHS CalderdaleAesthetic surgery (breast)2014/15 | E27: 2014/15 | F27: 63 | G27: 216940 | H27: 28.61533063 | I27: 21.96544456 | J27: 36.63962793 | K27: 6.649886062 | L27: 8.024297299 | M27: =IF(H27="SUP","SUP",IF((VLOOKUP("England"&A27&E27,'England values'!$D$2:$H$61,5,FALSE))<'Raw data'!I27,"significantly higher than",IF(AND((VLOOKUP("England"&A27&E27,'England values'!$D$2:$H$61,5,FALSE))>='Raw data'!I27,(VLOOKUP("England"&A27&E27,'England values'!$D$2:$H$61,5,FALSE))<='Raw data'!J27),"not significantly different from",IF((VLOOKUP("England"&A27&E27,'England values'!$D$2:$H$61,5,FALSE))>'Raw data'!J27,"significantly lower than","Error")))) -> not significantly different from | N27: not significantly different
A28: Aesthetic surgery (breast) | B28: E38000026 | C28: NHS Cambridgeshire & Peterborough | D28: NHS Cambridgeshire & PeterboroughAesthetic surgery (breast)2014/15 | E28: 2014/15 | F28: 169 | G28: 904023 | H28: 19.16221939 | I28: 16.36745627 | J28: 22.29537035 | K28: 2.794763113 | L28: 3.133150968 | M28: =IF(H28="SUP","SUP",IF((VLOOKUP("England"&A28&E28,'England values'!$D$2:$H$61,5,FALSE))<'Raw data'!I28,"significantly higher than",IF(AND((VLOOKUP("England"&A28&E28,'England values'!$D$2:$H$61,5,FALSE))>='Raw data'!I28,(VLOOKUP("England"&A28&E28,'England values'!$D$2:$H$61,5,FALSE))<='Raw data'!J28),"not significantly different from",IF((VLOOKUP("England"&A28&E28,'England values'!$D$2:$H$61,5,FALSE))>'Raw data'!J28,"significantly lower than","Error")))) -> significantly lower than | N28: significantly lower
A29: Aesthetic surgery (breast) | B29: E38000027 | C29: NHS Camden | D29: NHS CamdenAesthetic surgery (breast)2014/15 | E29: 2014/15 | F29: 55 | G29: 260759 | H29: 28.10927901 | I29: 20.72180909 | J29: 37.14320911 | K29: 7.387469921 | L29: 9.033930101 | M29: =IF(H29="SUP","SUP",IF((VLOOKUP("England"&A29&E29,'England values'!$D$2:$H$61,5,FALSE))<'Raw data'!I29,"significantly higher than",IF(AND((VLOOKUP("England"&A29&E29,'England values'!$D$2:$H$61,5,FALSE))>='Raw data'!I29,(VLOOKUP("England"&A29&E29,'England values'!$D$2:$H$61,5,FALSE))<='Raw data'!J29),"not significantly different from",IF((VLOOKUP("England"&A29&E29,'England values'!$D$2:$H$61,5,FALSE))>'Raw data'!J29,"significantly lower than","Error")))) -> not significantly different from | N29: not significantly different
A30: Aesthetic surgery (breast) | B30: E38000028 | C30: NHS Cannock Chase | D30: NHS Cannock ChaseAesthetic surgery (breast)2014/15 | E30: 2014/15 | F30: 46 | G30: 133481 | H30: 33.5612493 | I30: 24.51989512 | J30: 44.82976246 | K30: 9.041354178 | L30: 11.26851316 | M30: =IF(H30="SUP","SUP",IF((VLOOKUP("England"&A30&E30,'England values'!$D$2:$H$61,5,FALSE))<'Raw data'!I30,"significantly higher than",IF(AND((VLOOKUP("England"&A30&E30,'England values'!$D$2:$H$61,5,FALSE))>='Raw data'!I30,(VLOOKUP("England"&A30&E30,'England values'!$D$2:$H$61,5,FALSE))<='Raw data'!J30),"not significantly different from",IF((VLOOKUP("England"&A30&E30,'England values'!$D$2:$H$61,5,FALSE))>'Raw data'!J30,"significantly lower than","Error")))) -> not significantly different from | N30: not significantly different
A31: Aesthetic surgery (breast) | B31: E38000029 | C31: NHS Canterbury & Coastal | D31: NHS Canterbury & CoastalAesthetic surgery (breast)2014/15 | E31: 2014/15 | F31: 34 | G31: 217260 | H31: 15.78220283 | I31: 10.87127513 | J31: 22.12947451 | K31: 4.910927699 | L31: 6.34727168 | M31: =IF(H31="SUP","SUP",IF((VLOOKUP("England"&A31&E31,'England values'!$D$2:$H$61,5,FALSE))<'Raw data'!I31,"significantly higher than",IF(AND((VLOOKUP("England"&A31&E31,'England values'!$D$2:$H$61,5,FALSE))>='Raw data'!I31,(VLOOKUP("England"&A31&E31,'England values'!$D$2:$H$61,5,FALSE))<='Raw data'!J31),"not significantly different from",IF((VLOOKUP("England"&A31&E31,'England values'!$D$2:$H$61,5,FALSE))>'Raw data'!J31,"significantly lower than","Error")))) -> significantly lower than | N31: significantly lower
A32: Aesthetic surgery (breast) | B32: E38000030 | C32: NHS Castle Point & Rochford | D32: NHS Castle Point & RochfordAesthetic surgery (breast)2014/15 | E32: 2014/15 | F32: 15 | G32: 181858 | H32: 8.049433507 | I32: 4.454442556 | J32: 13.35118156 | K32: 3.594990951 | L32: 5.301748052 | M32: =IF(H32="SUP","SUP",IF((VLOOKUP("England"&A32&E32,'England values'!$D$2:$H$61,5,FALSE))<'Raw data'!I32,"significantly higher than",IF(AND((VLOOKUP("England"&A32&E32,'England values'!$D$2:$H$61,5,FALSE))>='Raw data'!I32,(VLOOKUP("England"&A32&E32,'England values'!$D$2:$H$61,5,FALSE))<='Raw data'!J32),"not significantly different from",IF((VLOOKUP("England"&A32&E32,'England values'!$D$2:$H$61,5,FALSE))>'Raw data'!J32,"significantly lower than","Error")))) -> significantly lower than | N32: significantly lower
A33: Aesthetic surgery (breast) | B33: E38000031 | C33: NHS Central London (Westminster) | D33: NHS Central London (Westminster)Aesthetic surgery (breast)2014/15 | E33: 2014/15 | F33: 44 | G33: 202531 | H33: 24.91110488 | I33: 17.6760218 | J33: 33.9736218 | K33: 7.235083078 | L33: 9.062516923 | M33: =IF(H33="SUP","SUP",IF((VLOOKUP("England"&A33&E33,'England values'!$D$2:$H$61,5,FALSE))<'Raw data'!I33,"significantly higher than",IF(AND((VLOOKUP("England"&A33&E33,'England values'!$D$2:$H$61,5,FALSE))>='Raw data'!I33,(VLOOKUP("England"&A33&E33,'England values'!$D$2:$H$61,5,FALSE))<='Raw data'!J33),"not significantly different from",IF((VLOOKUP("England"&A33&E33,'England values'!$D$2:$H$61,5,FALSE))>'Raw data'!J33,"significantly lower than","Error")))) -> not significantly different from | N33: not significantly different
A34: Aesthetic surgery (breast) | B34: E38000032 | C34: NHS Central Manchester | D34: NHS Central ManchesterAesthetic surgery (breast)2014/15 | E34: 2014/15 | F34: 25 | G34: 221101 | H34: 13.23086094 | I34: 8.264876531 | J34: 19.93277375 | K34: 4.965984407 | L34: 6.701912816 | M34: =IF(H34="SUP","SUP",IF((VLOOKUP("England"&A34&E34,'England values'!$D$2:$H$61,5,FALSE))<'Raw data'!I34,"significantly higher than",IF(AND((VLOOKUP("England"&A34&E34,'England values'!$D$2:$H$61,5,FALSE))>='Raw data'!I34,(VLOOKUP("England"&A34&E34,'England values'!$D$2:$H$61,5,FALSE))<='Raw data'!J34),"not significantly different from",IF((VLOOKUP("England"&A34&E34,'England values'!$D$2:$H$61,5,FALSE))>'Raw data'!J34,"significantly lower than","Error")))) -> significantly lower than | N34: significantly lower
A35: Aesthetic surgery (breast) | B35: E38000033 | C35: NHS Chiltern | D35: NHS ChilternAesthetic surgery (breast)2014/15 | E35: 2014/15 | F35: 55 | G35: 331548 | H35: 16.89966628 | I35: 12.71798724 | J35: 22.01332449 | K35: 4.181679045 | L35: 5.113658208 | M35: =IF(H35="SUP","SUP",IF((VLOOKUP("England"&A35&E35,'England values'!$D$2:$H$61,5,FALSE))<'Raw data'!I35,"significantly higher than",IF(AND((VLOOKUP("England"&A35&E35,'England values'!$D$2:$H$61,5,FALSE))>='Raw data'!I35,(VLOOKUP("England"&A35&E35,'England values'!$D$2:$H$61,5,FALSE))<='Raw data'!J35),"not significantly different from",IF((VLOOKUP("England"&A35&E35,'England values'!$D$2:$H$61,5,FALSE))>'Raw data'!J35,"significantly lower than","Error")))) -> significantly lower than | N35: significantly lower
A36: Aesthetic surgery (breast) | B36: E38000034 | C36: NHS Chorley & South Ribble | D36: NHS Chorley & South RibbleAesthetic surgery (breast)2014/15 | E36: 2014/15 | F36: 91 | G36: 177289 | H36: 50.33415602 | I36: 40.49687462 | J36: 61.83314461 | K36: 9.837281404 | L36: 11.49898859 | M36: =IF(H36="SUP","SUP",IF((VLOOKUP("England"&A36&E36,'England values'!$D$2:$H$61,5,FALSE))<'Raw data'!I36,"significantly higher than",IF(AND((VLOOKUP("England"&A36&E36,'England values'!$D$2:$H$61,5,FALSE))>='Raw data'!I36,(VLOOKUP("England"&A36&E36,'England values'!$D$2:$H$61,5,FALSE))<='Raw data'!J36),"not significantly different from",IF((VLOOKUP("England"&A36&E36,'England values'!$D$2:$H$61,5,FALSE))>'Raw data'!J36,"significantly lower than","Error")))) -> significantly higher than | N36: significantly higher
A37: Aesthetic surgery (breast) | B37: E38000035 | C37: NHS City & Hackney | D37: NHS City & HackneyAesthetic surgery (breast)2014/15 | E37: 2014/15 | F37: 64 | G37: 291240 | H37: 26.86678181 | I37: 20.26204011 | J37: 34.8247631 | K37: 6.604741694 | L37: 7.957981293 | M37: =IF(H37="SUP","SUP",IF((VLOOKUP("England"&A37&E37,'England values'!$D$2:$H$61,5,FALSE))<'Raw data'!I37,"significantly higher than",IF(AND((VLOOKUP("England"&A37&E37,'England values'!$D$2:$H$61,5,FALSE))>='Raw data'!I37,(VLOOKUP("England"&A37&E37,'England values'!$D$2:$H$61,5,FALSE))<='Raw data'!J37),"not significantly different from",IF((VLOOKUP("England"&A37&E37,'England values'!$D$2:$H$61,5,FALSE))>'Raw data'!J37,"significantly lower than","Error")))) -> not significantly different from | N37: not significantly different
A38: Aesthetic surgery (breast) | B38: E38000037 | C38: NHS Corby | D38: NHS CorbyAesthetic surgery (breast)2014/15 | E38: 2014/15 | F38: 13 | G38: 73093 | H38: 17.80208357 | I38: 9.408610191 | J38: 30.5487892 | K38: 8.393473378 | L38: 12.74670563 | M38: =IF(H38="SUP","SUP",IF((VLOOKUP("England"&A38&E38,'England values'!$D$2:$H$61,5,FALSE))<'Raw data'!I38,"significantly higher than",IF(AND((VLOOKUP("England"&A38&E38,'England values'!$D$2:$H$61,5,FALSE))>='Raw data'!I38,(VLOOKUP("England"&A38&E38,'England values'!$D$2:$H$61,5,FALSE))<='Raw data'!J38),"not significantly different from",IF((VLOOKUP("England"&A38&E38,'England values'!$D$2:$H$61,5,FALSE))>'Raw data'!J38,"significantly lower than","Error")))) -> not significantly different from | N38: not significantly different
A39: Aesthetic surgery (breast) | B39: E38000038 | C39: NHS Coventry & Rugby | D39: NHS Coventry & RugbyAesthetic surgery (breast)2014/15 | E39: 2014/15 | F39: 88 | G39: 481153 | H39: 19.59328942 | I39: 15.65122507 | J39: 24.21351308 | K39: 3.942064344 | L39: 4.620223663 | M39: =IF(H39="SUP","SUP",IF((VLOOKUP("England"&A39&E39,'England values'!$D$2:$H$61,5,FALSE))<'Raw data'!I39,"significantly higher than",IF(AND((VLOOKUP("England"&A39&E39,'England values'!$D$2:$H$61,5,FALSE))>='Raw data'!I39,(VLOOKUP("England"&A39&E39,'England values'!$D$2:$H$61,5,FALSE))<='Raw data'!J39),"not significantly different from",IF((VLOOKUP("England"&A39&E39,'England values'!$D$2:$H$61,5,FALSE))>'Raw data'!J39,"significantly lower than","Error")))) -> significantly lower than | N39: significantly lower
A40: Aesthetic surgery (breast) | B40: E38000039 | C40: NHS Crawley | D40: NHS CrawleyAesthetic surgery (breast)2014/15 | E40: 2014/15 | F40: 22 | G40: 129004 | H40: 18.65913738 | I40: 11.55028229 | J40: 28.44747072 | K40: 7.108855092 | L40: 9.788333339 | M40: =IF(H40="SUP","SUP",IF((VLOOKUP("England"&A40&E40,'England values'!$D$2:$H$61,5,FALSE))<'Raw data'!I40,"significantly higher than",IF(AND((VLOOKUP("England"&A40&E40,'England values'!$D$2:$H$61,5,FALSE))>='Raw data'!I40,(VLOOKUP("England"&A40&E40,'England values'!$D$2:$H$61,5,FALSE))<='Raw data'!J40),"not significantly different from",IF((VLOOKUP("England"&A40&E40,'England values'!$D$2:$H$61,5,FALSE))>'Raw data'!J40,"significantly lower than","Error")))) -> not significantly different from | N40: not significantly different
A41: Aesthetic surgery (breast) | B41: E38000040 | C41: NHS Croydon | D41: NHS CroydonAesthetic surgery (breast)2014/15 | E41: 2014/15 | F41: 81 | G41: 393511 | H41: 21.74850743 | I41: 17.16135475 | J41: 27.16132578 | K41: 4.587152676 | L41: 5.412818351 | M41: =IF(H41="SUP","SUP",IF((VLOOKUP("England"&A41&E41,'England values'!$D$2:$H$61,5,FALSE))<'Raw data'!I41,"significantly higher than",IF(AND((VLOOKUP("England"&A41&E41,'England values'!$D$2:$H$61,5,FALSE))>='Raw data'!I41,(VLOOKUP("England"&A41&E41,'England values'!$D$2:$H$61,5,FALSE))<='Raw data'!J41),"not significantly different from",IF((VLOOKUP("England"&A41&E41,'England values'!$D$2:$H$61,5,FALSE))>'Raw data'!J41,"significantly lower than","Error")))) -> not significantly different from | N41: not significantly different
A42: Aesthetic surgery (breast) | B42: E38000041 | C42: NHS Cumbria | D42: NHS CumbriaAesthetic surgery (breast)2014/15 | E42: 2014/15 | F42: 151 | G42: 521339 | H42: 27.56482157 | I42: 23.31022448 | J42: 32.36644075 | K42: 4.254597085 | L42: 4.801619186 | M42: =IF(H42="SUP","SUP",IF((VLOOKUP("England"&A42&E42,'England values'!$D$2:$H$61,5,FALSE))<'Raw data'!I42,"significantly higher than",IF(AND((VLOOKUP("England"&A42&E42,'England values'!$D$2:$H$61,5,FALSE))>='Raw data'!I42,(VLOOKUP("England"&A42&E42,'England values'!$D$2:$H$61,5,FALSE))<='Raw data'!J42),"not significantly different from",IF((VLOOKUP("England"&A42&E42,'England values'!$D$2:$H$61,5,FALSE))>'Raw data'!J42,"significantly lower than","Error")))) -> not significantly different from | N42: not significantly different
A43: Aesthetic surgery (breast) | B43: E38000042 | C43: NHS Darlington | D43: NHS DarlingtonAesthetic surgery (breast)2014/15 | E43: 2014/15 | F43: 32 | G43: 106636 | H43: 29.51811101 | I43: 20.17989348 | J43: 41.68440959 | K43: 9.338217533 | L43: 12.16629857 | M43: =IF(H43="SUP","SUP",IF((VLOOKUP("England"&A43&E43,'England values'!$D$2:$H$61,5,FALSE))<'Raw data'!I43,"significantly higher than",IF(AND((VLOOKUP("England"&A43&E43,'England values'!$D$2:$H$61,5,FALSE))>='Raw data'!I43,(VLOOKUP("England"&A43&E43,'England values'!$D$2:$H$61,5,FALSE))<='Raw data'!J43),"not significantly different from",IF((VLOOKUP("England"&A43&E43,'England values'!$D$2:$H$61,5,FALSE))>'Raw data'!J43,"significantly lower than","Error")))) -> not significantly different from | N43: not significantly different
A44: Aesthetic surgery (breast) | B44: E38000043 | C44: NHS Dartford, Gravesham & Swanley | D44: NHS Dartford, Gravesham & SwanleyAesthetic surgery (breast)2014/15 | E44: 2014/15 | F44: 48 | G44: 256379 | H44: 19.80575294 | I44: 14.57722532 | J44: 26.29177516 | K44: 5.228527617 | L44: 6.486022226 | M44: =IF(H44="SUP","SUP",IF((VLOOKUP("England"&A44&E44,'England values'!$D$2:$H$61,5,FALSE))<'Raw data'!I44,"significantly higher than",IF(AND((VLOOKUP("England"&A44&E44,'England values'!$D$2:$H$61,5,FALSE))>='Raw data'!I44,(VLOOKUP("England"&A44&E44,'England values'!$D$2:$H$61,5,FALSE))<='Raw data'!J44),"not significantly different from",IF((VLOOKUP("England"&A44&E44,'England values'!$D$2:$H$61,5,FALSE))>'Raw data'!J44,"significantly lower than","Error")))) -> not significantly different from | N44: not significantly different
A45: Aesthetic surgery (breast) | B45: E38000044 | C45: NHS Doncaster | D45: NHS DoncasterAesthetic surgery (breast)2014/15 | E45: 2014/15 | F45: 111 | G45: 311749 | H45: 36.08333745 | I45: 29.65372466 | J45: 43.48815662 | K45: 6.429612789 | L45: 7.404819169 | M45: =IF(H45="SUP","SUP",IF((VLOOKUP("England"&A45&E45,'England values'!$D$2:$H$61,5,FALSE))<'Raw data'!I45,"significantly higher than",IF(AND((VLOOKUP("England"&A45&E45,'England values'!$D$2:$H$61,5,FALSE))>='Raw data'!I45,(VLOOKUP("England"&A45&E45,'England values'!$D$2:$H$61,5,FALSE))<='Raw data'!J45),"not significantly different from",IF((VLOOKUP("England"&A45&E45,'England values'!$D$2:$H$61,5,FALSE))>'Raw data'!J45,"significantly lower than","Error")))) -> significantly higher than | N45: significantly higher
A46: Aesthetic surgery (breast) | B46: E38000045 | C46: NHS Dorset | D46: NHS DorsetAesthetic surgery (breast)2014/15 | E46: 2014/15 | F46: 160 | G46: 782581 | H46: 19.89459524 | I46: 16.91586092 | J46: 23.24466069 | K46: 2.978734327 | L46: 3.350065445 | M46: =IF(H46="SUP","SUP",IF((VLOOKUP("England"&A46&E46,'England values'!$D$2:$H$61,5,FALSE))<'Raw data'!I46,"significantly higher than",IF(AND((VLOOKUP("England"&A46&E46,'England values'!$D$2:$H$61,5,FALSE))>='Raw data'!I46,(VLOOKUP("England"&A46&E46,'England values'!$D$2:$H$61,5,FALSE))<='Raw data'!J46),"not significantly different from",IF((VLOOKUP("England"&A46&E46,'England values'!$D$2:$H$61,5,FALSE))>'Raw data'!J46,"significantly lower than","Error")))) -> significantly lower than | N46: significantly lower
A47: Aesthetic surgery (breast) | B47: E38000046 | C47: NHS Dudley | D47: NHS DudleyAesthetic surgery (breast)2014/15 | E47: 2014/15 | F47: 72 | G47: 314593 | H47: 22.89494363 | I47: 17.90292075 | J47: 28.84545987 | K47: 4.992022882 | L47: 5.950516243 | M47: =IF(H47="SUP","SUP",IF((VLOOKUP("England"&A47&E47,'England values'!$D$2:$H$61,5,FALSE))<'Raw data'!I47,"significantly higher than",IF(AND((VLOOKUP("England"&A47&E47,'England values'!$D$2:$H$61,5,FALSE))>='Raw data'!I47,(VLOOKUP("England"&A47&E47,'England values'!$D$2:$H$61,5,FALSE))<='Raw data'!J47),"not significantly different from",IF((VLOOKUP("England"&A47&E47,'England values'!$D$2:$H$61,5,FALSE))>'Raw data'!J47,"significantly lower than","Error")))) -> not significantly different from | N47: not significantly different
A48: Aesthetic surgery (breast) | B48: E38000047 | C48: NHS Durham Dales, Easington & Sedgefield | D48: NHS Durham Dales, Easington & SedgefieldAesthetic surgery (breast)2014/15 | E48: 2014/15 | F48: 108 | G48: 288773 | H48: 37.0098495 | I48: 30.32779942 | J48: 44.72050679 | K48: 6.682050082 | L48: 7.710657289 | M48: =IF(H48="SUP","SUP",IF((VLOOKUP("England"&A48&E48,'England values'!$D$2:$H$61,5,FALSE))<'Raw data'!I48,"significantly higher than",IF(AND((VLOOKUP("England"&A48&E48,'England values'!$D$2:$H$61,5,FALSE))>='Raw data'!I48,(VLOOKUP("England"&A48&E48,'England values'!$D$2:$H$61,5,FALSE))<='Raw data'!J48),"not significantly different from",IF((VLOOKUP("England"&A48&E48,'England values'!$D$2:$H$61,5,FALSE))>'Raw data'!J48,"significantly lower than","Error")))) -> significantly higher than | N48: significantly higher
A49: Aesthetic surgery (breast) | B49: E38000048 | C49: NHS Ealing | D49: NHS EalingAesthetic surgery (breast)2014/15 | E49: 2014/15 | F49: 68 | G49: 416523 | H49: 19.42878261 | I49: 14.88685564 | J49: 24.87066473 | K49: 4.541926962 | L49: 5.441882122 | M49: =IF(H49="SUP","SUP",IF((VLOOKUP("England"&A49&E49,'England values'!$D$2:$H$61,5,FALSE))<'Raw data'!I49,"significantly higher than",IF(AND((VLOOKUP("England"&A49&E49,'England values'!$D$2:$H$61,5,FALSE))>='Raw data'!I49,(VLOOKUP("England"&A49&E49,'England values'!$D$2:$H$61,5,FALSE))<='Raw data'!J49),"not significantly different from",IF((VLOOKUP("England"&A49&E49,'England values'!$D$2:$H$61,5,FALSE))>'Raw data'!J49,"significantly lower than","Error")))) -> significantly lower than | N49: significantly lower
A50: Aesthetic surgery (breast) | B50: E38000049 | C50: NHS East & North Hertfordshire | D50: NHS East & North HertfordshireAesthetic surgery (breast)2014/15 | E50: 2014/15 | F50: 128 | G50: 581950 | H50: 22.10521014 | I50: 18.41638593 | J50: 26.31220505 | K50: 3.688824208 | L50: 4.206994907 | M50: =IF(H50="SUP","SUP",IF((VLOOKUP("England"&A50&E50,'England values'!$D$2:$H$61,5,FALSE))<'Raw data'!I50,"significantly higher than",IF(AND((VLOOKUP("England"&A50&E50,'England values'!$D$2:$H$61,5,FALSE))>='Raw data'!I50,(VLOOKUP("England"&A50&E50,'England values'!$D$2:$H$61,5,FALSE))<='Raw data'!J50),"not significantly different from",IF((VLOOKUP("England"&A50&E50,'England values'!$D$2:$H$61,5,FALSE))>'Raw data'!J50,"significantly lower than","Error")))) -> not significantly different from | N50: not significantly different
A51: Aesthetic surgery (breast) | B51: E38000050 | C51: NHS East Lancashire | D51: NHS East LancashireAesthetic surgery (breast)2014/15 | E51: 2014/15 | F51: 97 | G51: 373091 | H51: 26.4198323 | I51: 21.40780869 | J51: 32.24960706 | K51: 5.012023619 | L51: 5.829774754 | M51: =IF(H51="SUP","SUP",IF((VLOOKUP("England"&A51&E51,'England values'!$D$2:$H$61,5,FALSE))<'Raw data'!I51,"significantly higher than",IF(AND((VLOOKUP("England"&A51&E51,'England values'!$D$2:$H$61,5,FALSE))>='Raw data'!I51,(VLOOKUP("England"&A51&E51,'England values'!$D$2:$H$61,5,FALSE))<='Raw data'!J51),"not significantly different from",IF((VLOOKUP("England"&A51&E51,'England values'!$D$2:$H$61,5,FALSE))>'Raw data'!J51,"significantly lower than","Error")))) -> not significantly different from | N51: not significantly different
A52: Aesthetic surgery (breast) | B52: E38000051 | C52: NHS East Leicestershire & Rutland | D52: NHS East Leicestershire & RutlandAesthetic surgery (breast)2014/15 | E52: 2014/15 | F52: 153 | G52: 322230 | H52: 46.3104118 | I52: 39.22267511 | J52: 54.30305236 | K52: 7.087736693 | L52: 7.992640554 | M52: =IF(H52="SUP","SUP",IF((VLOOKUP("England"&A52&E52,'England values'!$D$2:$H$61,5,FALSE))<'Raw data'!I52,"significantly higher than",IF(AND((VLOOKUP("England"&A52&E52,'England values'!$D$2:$H$61,5,FALSE))>='Raw data'!I52,(VLOOKUP("England"&A52&E52,'England values'!$D$2:$H$61,5,FALSE))<='Raw data'!J52),"not significantly different from",IF((VLOOKUP("England"&A52&E52,'England values'!$D$2:$H$61,5,FALSE))>'Raw data'!J52,"significantly lower than","Error")))) -> significantly higher than | N52: significantly higher
A53: Aesthetic surgery (breast) | B53: E38000052 | C53: NHS East Riding of Yorkshire | D53: NHS East Riding of YorkshireAesthetic surgery (breast)2014/15 | E53: 2014/15 | F53: 110 | G53: 301730 | H53: 34.40330333 | I53: 28.22768337 | J53: 41.52019441 | K53: 6.17561996 | L53: 7.116891078 | M53: =IF(H53="SUP","SUP",IF((VLOOKUP("England"&A53&E53,'England values'!$D$2:$H$61,5,FALSE))<'Raw data'!I53,"significantly higher than",IF(AND((VLOOKUP("England"&A53&E53,'England values'!$D$2:$H$61,5,FALSE))>='Raw data'!I53,(VLOOKUP("England"&A53&E53,'England values'!$D$2:$H$61,5,FALSE))<='Raw data'!J53),"not significantly different from",IF((VLOOKUP("England"&A53&E53,'England values'!$D$2:$H$61,5,FALSE))>'Raw data'!J53,"significantly lower than","Error")))) -> significantly higher than | N53: significantly higher
A54: Aesthetic surgery (breast) | B54: E38000053 | C54: NHS East Staffordshire | D54: NHS East StaffordshireAesthetic surgery (breast)2014/15 | E54: 2014/15 | F54: 28 | G54: 137217 | H54: 20.03591315 | I54: 13.29361091 | J54: 28.9841598 | K54: 6.742302243 | L54: 8.948246644 | M54: =IF(H54="SUP","SUP",IF((VLOOKUP("England"&A54&E54,'England values'!$D$2:$H$61,5,FALSE))<'Raw data'!I54,"significantly higher than",IF(AND((VLOOKUP("England"&A54&E54,'England values'!$D$2:$H$61,5,FALSE))>='Raw data'!I54,(VLOOKUP("England"&A54&E54,'England values'!$D$2:$H$61,5,FALSE))<='Raw data'!J54),"not significantly different from",IF((VLOOKUP("England"&A54&E54,'England values'!$D$2:$H$61,5,FALSE))>'Raw data'!J54,"significantly lower than","Error")))) -> not significantly different from | N54: not significantly different
A55: Aesthetic surgery (breast) | B55: E38000054 | C55: NHS East Surrey | D55: NHS East SurreyAesthetic surgery (breast)2014/15 | E55: 2014/15 | F55: 30 | G55: 177556 | H55: 17.66197401 | I55: 11.87403869 | J55: 25.269322 | K55: 5.787935329 | L55: 7.607347988 | M55: =IF(H55="SUP","SUP",IF((VLOOKUP("England"&A55&E55,'England values'!$D$2:$H$61,5,FALSE))<'Raw data'!I55,"significantly higher than",IF(AND((VLOOKUP("England"&A55&E55,'England values'!$D$2:$H$61,5,FALSE))>='Raw data'!I55,(VLOOKUP("England"&A55&E55,'England values'!$D$2:$H$61,5,FALSE))<='Raw data'!J55),"not significantly different from",IF((VLOOKUP("England"&A55&E55,'England values'!$D$2:$H$61,5,FALSE))>'Raw data'!J55,"significantly lower than","Error")))) -> significantly lower than | N55: significantly lower
A56: Aesthetic surgery (breast) | B56: E38000055 | C56: NHS Eastbourne, Hailsham & Seaford | D56: NHS Eastbourne, Hailsham & SeafordAesthetic surgery (breast)2014/15 | E56: 2014/15 | F56: 54 | G56: 190007 | H56: 27.98163909 | I56: 20.9857294 | J56: 36.55277537 | K56: 6.995909684 | L56: 8.571136281 | M56: =IF(H56="SUP","SUP",IF((VLOOKUP("England"&A56&E56,'England values'!$D$2:$H$61,5,FALSE))<'Raw data'!I56,"significantly higher than",IF(AND((VLOOKUP("England"&A56&E56,'England values'!$D$2:$H$61,5,FALSE))>='Raw data'!I56,(VLOOKUP("England"&A56&E56,'England values'!$D$2:$H$61,5,FALSE))<='Raw data'!J56),"not significantly different from",IF((VLOOKUP("England"&A56&E56,'England values'!$D$2:$H$61,5,FALSE))>'Raw data'!J56,"significantly lower than","Error")))) -> not significantly different from | N56: not significantly different
A57: Aesthetic surgery (breast) | B57: E38000056 | C57: NHS Eastern Cheshire | D57: NHS Eastern CheshireAesthetic surgery (breast)2014/15 | E57: 2014/15 | F57: 51 | G57: 205727 | H57: 24.48838425 | I57: 18.18900334 | J57: 32.25218689 | K57: 6.299380912 | L57: 7.763802643 | M57: =IF(H57="SUP","SUP",IF((VLOOKUP("England"&A57&E57,'England values'!$D$2:$H$61,5,FALSE))<'Raw data'!I57,"significantly higher than",IF(AND((VLOOKUP("England"&A57&E57,'England values'!$D$2:$H$61,5,FALSE))>='Raw data'!I57,(VLOOKUP("England"&A57&E57,'England values'!$D$2:$H$61,5,FALSE))<='Raw data'!J57),"not significantly different from",IF((VLOOKUP("England"&A57&E57,'England values'!$D$2:$H$61,5,FALSE))>'Raw data'!J57,"significantly lower than","Error")))) -> not significantly different from | N57: not significantly different
A58: Aesthetic surgery (breast) | B58: E38000057 | C58: NHS Enfield | D58: NHS EnfieldAesthetic surgery (breast)2014/15 | E58: 2014/15 | F58: 86 | G58: 318802 | H58: 29.37616978 | I58: 23.38573013 | J58: 36.41015302 | K58: 5.990439649 | L58: 7.033983242 | M58: =IF(H58="SUP","SUP",IF((VLOOKUP("England"&A58&E58,'England values'!$D$2:$H$61,5,FALSE))<'Raw data'!I58,"significantly higher than",IF(AND((VLOOKUP("England"&A58&E58,'England values'!$D$2:$H$61,5,FALSE))>='Raw data'!I58,(VLOOKUP("England"&A58&E58,'England values'!$D$2:$H$61,5,FALSE))<='Raw data'!J58),"not significantly different from",IF((VLOOKUP("England"&A58&E58,'England values'!$D$2:$H$61,5,FALSE))>'Raw data'!J58,"significantly lower than","Error")))) -> not significantly different from | N58: not significantly different
A59: Aesthetic surgery (breast) | B59: E38000058 | C59: NHS Erewash | D59: NHS ErewashAesthetic surgery (breast)2014/15 | E59: 2014/15 | F59: 23 | G59: 97312 | H59: 23.58566612 | I59: 14.90765905 | J59: 35.4497281 | K59: 8.678007066 | L59: 11.86406198 | M59: =IF(H59="SUP","SUP",IF((VLOOKUP("England"&A59&E59,'England values'!$D$2:$H$61,5,FALSE))<'Raw data'!I59,"significantly higher than",IF(AND((VLOOKUP("England"&A59&E59,'England values'!$D$2:$H$61,5,FALSE))>='Raw data'!I59,(VLOOKUP("England"&A59&E59,'England values'!$D$2:$H$61,5,FALSE))<='Raw data'!J59),"not significantly different from",IF((VLOOKUP("England"&A59&E59,'England values'!$D$2:$H$61,5,FALSE))>'Raw data'!J59,"significantly lower than","Error")))) -> not significantly different from | N59: not significantly different
A60: Aesthetic surgery (breast) | B60: E38000059 | C60: NHS Fareham & Gosport | D60: NHS Fareham & GosportAesthetic surgery (breast)2014/15 | E60: 2014/15 | F60: 54 | G60: 201155 | H60: 26.41939901 | I60: 19.80988047 | J60: 34.5171428 | K60: 6.609518542 | L60: 8.097743786 | M60: =IF(H60="SUP","SUP",IF((VLOOKUP("England"&A60&E60,'England values'!$D$2:$H$61,5,FALSE))<'Raw data'!I60,"significantly higher than",IF(AND((VLOOKUP("England"&A60&E60,'England values'!$D$2:$H$61,5,FALSE))>='Raw data'!I60,(VLOOKUP("England"&A60&E60,'England values'!$D$2:$H$61,5,FALSE))<='Raw data'!J60),"not significantly different from",IF((VLOOKUP("England"&A60&E60,'England values'!$D$2:$H$61,5,FALSE))>'Raw data'!J60,"significantly lower than","Error")))) -> not significantly different from | N60: not significantly different
A61: Aesthetic surgery (breast) | B61: E38000060 | C61: NHS Fylde & Wyre | D61: NHS Fylde & WyreAesthetic surgery (breast)2014/15 | E61: 2014/15 | F61: 65 | G61: 150858 | H61: 42.39738295 | I61: 32.57062431 | J61: 54.2203554 | K61: 9.826758639 | L61: 11.82297246 | M61: =IF(H61="SUP","SUP",IF((VLOOKUP("England"&A61&E61,'England values'!$D$2:$H$61,5,FALSE))<'Raw data'!I61,"significantly higher than",IF(AND((VLOOKUP("England"&A61&E61,'England values'!$D$2:$H$61,5,FALSE))>='Raw data'!I61,(VLOOKUP("England"&A61&E61,'England values'!$D$2:$H$61,5,FALSE))<='Raw data'!J61),"not significantly different from",IF((VLOOKUP("England"&A61&E61,'England values'!$D$2:$H$61,5,FALSE))>'Raw data'!J61,"significantly lower than","Error")))) -> significantly higher than | N61: significantly higher
A62: Aesthetic surgery (breast) | B62: E38000062 | C62: NHS Gloucestershire | D62: NHS GloucestershireAesthetic surgery (breast)2014/15 | E62: 2014/15 | F62: 110 | G62: 631227 | H62: 17.20119103 | I62: 14.12651665 | J62: 20.74449887 | K62: 3.074674376 | L62: 3.543307843 | M62: =IF(H62="SUP","SUP",IF((VLOOKUP("England"&A62&E62,'England values'!$D$2:$H$61,5,FALSE))<'Raw data'!I62,"significantly higher than",IF(AND((VLOOKUP("England"&A62&E62,'England values'!$D$2:$H$61,5,FALSE))>='Raw data'!I62,(VLOOKUP("England"&A62&E62,'England values'!$D$2:$H$61,5,FALSE))<='Raw data'!J62),"not significantly different from",IF((VLOOKUP("England"&A62&E62,'England values'!$D$2:$H$61,5,FALSE))>'Raw data'!J62,"significantly lower than","Error")))) -> significantly lower than | N62: significantly lower
A63: Aesthetic surgery (breast) | B63: E38000063 | C63: NHS Great Yarmouth & Waveney | D63: NHS Great Yarmouth & WaveneyAesthetic surgery (breast)2014/15 | E63: 2014/15 | F63: 55 | G63: 234860 | H63: 23.87063559 | I63: 17.91899212 | J63: 31.14873372 | K63: 5.951643467 | L63: 7.278098137 | M63: =IF(H63="SUP","SUP",IF((VLOOKUP("England"&A63&E63,'England values'!$D$2:$H$61,5,FALSE))<'Raw data'!I63,"significantly higher than",IF(AND((VLOOKUP("England"&A63&E63,'England values'!$D$2:$H$61,5,FALSE))>='Raw data'!I63,(VLOOKUP("England"&A63&E63,'England values'!$D$2:$H$61,5,FALSE))<='Raw data'!J63),"not significantly different from",IF((VLOOKUP("England"&A63&E63,'England values'!$D$2:$H$61,5,FALSE))>'Raw data'!J63,"significantly lower than","Error")))) -> not significantly different from | N63: not significantly different
A64: Aesthetic surgery (breast) | B64: E38000064 | C64: NHS Greater Huddersfield | D64: NHS Greater HuddersfieldAesthetic surgery (breast)2014/15 | E64: 2014/15 | F64: 60 | G64: 242536 | H64: 24.86607872 | I64: 18.94889521 | J64: 32.03975101 | K64: 5.91718351 | L64: 7.173672288 | M64: =IF(H64="SUP","SUP",IF((VLOOKUP("England"&A64&E64,'England values'!$D$2:$H$61,5,FALSE))<'Raw data'!I64,"significantly higher than",IF(AND((VLOOKUP("England"&A64&E64,'England values'!$D$2:$H$61,5,FALSE))>='Raw data'!I64,(VLOOKUP("England"&A64&E64,'England values'!$D$2:$H$61,5,FALSE))<='Raw data'!J64),"not significantly different from",IF((VLOOKUP("England"&A64&E64,'England values'!$D$2:$H$61,5,FALSE))>'Raw data'!J64,"significantly lower than","Error")))) -> not significantly different from | N64: not significantly different
A65: Aesthetic surgery (breast) | B65: E38000065 | C65: NHS Greater Preston | D65: NHS Greater PrestonAesthetic surgery (breast)2014/15 | E65: 2014/15 | F65: 75 | G65: 210261 | H65: 36.72551591 | I65: 28.8501916 | J65: 46.07940951 | K65: 7.875324316 | L65: 9.353893596 | M65: =IF(H65="SUP","SUP",IF((VLOOKUP("England"&A65&E65,'England values'!$D$2:$H$61,5,FALSE))<'Raw data'!I65,"significantly higher than",IF(AND((VLOOKUP("England"&A65&E65,'England values'!$D$2:$H$61,5,FALSE))>='Raw data'!I65,(VLOOKUP("England"&A65&E65,'England values'!$D$2:$H$61,5,FALSE))<='Raw data'!J65),"not significantly different from",IF((VLOOKUP("England"&A65&E65,'England values'!$D$2:$H$61,5,FALSE))>'Raw data'!J65,"significantly lower than","Error")))) -> significantly higher than | N65: significantly higher
A66: Aesthetic surgery (breast) | B66: E38000066 | C66: NHS Greenwich | D66: NHS GreenwichAesthetic surgery (breast)2014/15 | E66: 2014/15 | F66: 65 | G66: 280420 | H66: 24.42873714 | I66: 18.60720387 | J66: 31.43286027 | K66: 5.821533267 | L66: 7.00412313 | M66: =IF(H66="SUP","SUP",IF((VLOOKUP("England"&A66&E66,'England values'!$D$2:$H$61,5,FALSE))<'Raw data'!I66,"significantly higher than",IF(AND((VLOOKUP("England"&A66&E66,'England values'!$D$2:$H$61,5,FALSE))>='Raw data'!I66,(VLOOKUP("England"&A66&E66,'England values'!$D$2:$H$61,5,FALSE))<='Raw data'!J66),"not significantly different from",IF((VLOOKUP("England"&A66&E66,'England values'!$D$2:$H$61,5,FALSE))>'Raw data'!J66,"significantly lower than","Error")))) -> not significantly different from | N66: not significantly different
A67: Aesthetic surgery (breast) | B67: E38000068 | C67: NHS Halton | D67: =C67&A67&E67 -> NHS HaltonAesthetic surgery (breast)2014/15 | E67: 2014/15 | F67: 43 | G67: 129520 | H67: 32.52710028 | I67: 23.5302766 | J67: 43.82603188 | K67: 8.996823683 | L67: 11.2989316 | M67: =IF(H67="SUP","SUP",IF((VLOOKUP("England"&A67&E67,'England values'!$D$2:$H$61,5,FALSE))<'Raw data'!I67,"significantly higher than",IF(AND((VLOOKUP("England"&A67&E67,'England values'!$D$2:$H$61,5,FALSE))>='Raw data'!I67,(VLOOKUP("England"&A67&E67,'England values'!$D$2:$H$61,5,FALSE))<='Raw data'!J67),"not significantly different from",IF((VLOOKUP("England"&A67&E67,'England values'!$D$2:$H$61,5,FALSE))>'Raw data'!J67,"significantly lower than","Error")))) -> not significantly different from | N67: =IF(M67="not significantly different from","not significantly different",IF(M67="significantly higher than","significantly higher",IF(M67="significantly lower than","significantly lower",IF(M67="SUP","SUP",IF(M67="","N/A"))))) -> not significantly different
A68: Aesthetic surgery (breast) | B68: E38000069 | C68: NHS Hambleton, Richmondshire & Whitby | D68: NHS Hambleton, Richmondshire & WhitbyAesthetic surgery (breast)2014/15 | E68: 2014/15 | F68: 31 | G68: 142724 | H68: 20.04642164 | I68: 13.50955455 | J68: 28.59955419 | K68: 6.536867085 | L68: 8.553132551 | M68: =IF(H68="SUP","SUP",IF((VLOOKUP("England"&A68&E68,'England values'!$D$2:$H$61,5,FALSE))<'Raw data'!I68,"significantly higher than",IF(AND((VLOOKUP("England"&A68&E68,'England values'!$D$2:$H$61,5,FALSE))>='Raw data'!I68,(VLOOKUP("England"&A68&E68,'England values'!$D$2:$H$61,5,FALSE))<='Raw data'!J68),"not significantly different from",IF((VLOOKUP("England"&A68&E68,'England values'!$D$2:$H$61,5,FALSE))>'Raw data'!J68,"significantly lower than","Error")))) -> not significantly different from | N68: not significantly different
A69: Aesthetic surgery (breast) | B69: E38000070 | C69: NHS Hammersmith & Fulham | D69: NHS Hammersmith & FulhamAesthetic surgery (breast)2014/15 | E69: 2014/15 | F69: 34 | G69: 203468 | H69: 17.68541532 | I69: 11.90230356 | J69: 25.15996672 | K69: 5.783111762 | L69: 7.474551401 | M69: =IF(H69="SUP","SUP",IF((VLOOKUP("England"&A69&E69,'England values'!$D$2:$H$61,5,FALSE))<'Raw data'!I69,"significantly higher than",IF(AND((VLOOKUP("England"&A69&E69,'England values'!$D$2:$H$61,5,FALSE))>='Raw data'!I69,(VLOOKUP("England"&A69&E69,'England values'!$D$2:$H$61,5,FALSE))<='Raw data'!J69),"not significantly different from",IF((VLOOKUP("England"&A69&E69,'England values'!$D$2:$H$61,5,FALSE))>'Raw data'!J69,"significantly lower than","Error")))) -> significantly lower than | N69: significantly lower
A70: Aesthetic surgery (breast) | B70: E38000071 | C70: NHS Hardwick | D70: NHS HardwickAesthetic surgery (breast)2014/15 | E70: 2014/15 | F70: 27 | G70: 102399 | H70: 26.82546224 | I70: 17.60499124 | J70: 39.12724444 | K70: 9.220471004 | L70: 12.3017822 | M70: =IF(H70="SUP","SUP",IF((VLOOKUP("England"&A70&E70,'England values'!$D$2:$H$61,5,FALSE))<'Raw data'!I70,"significantly higher than",IF(AND((VLOOKUP("England"&A70&E70,'England values'!$D$2:$H$61,5,FALSE))>='Raw data'!I70,(VLOOKUP("England"&A70&E70,'England values'!$D$2:$H$61,5,FALSE))<='Raw data'!J70),"not significantly different from",IF((VLOOKUP("England"&A70&E70,'England values'!$D$2:$H$61,5,FALSE))>'Raw data'!J70,"significantly lower than","Error")))) -> not significantly different from | N70: not significantly different
A71: Aesthetic surgery (breast) | B71: E38000072 | C71: NHS Haringey | D71: NHS HaringeyAesthetic surgery (breast)2014/15 | E71: 2014/15 | F71: 51 | G71: 295081 | H71: 20.03291801 | I71: 14.69546651 | J71: 26.61117081 | K71: 5.337451501 | L71: 6.578252792 | M71: =IF(H71="SUP","SUP",IF((VLOOKUP("England"&A71&E71,'England values'!$D$2:$H$61,5,FALSE))<'Raw data'!I71,"significantly higher than",IF(AND((VLOOKUP("England"&A71&E71,'England values'!$D$2:$H$61,5,FALSE))>='Raw data'!I71,(VLOOKUP("England"&A71&E71,'England values'!$D$2:$H$61,5,FALSE))<='Raw data'!J71),"not significantly different from",IF((VLOOKUP("England"&A71&E71,'England values'!$D$2:$H$61,5,FALSE))>'Raw data'!J71,"significantly lower than","Error")))) -> not significantly different from | N71: not significantly different
A72: Aesthetic surgery (breast) | B72: E38000073 | C72: NHS Harrogate & Rural District | D72: NHS Harrogate & Rural DistrictAesthetic surgery (breast)2014/15 | E72: 2014/15 | F72: 37 | G72: 161449 | H72: 22.09992066 | I72: 15.51915685 | J72: 30.51454497 | K72: 6.580763813 | L72: 8.414624307 | M72: =IF(H72="SUP","SUP",IF((VLOOKUP("England"&A72&E72,'England values'!$D$2:$H$61,5,FALSE))<'Raw data'!I72,"significantly higher than",IF(AND((VLOOKUP("England"&A72&E72,'England values'!$D$2:$H$61,5,FALSE))>='Raw data'!I72,(VLOOKUP("England"&A72&E72,'England values'!$D$2:$H$61,5,FALSE))<='Raw data'!J72),"not significantly different from",IF((VLOOKUP("England"&A72&E72,'England values'!$D$2:$H$61,5,FALSE))>'Raw data'!J72,"significantly lower than","Error")))) -> not significantly different from | N72: not significantly different
A73: Aesthetic surgery (breast) | B73: E38000074 | C73: NHS Harrow | D73: NHS HarrowAesthetic surgery (breast)2014/15 | E73: 2014/15 | F73: 12 | G73: 253888 | H73: 4.935522951 | I73: 2.518340628 | J73: 8.670683828 | K73: 2.417182323 | L73: 3.735160877 | M73: =IF(H73="SUP","SUP",IF((VLOOKUP("England"&A73&E73,'England values'!$D$2:$H$61,5,FALSE))<'Raw data'!I73,"significantly higher than",IF(AND((VLOOKUP("England"&A73&E73,'England values'!$D$2:$H$61,5,FALSE))>='Raw data'!I73,(VLOOKUP("England"&A73&E73,'England values'!$D$2:$H$61,5,FALSE))<='Raw data'!J73),"not significantly different from",IF((VLOOKUP("England"&A73&E73,'England values'!$D$2:$H$61,5,FALSE))>'Raw data'!J73,"significantly lower than","Error")))) -> significantly lower than | N73: significantly lower
A74: Aesthetic surgery (breast) | B74: E38000075 | C74: NHS Hartlepool & Stockton-on-Tees | D74: NHS Hartlepool & Stockton-on-TeesAesthetic surgery (breast)2014/15 | E74: 2014/15 | F74: 102 | G74: 292975 | H74: 34.90107141 | I74: 28.43042374 | J74: 42.39907165 | K74: 6.47064767 | L74: 7.498000234 | M74: =IF(H74="SUP","SUP",IF((VLOOKUP("England"&A74&E74,'England values'!$D$2:$H$61,5,FALSE))<'Raw data'!I74,"significantly higher than",IF(AND((VLOOKUP("England"&A74&E74,'England values'!$D$2:$H$61,5,FALSE))>='Raw data'!I74,(VLOOKUP("England"&A74&E74,'England values'!$D$2:$H$61,5,FALSE))<='Raw data'!J74),"not significantly different from",IF((VLOOKUP("England"&A74&E74,'England values'!$D$2:$H$61,5,FALSE))>'Raw data'!J74,"significantly lower than","Error")))) -> significantly higher than | N74: significantly higher
A75: Aesthetic surgery (breast) | B75: E38000076 | C75: NHS Hastings & Rother | D75: NHS Hastings & RotherAesthetic surgery (breast)2014/15 | E75: 2014/15 | F75: 63 | G75: 184794 | H75: 33.13253861 | I75: 25.40366872 | J75: 42.45882619 | K75: 7.728869892 | L75: 9.326287583 | M75: =IF(H75="SUP","SUP",IF((VLOOKUP("England"&A75&E75,'England values'!$D$2:$H$61,5,FALSE))<'Raw data'!I75,"significantly higher than",IF(AND((VLOOKUP("England"&A75&E75,'England values'!$D$2:$H$61,5,FALSE))>='Raw data'!I75,(VLOOKUP("England"&A75&E75,'England values'!$D$2:$H$61,5,FALSE))<='Raw data'!J75),"not significantly different from",IF((VLOOKUP("England"&A75&E75,'England values'!$D$2:$H$61,5,FALSE))>'Raw data'!J75,"significantly lower than","Error")))) -> not significantly different from | N75: not significantly different
A76: Aesthetic surgery (breast) | B76: E38000077 | C76: NHS Havering | D76: NHS HaveringAesthetic surgery (breast)2014/15 | E76: 2014/15 | F76: 38 | G76: 260372 | H76: 15.18475135 | I76: 10.73525739 | J76: 20.85548201 | K76: 4.449493968 | L76: 5.670730658 | M76: =IF(H76="SUP","SUP",IF((VLOOKUP("England"&A76&E76,'England values'!$D$2:$H$61,5,FALSE))<'Raw data'!I76,"significantly higher than",IF(AND((VLOOKUP("England"&A76&E76,'England values'!$D$2:$H$61,5,FALSE))>='Raw data'!I76,(VLOOKUP("England"&A76&E76,'England values'!$D$2:$H$61,5,FALSE))<='Raw data'!J76),"not significantly different from",IF((VLOOKUP("England"&A76&E76,'England values'!$D$2:$H$61,5,FALSE))>'Raw data'!J76,"significantly lower than","Error")))) -> significantly lower than | N76: significantly lower
A77: Aesthetic surgery (breast) | B77: E38000078 | C77: NHS Herefordshire | D77: NHS HerefordshireAesthetic surgery (breast)2014/15 | E77: 2014/15 | F77: 60 | G77: 182927 | H77: 32.30180142 | I77: 24.54156581 | J77: 41.7098901 | K77: 7.760235613 | L77: 9.408088675 | M77: =IF(H77="SUP","SUP",IF((VLOOKUP("England"&A77&E77,'England values'!$D$2:$H$61,5,FALSE))<'Raw data'!I77,"significantly higher than",IF(AND((VLOOKUP("England"&A77&E77,'England values'!$D$2:$H$61,5,FALSE))>='Raw data'!I77,(VLOOKUP("England"&A77&E77,'England values'!$D$2:$H$61,5,FALSE))<='Raw data'!J77),"not significantly different from",IF((VLOOKUP("England"&A77&E77,'England values'!$D$2:$H$61,5,FALSE))>'Raw data'!J77,"significantly lower than","Error")))) -> not significantly different from | N77: not significantly different
A78: Aesthetic surgery (breast) | B78: E38000079 | C78: NHS Herts Valleys | D78: NHS Herts ValleysAesthetic surgery (breast)2014/15 | E78: 2014/15 | F78: 196 | G78: 623352 | H78: 32.76988142 | I78: 28.2958648 | J78: 37.74460692 | K78: 4.474016613 | L78: 4.974725506 | M78: =IF(H78="SUP","SUP",IF((VLOOKUP("England"&A78&E78,'England values'!$D$2:$H$61,5,FALSE))<'Raw data'!I78,"significantly higher than",IF(AND((VLOOKUP("England"&A78&E78,'England values'!$D$2:$H$61,5,FALSE))>='Raw data'!I78,(VLOOKUP("England"&A78&E78,'England values'!$D$2:$H$61,5,FALSE))<='Raw data'!J78),"not significantly different from",IF((VLOOKUP("England"&A78&E78,'England values'!$D$2:$H$61,5,FALSE))>'Raw data'!J78,"significantly lower than","Error")))) -> significantly higher than | N78: significantly higher
A79: Aesthetic surgery (breast) | B79: E38000080 | C79: NHS Heywood, Middleton & Rochdale | D79: NHS Heywood, Middleton & RochdaleAesthetic surgery (breast)2014/15 | E79: 2014/15 | F79: 68 | G79: 225320 | H79: 31.77090144 | I79: 24.63913601 | J79: 40.31578274 | K79: 7.131765431 | L79: 8.544881307 | M79: =IF(H79="SUP","SUP",IF((VLOOKUP("England"&A79&E79,'England values'!$D$2:$H$61,5,FALSE))<'Raw data'!I79,"significantly higher than",IF(AND((VLOOKUP("England"&A79&E79,'England values'!$D$2:$H$61,5,FALSE))>='Raw data'!I79,(VLOOKUP("England"&A79&E79,'England values'!$D$2:$H$61,5,FALSE))<='Raw data'!J79),"not significantly different from",IF((VLOOKUP("England"&A79&E79,'England values'!$D$2:$H$61,5,FALSE))>'Raw data'!J79,"significantly lower than","Error")))) -> not significantly different from | N79: not significantly different
A80: Aesthetic surgery (breast) | B80: E38000081 | C80: NHS High Weald Lewes Havens | D80: NHS High Weald Lewes HavensAesthetic surgery (breast)2014/15 | E80: 2014/15 | F80: 46 | G80: 167409 | H80: 26.77679968 | I80: 19.49211343 | J80: 35.85592448 | K80: 7.284686253 | L80: 9.0791248 | M80: =IF(H80="SUP","SUP",IF((VLOOKUP("England"&A80&E80,'England values'!$D$2:$H$61,5,FALSE))<'Raw data'!I80,"significantly higher than",IF(AND((VLOOKUP("England"&A80&E80,'England values'!$D$2:$H$61,5,FALSE))>='Raw data'!I80,(VLOOKUP("England"&A80&E80,'England values'!$D$2:$H$61,5,FALSE))<='Raw data'!J80),"not significantly different from",IF((VLOOKUP("England"&A80&E80,'England values'!$D$2:$H$61,5,FALSE))>'Raw data'!J80,"significantly lower than","Error")))) -> not significantly different from | N80: not significantly different
A81: Aesthetic surgery (breast) | B81: E38000082 | C81: NHS Hillingdon | D81: NHS HillingdonAesthetic surgery (breast)2014/15 | E81: 2014/15 | F81: 40 | G81: 298081 | H81: 14.88322711 | I81: 10.5180673 | J81: 20.41204352 | K81: 4.365159815 | L81: 5.528816408 | M81: =IF(H81="SUP","SUP",IF((VLOOKUP("England"&A81&E81,'England values'!$D$2:$H$61,5,FALSE))<'Raw data'!I81,"significantly higher than",IF(AND((VLOOKUP("England"&A81&E81,'England values'!$D$2:$H$61,5,FALSE))>='Raw data'!I81,(VLOOKUP("England"&A81&E81,'England values'!$D$2:$H$61,5,FALSE))<='Raw data'!J81),"not significantly different from",IF((VLOOKUP("England"&A81&E81,'England values'!$D$2:$H$61,5,FALSE))>'Raw data'!J81,"significantly lower than","Error")))) -> significantly lower than | N81: significantly lower
A82: Aesthetic surgery (breast) | B82: E38000083 | C82: NHS Horsham & Mid Sussex | D82: NHS Horsham & Mid SussexAesthetic surgery (breast)2014/15 | E82: 2014/15 | F82: 49 | G82: 231180 | H82: 20.9879586 | I82: 15.49956124 | J82: 27.7811654 | K82: 5.488397355 | L82: 6.793206798 | M82: =IF(H82="SUP","SUP",IF((VLOOKUP("England"&A82&E82,'England values'!$D$2:$H$61,5,FALSE))<'Raw data'!I82,"significantly higher than",IF(AND((VLOOKUP("England"&A82&E82,'England values'!$D$2:$H$61,5,FALSE))>='Raw data'!I82,(VLOOKUP("England"&A82&E82,'England values'!$D$2:$H$61,5,FALSE))<='Raw data'!J82),"not significantly different from",IF((VLOOKUP("England"&A82&E82,'England values'!$D$2:$H$61,5,FALSE))>'Raw data'!J82,"significantly lower than","Error")))) -> not significantly different from | N82: not significantly different
A83: Aesthetic surgery (breast) | B83: E38000084 | C83: NHS Hounslow | D83: NHS HounslowAesthetic surgery (breast)2014/15 | E83: 2014/15 | F83: 59 | G83: 298465 | H83: 22.81166319 | I83: 17.11155749 | J83: 29.73350599 | K83: 5.7001057 | L83: 6.9218428 | M83: =IF(H83="SUP","SUP",IF((VLOOKUP("England"&A83&E83,'England values'!$D$2:$H$61,5,FALSE))<'Raw data'!I83,"significantly higher than",IF(AND((VLOOKUP("England"&A83&E83,'England values'!$D$2:$H$61,5,FALSE))>='Raw data'!I83,(VLOOKUP("England"&A83&E83,'England values'!$D$2:$H$61,5,FALSE))<='Raw data'!J83),"not significantly different from",IF((VLOOKUP("England"&A83&E83,'England values'!$D$2:$H$61,5,FALSE))>'Raw data'!J83,"significantly lower than","Error")))) -> not significantly different from | N83: not significantly different
A84: Aesthetic surgery (breast) | B84: E38000085 | C84: NHS Hull | D84: NHS HullAesthetic surgery (breast)2014/15 | E84: 2014/15 | F84: 89 | G84: 288964 | H84: 32.60639391 | I84: 26.08901506 | J84: 40.23808583 | K84: 6.517378846 | L84: 7.631691922 | M84: =IF(H84="SUP","SUP",IF((VLOOKUP("England"&A84&E84,'England values'!$D$2:$H$61,5,FALSE))<'Raw data'!I84,"significantly higher than",IF(AND((VLOOKUP("England"&A84&E84,'England values'!$D$2:$H$61,5,FALSE))>='Raw data'!I84,(VLOOKUP("England"&A84&E84,'England values'!$D$2:$H$61,5,FALSE))<='Raw data'!J84),"not significantly different from",IF((VLOOKUP("England"&A84&E84,'England values'!$D$2:$H$61,5,FALSE))>'Raw data'!J84,"significantly lower than","Error")))) -> significantly higher than | N84: significantly higher
A85: Aesthetic surgery (breast) | B85: E38000086 | C85: NHS Ipswich & East Suffolk | D85: NHS Ipswich & East SuffolkAesthetic surgery (breast)2014/15 | E85: 2014/15 | F85: 93 | G85: 396631 | H85: 23.54716236 | I85: 18.9924445 | J85: 28.86221522 | K85: 4.554717862 | L85: 5.31505286 | M85: =IF(H85="SUP","SUP",IF((VLOOKUP("England"&A85&E85,'England values'!$D$2:$H$61,5,FALSE))<'Raw data'!I85,"significantly higher than",IF(AND((VLOOKUP("England"&A85&E85,'England values'!$D$2:$H$61,5,FALSE))>='Raw data'!I85,(VLOOKUP("England"&A85&E85,'England values'!$D$2:$H$61,5,FALSE))<='Raw data'!J85),"not significantly different from",IF((VLOOKUP("England"&A85&E85,'England values'!$D$2:$H$61,5,FALSE))>'Raw data'!J85,"significantly lower than","Error")))) -> not significantly different from | N85: not significantly different
A86: Aesthetic surgery (breast) | B86: E38000087 | C86: NHS Isle of Wight | D86: NHS Isle of WightAesthetic surgery (breast)2014/15 | E86: 2014/15 | F86: 26 | G86: 141738 | H86: 17.52735773 | I86: 11.37090547 | J86: 25.78702022 | K86: 6.156452262 | L86: 8.259662485 | M86: =IF(H86="SUP","SUP",IF((VLOOKUP("England"&A86&E86,'England values'!$D$2:$H$61,5,FALSE))<'Raw data'!I86,"significantly higher than",IF(AND((VLOOKUP("England"&A86&E86,'England values'!$D$2:$H$61,5,FALSE))>='Raw data'!I86,(VLOOKUP("England"&A86&E86,'England values'!$D$2:$H$61,5,FALSE))<='Raw data'!J86),"not significantly different from",IF((VLOOKUP("England"&A86&E86,'England values'!$D$2:$H$61,5,FALSE))>'Raw data'!J86,"significantly lower than","Error")))) -> not significantly different from | N86: not significantly different
A87: Aesthetic surgery (breast) | B87: E38000088 | C87: NHS Islington | D87: NHS IslingtonAesthetic surgery (breast)2014/15 | E87: 2014/15 | F87: 70 | G87: 231566 | H87: 39.09656447 | I87: 29.9466669 | J87: 50.03073214 | K87: 9.149897566 | L87: 10.93416767 | M87: =IF(H87="SUP","SUP",IF((VLOOKUP("England"&A87&E87,'England values'!$D$2:$H$61,5,FALSE))<'Raw data'!I87,"significantly higher than",IF(AND((VLOOKUP("England"&A87&E87,'England values'!$D$2:$H$61,5,FALSE))>='Raw data'!I87,(VLOOKUP("England"&A87&E87,'England values'!$D$2:$H$61,5,FALSE))<='Raw data'!J87),"not significantly different from",IF((VLOOKUP("England"&A87&E87,'England values'!$D$2:$H$61,5,FALSE))>'Raw data'!J87,"significantly lower than","Error")))) -> significantly higher than | N87: significantly higher
A88: Aesthetic surgery (breast) | B88: E38000089 | C88: NHS Kernow | D88: NHS KernowAesthetic surgery (breast)2014/15 | E88: 2014/15 | F88: 271 | G88: 563070 | H88: 46.82097155 | I88: 41.35633115 | J88: 52.80109819 | K88: 5.464640392 | L88: 5.98012664 | M88: =IF(H88="SUP","SUP",IF((VLOOKUP("England"&A88&E88,'England values'!$D$2:$H$61,5,FALSE))<'Raw data'!I88,"significantly higher than",IF(AND((VLOOKUP("England"&A88&E88,'England values'!$D$2:$H$61,5,FALSE))>='Raw data'!I88,(VLOOKUP("England"&A88&E88,'England values'!$D$2:$H$61,5,FALSE))<='Raw data'!J88),"not significantly different from",IF((VLOOKUP("England"&A88&E88,'England values'!$D$2:$H$61,5,FALSE))>'Raw data'!J88,"significantly lower than","Error")))) -> significantly higher than | N88: significantly higher
A89: Aesthetic surgery (breast) | B89: E38000090 | C89: NHS Kingston | D89: NHS KingstonAesthetic surgery (breast)2014/15 | E89: 2014/15 | F89: 55 | G89: 198772 | H89: 30.29063711 | I89: 22.60207741 | J89: 39.69276147 | K89: 7.688559697 | L89: 9.402124357 | M89: =IF(H89="SUP","SUP",IF((VLOOKUP("England"&A89&E89,'England values'!$D$2:$H$61,5,FALSE))<'Raw data'!I89,"significantly higher than",IF(AND((VLOOKUP("England"&A89&E89,'England values'!$D$2:$H$61,5,FALSE))>='Raw data'!I89,(VLOOKUP("England"&A89&E89,'England values'!$D$2:$H$61,5,FALSE))<='Raw data'!J89),"not significantly different from",IF((VLOOKUP("England"&A89&E89,'England values'!$D$2:$H$61,5,FALSE))>'Raw data'!J89,"significantly lower than","Error")))) -> not significantly different from | N89: not significantly different
A90: Aesthetic surgery (breast) | B90: E38000091 | C90: NHS Knowsley | D90: NHS KnowsleyAesthetic surgery (breast)2014/15 | E90: 2014/15 | F90: 79 | G90: 161762 | H90: 47.56732671 | I90: 37.57704394 | J90: 59.38058452 | K90: 9.99028277 | L90: 11.81325781 | M90: =IF(H90="SUP","SUP",IF((VLOOKUP("England"&A90&E90,'England values'!$D$2:$H$61,5,FALSE))<'Raw data'!I90,"significantly higher than",IF(AND((VLOOKUP("England"&A90&E90,'England values'!$D$2:$H$61,5,FALSE))>='Raw data'!I90,(VLOOKUP("England"&A90&E90,'England values'!$D$2:$H$61,5,FALSE))<='Raw data'!J90),"not significantly different from",IF((VLOOKUP("England"&A90&E90,'England values'!$D$2:$H$61,5,FALSE))>'Raw data'!J90,"significantly lower than","Error")))) -> significantly higher than | N90: significantly higher
A91: Aesthetic surgery (breast) | B91: E38000092 | C91: NHS Lambeth | D91: NHS LambethAesthetic surgery (breast)2014/15 | E91: 2014/15 | F91: 95 | G91: 374967 | H91: 30.07006863 | I91: 23.72120458 | J91: 37.46658546 | K91: 6.348864051 | L91: 7.39651683 | M91: =IF(H91="SUP","SUP",IF((VLOOKUP("England"&A91&E91,'England values'!$D$2:$H$61,5,FALSE))<'Raw data'!I91,"significantly higher than",IF(AND((VLOOKUP("England"&A91&E91,'England values'!$D$2:$H$61,5,FALSE))>='Raw data'!I91,(VLOOKUP("England"&A91&E91,'England values'!$D$2:$H$61,5,FALSE))<='Raw data'!J91),"not significantly different from",IF((VLOOKUP("England"&A91&E91,'England values'!$D$2:$H$61,5,FALSE))>'Raw data'!J91,"significantly lower than","Error")))) -> not significantly different from | N91: not significantly different
A92: Aesthetic surgery (breast) | B92: E38000093 | C92: NHS Lancashire North | D92: NHS Lancashire NorthAesthetic surgery (breast)2014/15 | E92: 2014/15 | F92: 69 | G92: 157946 | H92: 45.73252314 | I92: 35.48610858 | J92: 57.99293153 | K92: 10.24641455 | L92: 12.26040839 | M92: =IF(H92="SUP","SUP",IF((VLOOKUP("England"&A92&E92,'England values'!$D$2:$H$61,5,FALSE))<'Raw data'!I92,"significantly higher than",IF(AND((VLOOKUP("England"&A92&E92,'England values'!$D$2:$H$61,5,FALSE))>='Raw data'!I92,(VLOOKUP("England"&A92&E92,'England values'!$D$2:$H$61,5,FALSE))<='Raw data'!J92),"not significantly different from",IF((VLOOKUP("England"&A92&E92,'England values'!$D$2:$H$61,5,FALSE))>'Raw data'!J92,"significantly lower than","Error")))) -> significantly higher than | N92: significantly higher
A93: Aesthetic surgery (breast) | B93: E38000094 | C93: NHS Leeds North | D93: NHS Leeds NorthAesthetic surgery (breast)2014/15 | E93: 2014/15 | F93: 38 | G93: 208247 | H93: 19.1257153 | I93: 13.4533818 | J93: 26.35491389 | K93: 5.672333503 | L93: 7.229198585 | M93: =IF(H93="SUP","SUP",IF((VLOOKUP("England"&A93&E93,'England values'!$D$2:$H$61,5,FALSE))<'Raw data'!I93,"significantly higher than",IF(AND((VLOOKUP("England"&A93&E93,'England values'!$D$2:$H$61,5,FALSE))>='Raw data'!I93,(VLOOKUP("England"&A93&E93,'England values'!$D$2:$H$61,5,FALSE))<='Raw data'!J93),"not significantly different from",IF((VLOOKUP("England"&A93&E93,'England values'!$D$2:$H$61,5,FALSE))>'Raw data'!J93,"significantly lower than","Error")))) -> not significantly different from | N93: not significantly different
A94: Aesthetic surgery (breast) | B94: E38000095 | C94: NHS Leeds South & East | D94: NHS Leeds South & EastAesthetic surgery (breast)2014/15 | E94: 2014/15 | F94: 49 | G94: 269493 | H94: 18.38178904 | I94: 13.54935973 | J94: 24.36307822 | K94: 4.832429316 | L94: 5.981289174 | M94: =IF(H94="SUP","SUP",IF((VLOOKUP("England"&A94&E94,'England values'!$D$2:$H$61,5,FALSE))<'Raw data'!I94,"significantly higher than",IF(AND((VLOOKUP("England"&A94&E94,'England values'!$D$2:$H$61,5,FALSE))>='Raw data'!I94,(VLOOKUP("England"&A94&E94,'England values'!$D$2:$H$61,5,FALSE))<='Raw data'!J94),"not significantly different from",IF((VLOOKUP("England"&A94&E94,'England values'!$D$2:$H$61,5,FALSE))>'Raw data'!J94,"significantly lower than","Error")))) -> significantly lower than | N94: significantly lower
A95: Aesthetic surgery (breast) | B95: E38000096 | C95: NHS Leeds West | D95: NHS Leeds WestAesthetic surgery (breast)2014/15 | E95: 2014/15 | F95: 85 | G95: 366061 | H95: 23.59158296 | I95: 18.61156955 | J95: 29.44467643 | K95: 4.980013414 | L95: 5.853093467 | M95: =IF(H95="SUP","SUP",IF((VLOOKUP("England"&A95&E95,'England values'!$D$2:$H$61,5,FALSE))<'Raw data'!I95,"significantly higher than",IF(AND((VLOOKUP("England"&A95&E95,'England values'!$D$2:$H$61,5,FALSE))>='Raw data'!I95,(VLOOKUP("England"&A95&E95,'England values'!$D$2:$H$61,5,FALSE))<='Raw data'!J95),"not significantly different from",IF((VLOOKUP("England"&A95&E95,'England values'!$D$2:$H$61,5,FALSE))>'Raw data'!J95,"significantly lower than","Error")))) -> not significantly different from | N95: not significantly different
A96: Aesthetic surgery (breast) | B96: E38000097 | C96: NHS Leicester City | D96: NHS Leicester CityAesthetic surgery (breast)2014/15 | E96: 2014/15 | F96: 84 | G96: 374577 | H96: 27.52299212 | I96: 21.77732335 | J96: 34.28250228 | K96: 5.745668768 | L96: 6.759510161 | M96: =IF(H96="SUP","SUP",IF((VLOOKUP("England"&A96&E96,'England values'!$D$2:$H$61,5,FALSE))<'Raw data'!I96,"significantly higher than",IF(AND((VLOOKUP("England"&A96&E96,'England values'!$D$2:$H$61,5,FALSE))>='Raw data'!I96,(VLOOKUP("England"&A96&E96,'England values'!$D$2:$H$61,5,FALSE))<='Raw data'!J96),"not significantly different from",IF((VLOOKUP("England"&A96&E96,'England values'!$D$2:$H$61,5,FALSE))>'Raw data'!J96,"significantly lower than","Error")))) -> not significantly different from | N96: not significantly different
A97: Aesthetic surgery (breast) | B97: E38000098 | C97: NHS Lewisham | D97: NHS LewishamAesthetic surgery (breast)2014/15 | E97: 2014/15 | F97: 102 | G97: 307341 | H97: 31.29217572 | I97: 25.17077554 | J97: 38.38547802 | K97: 6.121400181 | L97: 7.093302299 | M97: =IF(H97="SUP","SUP",IF((VLOOKUP("England"&A97&E97,'England values'!$D$2:$H$61,5,FALSE))<'Raw data'!I97,"significantly higher than",IF(AND((VLOOKUP("England"&A97&E97,'England values'!$D$2:$H$61,5,FALSE))>='Raw data'!I97,(VLOOKUP("England"&A97&E97,'England values'!$D$2:$H$61,5,FALSE))<='Raw data'!J97),"not significantly different from",IF((VLOOKUP("England"&A97&E97,'England values'!$D$2:$H$61,5,FALSE))>'Raw data'!J97,"significantly lower than","Error")))) -> not significantly different from | N97: not significantly different
A98: Aesthetic surgery (breast) | B98: E38000099 | C98: NHS Lincolnshire East | D98: NHS Lincolnshire EastAesthetic surgery (breast)2014/15 | E98: 2014/15 | F98: 57 | G98: 244731 | H98: 23.66743392 | I98: 17.83774957 | J98: 30.77080796 | K98: 5.829684353 | L98: 7.103374032 | M98: =IF(H98="SUP","SUP",IF((VLOOKUP("England"&A98&E98,'England values'!$D$2:$H$61,5,FALSE))<'Raw data'!I98,"significantly higher than",IF(AND((VLOOKUP("England"&A98&E98,'England values'!$D$2:$H$61,5,FALSE))>='Raw data'!I98,(VLOOKUP("England"&A98&E98,'England values'!$D$2:$H$61,5,FALSE))<='Raw data'!J98),"not significantly different from",IF((VLOOKUP("England"&A98&E98,'England values'!$D$2:$H$61,5,FALSE))>'Raw data'!J98,"significantly lower than","Error")))) -> not significantly different from | N98: not significantly different
A99: Aesthetic surgery (breast) | B99: E38000100 | C99: NHS Lincolnshire West | D99: NHS Lincolnshire WestAesthetic surgery (breast)2014/15 | E99: 2014/15 | F99: 57 | G99: 230924 | H99: 24.57879879 | I99: 18.58502109 | J99: 31.88211785 | K99: 5.993777699 | L99: 7.303319062 | M99: =IF(H99="SUP","SUP",IF((VLOOKUP("England"&A99&E99,'England values'!$D$2:$H$61,5,FALSE))<'Raw data'!I99,"significantly higher than",IF(AND((VLOOKUP("England"&A99&E99,'England values'!$D$2:$H$61,5,FALSE))>='Raw data'!I99,(VLOOKUP("England"&A99&E99,'England values'!$D$2:$H$61,5,FALSE))<='Raw data'!J99),"not significantly different from",IF((VLOOKUP("England"&A99&E99,'England values'!$D$2:$H$61,5,FALSE))>'Raw data'!J99,"significantly lower than","Error")))) -> not significantly different from | N99: not significantly different
A100: Aesthetic surgery (breast) | B100: E38000101 | C100: NHS Liverpool | D100: NHS LiverpoolAesthetic surgery (breast)2014/15 | E100: 2014/15 | F100: 204 | G100: 500844 | H100: 40.539856 | I100: 35.08303577 | J100: 46.59457344 | K100: 5.456820231 | L100: 6.054717447 | M100: =IF(H100="SUP","SUP",IF((VLOOKUP("England"&A100&E100,'England values'!$D$2:$H$61,5,FALSE))<'Raw data'!I100,"significantly higher than",IF(AND((VLOOKUP("England"&A100&E100,'England values'!$D$2:$H$61,5,FALSE))>='Raw data'!I100,(VLOOKUP("England"&A100&E100,'England values'!$D$2:$H$61,5,FALSE))<='Raw data'!J100),"not significantly different from",IF((VLOOKUP("England"&A100&E100,'England values'!$D$2:$H$61,5,FALSE))>'Raw data'!J100,"significantly lower than","Error")))) -> significantly higher than | N100: significantly higher
A101: Aesthetic surgery (breast) | B101: E38000102 | C101: NHS Luton | D101: NHS LutonAesthetic surgery (breast)2014/15 | E101: 2014/15 | F101: 38 | G101: 222222 | H101: 19.79845651 | I101: 13.87507534 | J101: 27.34760691 | K101: 5.923381168 | L101: 7.549150405 | M101: =IF(H101="SUP","SUP",IF((VLOOKUP("England"&A101&E101,'England values'!$D$2:$H$61,5,FALSE))<'Raw data'!I101,"significantly higher than",IF(AND((VLOOKUP("England"&A101&E101,'England values'!$D$2:$H$61,5,FALSE))>='Raw data'!I101,(VLOOKUP("England"&A101&E101,'England values'!$D$2:$H$61,5,FALSE))<='Raw data'!J101),"not significantly different from",IF((VLOOKUP("England"&A101&E101,'England values'!$D$2:$H$61,5,FALSE))>'Raw data'!J101,"significantly lower than","Error")))) -> not significantly different from | N101: not significantly different
A102: Aesthetic surgery (breast) | B102: E38000103 | C102: NHS Mansfield & Ashfield | D102: NHS Mansfield & AshfieldAesthetic surgery (breast)2014/15 | E102: 2014/15 | F102: 24 | G102: 187599 | H102: 12.5660598 | I102: 8.039972771 | J102: 18.71269961 | K102: 4.526087031 | L102: 6.146639807 | M102: =IF(H102="SUP","SUP",IF((VLOOKUP("England"&A102&E102,'England values'!$D$2:$H$61,5,FALSE))<'Raw data'!I102,"significantly higher than",IF(AND((VLOOKUP("England"&A102&E102,'England values'!$D$2:$H$61,5,FALSE))>='Raw data'!I102,(VLOOKUP("England"&A102&E102,'England values'!$D$2:$H$61,5,FALSE))<='Raw data'!J102),"not significantly different from",IF((VLOOKUP("England"&A102&E102,'England values'!$D$2:$H$61,5,FALSE))>'Raw data'!J102,"significantly lower than","Error")))) -> significantly lower than | N102: significantly lower
A103: Aesthetic surgery (breast) | B103: E38000104 | C103: NHS Medway | D103: NHS MedwayAesthetic surgery (breast)2014/15 | E103: 2014/15 | F103: 79 | G103: 293886 | H103: 27.55581176 | I103: 21.78966436 | J103: 34.37413588 | K103: 5.766147409 | L103: 6.818324113 | M103: =IF(H103="SUP","SUP",IF((VLOOKUP("England"&A103&E103,'England values'!$D$2:$H$61,5,FALSE))<'Raw data'!I103,"significantly higher than",IF(AND((VLOOKUP("England"&A103&E103,'England values'!$D$2:$H$61,5,FALSE))>='Raw data'!I103,(VLOOKUP("England"&A103&E103,'England values'!$D$2:$H$61,5,FALSE))<='Raw data'!J103),"not significantly different from",IF((VLOOKUP("England"&A103&E103,'England values'!$D$2:$H$61,5,FALSE))>'Raw data'!J103,"significantly lower than","Error")))) -> not significantly different from | N103: not significantly different
A104: Aesthetic surgery (breast) | B104: E38000105 | C104: NHS Merton | D104: NHS MertonAesthetic surgery (breast)2014/15 | E104: 2014/15 | F104: 47 | G104: 217111 | H104: 24.33887284 | I104: 17.69330552 | J104: 32.60175975 | K104: 6.645567321 | L104: 8.262886909 | M104: =IF(H104="SUP","SUP",IF((VLOOKUP("England"&A104&E104,'England values'!$D$2:$H$61,5,FALSE))<'Raw data'!I104,"significantly higher than",IF(AND((VLOOKUP("England"&A104&E104,'England values'!$D$2:$H$61,5,FALSE))>='Raw data'!I104,(VLOOKUP("England"&A104&E104,'England values'!$D$2:$H$61,5,FALSE))<='Raw data'!J104),"not significantly different from",IF((VLOOKUP("England"&A104&E104,'England values'!$D$2:$H$61,5,FALSE))>'Raw data'!J104,"significantly lower than","Error")))) -> not significantly different from | N104: not significantly different
A105: Aesthetic surgery (breast) | B105: E38000106 | C105: NHS Mid Essex | D105: NHS Mid EssexAesthetic surgery (breast)2014/15 | E105: 2014/15 | F105: 73 | G105: 379508 | H105: 19.30009401 | I105: 15.11373586 | J105: 24.28418239 | K105: 4.186358148 | L105: 4.984088381 | M105: =IF(H105="SUP","SUP",IF((VLOOKUP("England"&A105&E105,'England values'!$D$2:$H$61,5,FALSE))<'Raw data'!I105,"significantly higher than",IF(AND((VLOOKUP("England"&A105&E105,'England values'!$D$2:$H$61,5,FALSE))>='Raw data'!I105,(VLOOKUP("England"&A105&E105,'England values'!$D$2:$H$61,5,FALSE))<='Raw data'!J105),"not significantly different from",IF((VLOOKUP("England"&A105&E105,'England values'!$D$2:$H$61,5,FALSE))>'Raw data'!J105,"significantly lower than","Error")))) -> significantly lower than | N105: significantly lower
A106: Aesthetic surgery (breast) | B106: E38000107 | C106: NHS Milton Keynes | D106: NHS Milton KeynesAesthetic surgery (breast)2014/15 | E106: 2014/15 | F106: 92 | G106: 278383 | H106: 34.05178015 | I106: 27.36592687 | J106: 41.86030768 | K106: 6.685853285 | L106: 7.808527527 | M106: =IF(H106="SUP","SUP",IF((VLOOKUP("England"&A106&E106,'England values'!$D$2:$H$61,5,FALSE))<'Raw data'!I106,"significantly higher than",IF(AND((VLOOKUP("England"&A106&E106,'England values'!$D$2:$H$61,5,FALSE))>='Raw data'!I106,(VLOOKUP("England"&A106&E106,'England values'!$D$2:$H$61,5,FALSE))<='Raw data'!J106),"not significantly different from",IF((VLOOKUP("England"&A106&E106,'England values'!$D$2:$H$61,5,FALSE))>'Raw data'!J106,"significantly lower than","Error")))) -> significantly higher than | N106: significantly higher
A107: Aesthetic surgery (breast) | B107: E38000108 | C107: NHS Nene | D107: NHS NeneAesthetic surgery (breast)2014/15 | E107: 2014/15 | F107: 127 | G107: 650626 | H107: 19.58117709 | I107: 16.31168897 | J107: 23.31187071 | K107: 3.269488113 | L107: 3.730693625 | M107: =IF(H107="SUP","SUP",IF((VLOOKUP("England"&A107&E107,'England values'!$D$2:$H$61,5,FALSE))<'Raw data'!I107,"significantly higher than",IF(AND((VLOOKUP("England"&A107&E107,'England values'!$D$2:$H$61,5,FALSE))>='Raw data'!I107,(VLOOKUP("England"&A107&E107,'England values'!$D$2:$H$61,5,FALSE))<='Raw data'!J107),"not significantly different from",IF((VLOOKUP("England"&A107&E107,'England values'!$D$2:$H$61,5,FALSE))>'Raw data'!J107,"significantly lower than","Error")))) -> significantly lower than | N107: significantly lower
A108: Aesthetic surgery (breast) | B108: E38000109 | C108: NHS Newark & Sherwood | D108: NHS Newark & SherwoodAesthetic surgery (breast)2014/15 | E108: 2014/15 | F108: 28 | G108: 130120 | H108: 20.45105905 | I108: 13.55000501 | J108: 29.60999786 | K108: 6.901054042 | L108: 9.158938809 | M108: =IF(H108="SUP","SUP",IF((VLOOKUP("England"&A108&E108,'England values'!$D$2:$H$61,5,FALSE))<'Raw data'!I108,"significantly higher than",IF(AND((VLOOKUP("England"&A108&E108,'England values'!$D$2:$H$61,5,FALSE))>='Raw data'!I108,(VLOOKUP("England"&A108&E108,'England values'!$D$2:$H$61,5,FALSE))<='Raw data'!J108),"not significantly different from",IF((VLOOKUP("England"&A108&E108,'England values'!$D$2:$H$61,5,FALSE))>'Raw data'!J108,"significantly lower than","Error")))) -> not significantly different from | N108: not significantly different
A109: Aesthetic surgery (breast) | B109: E38000110 | C109: NHS Newbury & District | D109: NHS Newbury & DistrictAesthetic surgery (breast)2014/15 | E109: 2014/15 | F109: 18 | G109: 116567 | H109: 16.02048233 | I109: 9.418605333 | J109: 25.42777518 | K109: 6.601877 | L109: 9.407292842 | M109: =IF(H109="SUP","SUP",IF((VLOOKUP("England"&A109&E109,'England values'!$D$2:$H$61,5,FALSE))<'Raw data'!I109,"significantly higher than",IF(AND((VLOOKUP("England"&A109&E109,'England values'!$D$2:$H$61,5,FALSE))>='Raw data'!I109,(VLOOKUP("England"&A109&E109,'England values'!$D$2:$H$61,5,FALSE))<='Raw data'!J109),"not significantly different from",IF((VLOOKUP("England"&A109&E109,'England values'!$D$2:$H$61,5,FALSE))>'Raw data'!J109,"significantly lower than","Error")))) -> significantly lower than | N109: significantly lower
A110: Aesthetic surgery (breast) | B110: E38000113 | C110: NHS Newham | D110: NHS NewhamAesthetic surgery (breast)2014/15 | E110: 2014/15 | F110: 25 | G110: 371169 | H110: 10.05419353 | I110: 6.106877057 | J110: 15.38134897 | K110: 3.94731647 | L110: 5.327155438 | M110: =IF(H110="SUP","SUP",IF((VLOOKUP("England"&A110&E110,'England values'!$D$2:$H$61,5,FALSE))<'Raw data'!I110,"significantly higher than",IF(AND((VLOOKUP("England"&A110&E110,'England values'!$D$2:$H$61,5,FALSE))>='Raw data'!I110,(VLOOKUP("England"&A110&E110,'England values'!$D$2:$H$61,5,FALSE))<='Raw data'!J110),"not significantly different from",IF((VLOOKUP("England"&A110&E110,'England values'!$D$2:$H$61,5,FALSE))>'Raw data'!J110,"significantly lower than","Error")))) -> significantly lower than | N110: significantly lower
A111: Aesthetic surgery (breast) | B111: E38000114 | C111: NHS North & West Reading | D111: NHS North & West ReadingAesthetic surgery (breast)2014/15 | E111: 2014/15 | F111: 27 | G111: 109051 | H111: 26.57725689 | I111: 17.46845479 | J111: 38.7300525 | K111: 9.1088021 | L111: 12.15279561 | M111: =IF(H111="SUP","SUP",IF((VLOOKUP("England"&A111&E111,'England values'!$D$2:$H$61,5,FALSE))<'Raw data'!I111,"significantly higher than",IF(AND((VLOOKUP("England"&A111&E111,'England values'!$D$2:$H$61,5,FALSE))>='Raw data'!I111,(VLOOKUP("England"&A111&E111,'England values'!$D$2:$H$61,5,FALSE))<='Raw data'!J111),"not significantly different from",IF((VLOOKUP("England"&A111&E111,'England values'!$D$2:$H$61,5,FALSE))>'Raw data'!J111,"significantly lower than","Error")))) -> not significantly different from | N111: not significantly different
A112: Aesthetic surgery (breast) | B112: E38000115 | C112: NHS North Derbyshire | D112: NHS North DerbyshireAesthetic surgery (breast)2014/15 | E112: 2014/15 | F112: 116 | G112: 290299 | H112: 38.32261882 | I112: 31.61377219 | J112: 46.02512252 | K112: 6.708846636 | L112: 7.702503701 | M112: =IF(H112="SUP","SUP",IF((VLOOKUP("England"&A112&E112,'England values'!$D$2:$H$61,5,FALSE))<'Raw data'!I112,"significantly higher than",IF(AND((VLOOKUP("England"&A112&E112,'England values'!$D$2:$H$61,5,FALSE))>='Raw data'!I112,(VLOOKUP("England"&A112&E112,'England values'!$D$2:$H$61,5,FALSE))<='Raw data'!J112),"not significantly different from",IF((VLOOKUP("England"&A112&E112,'England values'!$D$2:$H$61,5,FALSE))>'Raw data'!J112,"significantly lower than","Error")))) -> significantly higher than | N112: significantly higher
A113: Aesthetic surgery (breast) | B113: E38000116 | C113: NHS North Durham | D113: NHS North DurhamAesthetic surgery (breast)2014/15 | E113: 2014/15 | F113: 92 | G113: 249977 | H113: 36.19672263 | I113: 29.13006039 | J113: 44.45000375 | K113: 7.066662244 | L113: 8.253281115 | M113: =IF(H113="SUP","SUP",IF((VLOOKUP("England"&A113&E113,'England values'!$D$2:$H$61,5,FALSE))<'Raw data'!I113,"significantly higher than",IF(AND((VLOOKUP("England"&A113&E113,'England values'!$D$2:$H$61,5,FALSE))>='Raw data'!I113,(VLOOKUP("England"&A113&E113,'England values'!$D$2:$H$61,5,FALSE))<='Raw data'!J113),"not significantly different from",IF((VLOOKUP("England"&A113&E113,'England values'!$D$2:$H$61,5,FALSE))>'Raw data'!J113,"significantly lower than","Error")))) -> significantly higher than | N113: significantly higher
A114: Aesthetic surgery (breast) | B114: E38000117 | C114: NHS North East Essex | D114: NHS North East EssexAesthetic surgery (breast)2014/15 | E114: 2014/15 | F114: 76 | G114: 332923 | H114: 22.92472062 | I114: 18.03152472 | J114: 28.72994776 | K114: 4.893195897 | L114: 5.80522714 | M114: =IF(H114="SUP","SUP",IF((VLOOKUP("England"&A114&E114,'England values'!$D$2:$H$61,5,FALSE))<'Raw data'!I114,"significantly higher than",IF(AND((VLOOKUP("England"&A114&E114,'England values'!$D$2:$H$61,5,FALSE))>='Raw data'!I114,(VLOOKUP("England"&A114&E114,'England values'!$D$2:$H$61,5,FALSE))<='Raw data'!J114),"not significantly different from",IF((VLOOKUP("England"&A114&E114,'England values'!$D$2:$H$61,5,FALSE))>'Raw data'!J114,"significantly lower than","Error")))) -> not significantly different from | N114: not significantly different
A115: Aesthetic surgery (breast) | B115: E38000118 | C115: NHS North East Hampshire & Farnham | D115: NHS North East Hampshire & FarnhamAesthetic surgery (breast)2014/15 | E115: 2014/15 | F115: 52 | G115: 221469 | H115: 22.90889743 | I115: 17.07059795 | J115: 30.08977028 | K115: 5.838299477 | L115: 7.180872853 | M115: =IF(H115="SUP","SUP",IF((VLOOKUP("England"&A115&E115,'England values'!$D$2:$H$61,5,FALSE))<'Raw data'!I115,"significantly higher than",IF(AND((VLOOKUP("England"&A115&E115,'England values'!$D$2:$H$61,5,FALSE))>='Raw data'!I115,(VLOOKUP("England"&A115&E115,'England values'!$D$2:$H$61,5,FALSE))<='Raw data'!J115),"not significantly different from",IF((VLOOKUP("England"&A115&E115,'England values'!$D$2:$H$61,5,FALSE))>'Raw data'!J115,"significantly lower than","Error")))) -> not significantly different from | N115: not significantly different
A116: Aesthetic surgery (breast) | B116: E38000119 | C116: NHS North East Lincolnshire | D116: NHS North East LincolnshireAesthetic surgery (breast)2014/15 | E116: 2014/15 | F116: 56 | G116: 168683 | H116: 33.91922867 | I116: 25.58598356 | J116: 44.09117265 | K116: 8.333245107 | L116: 10.17194398 | M116: =IF(H116="SUP","SUP",IF((VLOOKUP("England"&A116&E116,'England values'!$D$2:$H$61,5,FALSE))<'Raw data'!I116,"significantly higher than",IF(AND((VLOOKUP("England"&A116&E116,'England values'!$D$2:$H$61,5,FALSE))>='Raw data'!I116,(VLOOKUP("England"&A116&E116,'England values'!$D$2:$H$61,5,FALSE))<='Raw data'!J116),"not significantly different from",IF((VLOOKUP("England"&A116&E116,'England values'!$D$2:$H$61,5,FALSE))>'Raw data'!J116,"significantly lower than","Error")))) -> significantly higher than | N116: significantly higher
A117: Aesthetic surgery (breast) | B117: E38000120 | C117: NHS North Hampshire | D117: NHS North HampshireAesthetic surgery (breast)2014/15 | E117: 2014/15 | F117: 32 | G117: 219163 | H117: 14.94598924 | I117: 10.19184002 | J117: 21.13993349 | K117: 4.754149218 | L117: 6.193944256 | M117: =IF(H117="SUP","SUP",IF((VLOOKUP("England"&A117&E117,'England values'!$D$2:$H$61,5,FALSE))<'Raw data'!I117,"significantly higher than",IF(AND((VLOOKUP("England"&A117&E117,'England values'!$D$2:$H$61,5,FALSE))>='Raw data'!I117,(VLOOKUP("England"&A117&E117,'England values'!$D$2:$H$61,5,FALSE))<='Raw data'!J117),"not significantly different from",IF((VLOOKUP("England"&A117&E117,'England values'!$D$2:$H$61,5,FALSE))>'Raw data'!J117,"significantly lower than","Error")))) -> significantly lower than | N117: significantly lower
A118: Aesthetic surgery (breast) | B118: E38000121 | C118: NHS North Kirklees | D118: NHS North KirkleesAesthetic surgery (breast)2014/15 | E118: 2014/15 | F118: 48 | G118: 188019 | H118: 26.63254676 | I118: 19.60122366 | J118: 35.35494841 | K118: 7.031323103 | L118: 8.722401652 | M118: =IF(H118="SUP","SUP",IF((VLOOKUP("England"&A118&E118,'England values'!$D$2:$H$61,5,FALSE))<'Raw data'!I118,"significantly higher than",IF(AND((VLOOKUP("England"&A118&E118,'England values'!$D$2:$H$61,5,FALSE))>='Raw data'!I118,(VLOOKUP("England"&A118&E118,'England values'!$D$2:$H$61,5,FALSE))<='Raw data'!J118),"not significantly different from",IF((VLOOKUP("England"&A118&E118,'England values'!$D$2:$H$61,5,FALSE))>'Raw data'!J118,"significantly lower than","Error")))) -> not significantly different from | N118: not significantly different
A119: Aesthetic surgery (breast) | B119: E38000122 | C119: NHS North Lincolnshire | D119: NHS North LincolnshireAesthetic surgery (breast)2014/15 | E119: 2014/15 | F119: 51 | G119: 170570 | H119: 29.43605628 | I119: 21.86215437 | J119: 38.77066877 | K119: 7.573901916 | L119: 9.334612485 | M119: =IF(H119="SUP","SUP",IF((VLOOKUP("England"&A119&E119,'England values'!$D$2:$H$61,5,FALSE))<'Raw data'!I119,"significantly higher than",IF(AND((VLOOKUP("England"&A119&E119,'England values'!$D$2:$H$61,5,FALSE))>='Raw data'!I119,(VLOOKUP("England"&A119&E119,'England values'!$D$2:$H$61,5,FALSE))<='Raw data'!J119),"not significantly different from",IF((VLOOKUP("England"&A119&E119,'England values'!$D$2:$H$61,5,FALSE))>'Raw data'!J119,"significantly lower than","Error")))) -> not significantly different from | N119: not significantly different
A120: Aesthetic surgery (breast) | B120: E38000123 | C120: NHS North Manchester | D120: NHS North ManchesterAesthetic surgery (breast)2014/15 | E120: 2014/15 | F120: 43 | G120: 198033 | H120: 23.48069743 | I120: 16.79598732 | J120: 31.87589167 | K120: 6.684710118 | L120: 8.395194242 | M120: =IF(H120="SUP","SUP",IF((VLOOKUP("England"&A120&E120,'England values'!$D$2:$H$61,5,FALSE))<'Raw data'!I120,"significantly higher than",IF(AND((VLOOKUP("England"&A120&E120,'England values'!$D$2:$H$61,5,FALSE))>='Raw data'!I120,(VLOOKUP("England"&A120&E120,'England values'!$D$2:$H$61,5,FALSE))<='Raw data'!J120),"not significantly different from",IF((VLOOKUP("England"&A120&E120,'England values'!$D$2:$H$61,5,FALSE))>'Raw data'!J120,"significantly lower than","Error")))) -> not significantly different from | N120: not significantly different
A121: Aesthetic surgery (breast) | B121: E38000124 | C121: NHS North Norfolk | D121: NHS North NorfolkAesthetic surgery (breast)2014/15 | E121: 2014/15 | F121: 37 | G121: 169828 | H121: 22.54099655 | I121: 15.69878542 | J121: 31.28992566 | K121: 6.842211131 | L121: 8.74892911 | M121: =IF(H121="SUP","SUP",IF((VLOOKUP("England"&A121&E121,'England values'!$D$2:$H$61,5,FALSE))<'Raw data'!I121,"significantly higher than",IF(AND((VLOOKUP("England"&A121&E121,'England values'!$D$2:$H$61,5,FALSE))>='Raw data'!I121,(VLOOKUP("England"&A121&E121,'England values'!$D$2:$H$61,5,FALSE))<='Raw data'!J121),"not significantly different from",IF((VLOOKUP("England"&A121&E121,'England values'!$D$2:$H$61,5,FALSE))>'Raw data'!J121,"significantly lower than","Error")))) -> not significantly different from | N121: not significantly different
A122: Aesthetic surgery (breast) | B122: E38000125 | C122: NHS North Somerset | D122: NHS North SomersetAesthetic surgery (breast)2014/15 | E122: 2014/15 | F122: 44 | G122: 214659 | H122: 21.28828546 | I122: 15.43725657 | J122: 28.61716445 | K122: 5.851028891 | L122: 7.328878987 | M122: =IF(H122="SUP","SUP",IF((VLOOKUP("England"&A122&E122,'England values'!$D$2:$H$61,5,FALSE))<'Raw data'!I122,"significantly higher than",IF(AND((VLOOKUP("England"&A122&E122,'England values'!$D$2:$H$61,5,FALSE))>='Raw data'!I122,(VLOOKUP("England"&A122&E122,'England values'!$D$2:$H$61,5,FALSE))<='Raw data'!J122),"not significantly different from",IF((VLOOKUP("England"&A122&E122,'England values'!$D$2:$H$61,5,FALSE))>'Raw data'!J122,"significantly lower than","Error")))) -> not significantly different from | N122: not significantly different
A123: Aesthetic surgery (breast) | B123: E38000126 | C123: NHS North Staffordshire | D123: NHS North StaffordshireAesthetic surgery (breast)2014/15 | E123: 2014/15 | F123: 47 | G123: 214991 | H123: 21.51152785 | I123: 15.77582743 | J123: 28.6431152 | K123: 5.735700413 | L123: 7.131587352 | M123: =IF(H123="SUP","SUP",IF((VLOOKUP("England"&A123&E123,'England values'!$D$2:$H$61,5,FALSE))<'Raw data'!I123,"significantly higher than",IF(AND((VLOOKUP("England"&A123&E123,'England values'!$D$2:$H$61,5,FALSE))>='Raw data'!I123,(VLOOKUP("England"&A123&E123,'England values'!$D$2:$H$61,5,FALSE))<='Raw data'!J123),"not significantly different from",IF((VLOOKUP("England"&A123&E123,'England values'!$D$2:$H$61,5,FALSE))>'Raw data'!J123,"significantly lower than","Error")))) -> not significantly different from | N123: not significantly different
A124: Aesthetic surgery (breast) | B124: E38000127 | C124: NHS North Tyneside | D124: NHS North TynesideAesthetic surgery (breast)2014/15 | E124: 2014/15 | F124: 134 | G124: 216284 | H124: 61.28563456 | I124: 51.33029492 | J124: 72.6054428 | K124: 9.955339639 | L124: 11.31980825 | M124: =IF(H124="SUP","SUP",IF((VLOOKUP("England"&A124&E124,'England values'!$D$2:$H$61,5,FALSE))<'Raw data'!I124,"significantly higher than",IF(AND((VLOOKUP("England"&A124&E124,'England values'!$D$2:$H$61,5,FALSE))>='Raw data'!I124,(VLOOKUP("England"&A124&E124,'England values'!$D$2:$H$61,5,FALSE))<='Raw data'!J124),"not significantly different from",IF((VLOOKUP("England"&A124&E124,'England values'!$D$2:$H$61,5,FALSE))>'Raw data'!J124,"significantly lower than","Error")))) -> significantly higher than | N124: significantly higher
A125: Aesthetic surgery (breast) | B125: E38000128 | C125: NHS North West Surrey | D125: NHS North West SurreyAesthetic surgery (breast)2014/15 | E125: 2014/15 | F125: 110 | G125: 361415 | H125: 30.48074048 | I125: 25.0127245 | J125: 36.78217652 | K125: 5.468015984 | L125: 6.301436039 | M125: =IF(H125="SUP","SUP",IF((VLOOKUP("England"&A125&E125,'England values'!$D$2:$H$61,5,FALSE))<'Raw data'!I125,"significantly higher than",IF(AND((VLOOKUP("England"&A125&E125,'England values'!$D$2:$H$61,5,FALSE))>='Raw data'!I125,(VLOOKUP("England"&A125&E125,'England values'!$D$2:$H$61,5,FALSE))<='Raw data'!J125),"not significantly different from",IF((VLOOKUP("England"&A125&E125,'England values'!$D$2:$H$61,5,FALSE))>'Raw data'!J125,"significantly lower than","Error")))) -> not significantly different from | N125: not significantly different
A126: Aesthetic surgery (breast) | B126: E38000129 | C126: NHS Northern, Eastern & Western Devon | D126: NHS Northern, Eastern & Western DevonAesthetic surgery (breast)2014/15 | E126: 2014/15 | F126: 205 | G126: 905649 | H126: 23.09966422 | I126: 20.02465326 | J126: 26.51072962 | K126: 3.075010967 | L126: 3.411065394 | M126: =IF(H126="SUP","SUP",IF((VLOOKUP("England"&A126&E126,'England values'!$D$2:$H$61,5,FALSE))<'Raw data'!I126,"significantly higher than",IF(AND((VLOOKUP("England"&A126&E126,'England values'!$D$2:$H$61,5,FALSE))>='Raw data'!I126,(VLOOKUP("England"&A126&E126,'England values'!$D$2:$H$61,5,FALSE))<='Raw data'!J126),"not significantly different from",IF((VLOOKUP("England"&A126&E126,'England values'!$D$2:$H$61,5,FALSE))>'Raw data'!J126,"significantly lower than","Error")))) -> not significantly different from | N126: not significantly different
A127: Aesthetic surgery (breast) | B127: E38000130 | C127: NHS Northumberland | D127: NHS NorthumberlandAesthetic surgery (breast)2014/15 | E127: 2014/15 | F127: 177 | G127: 322155 | H127: 52.18575899 | I127: 44.70834925 | J127: 60.54652952 | K127: 7.477409738 | L127: 8.360770535 | M127: =IF(H127="SUP","SUP",IF((VLOOKUP("England"&A127&E127,'England values'!$D$2:$H$61,5,FALSE))<'Raw data'!I127,"significantly higher than",IF(AND((VLOOKUP("England"&A127&E127,'England values'!$D$2:$H$61,5,FALSE))>='Raw data'!I127,(VLOOKUP("England"&A127&E127,'England values'!$D$2:$H$61,5,FALSE))<='Raw data'!J127),"not significantly different from",IF((VLOOKUP("England"&A127&E127,'England values'!$D$2:$H$61,5,FALSE))>'Raw data'!J127,"significantly lower than","Error")))) -> significantly higher than | N127: significantly higher
A128: Aesthetic surgery (breast) | B128: E38000131 | C128: NHS Norwich | D128: NHS NorwichAesthetic surgery (breast)2014/15 | E128: 2014/15 | F128: 22 | G128: 213443 | H128: 11.34223483 | I128: 7.092821987 | J128: 17.19334148 | K128: 4.249412839 | L128: 5.851106659 | M128: =IF(H128="SUP","SUP",IF((VLOOKUP("England"&A128&E128,'England values'!$D$2:$H$61,5,FALSE))<'Raw data'!I128,"significantly higher than",IF(AND((VLOOKUP("England"&A128&E128,'England values'!$D$2:$H$61,5,FALSE))>='Raw data'!I128,(VLOOKUP("England"&A128&E128,'England values'!$D$2:$H$61,5,FALSE))<='Raw data'!J128),"not significantly different from",IF((VLOOKUP("England"&A128&E128,'England values'!$D$2:$H$61,5,FALSE))>'Raw data'!J128,"significantly lower than","Error")))) -> significantly lower than | N128: significantly lower
A129: Aesthetic surgery (breast) | B129: E38000132 | C129: NHS Nottingham City | D129: NHS Nottingham CityAesthetic surgery (breast)2014/15 | E129: 2014/15 | F129: 62 | G129: 360957 | H129: 19.57035415 | I129: 14.78071205 | J129: 25.35873701 | K129: 4.789642102 | L129: 5.788382856 | M129: =IF(H129="SUP","SUP",IF((VLOOKUP("England"&A129&E129,'England values'!$D$2:$H$61,5,FALSE))<'Raw data'!I129,"significantly higher than",IF(AND((VLOOKUP("England"&A129&E129,'England values'!$D$2:$H$61,5,FALSE))>='Raw data'!I129,(VLOOKUP("England"&A129&E129,'England values'!$D$2:$H$61,5,FALSE))<='Raw data'!J129),"not significantly different from",IF((VLOOKUP("England"&A129&E129,'England values'!$D$2:$H$61,5,FALSE))>'Raw data'!J129,"significantly lower than","Error")))) -> significantly lower than | N129: significantly lower
A130: Aesthetic surgery (breast) | B130: E38000133 | C130: NHS Nottingham North & East | D130: NHS Nottingham North & EastAesthetic surgery (breast)2014/15 | E130: 2014/15 | F130: 34 | G130: 148707 | H130: 22.43249952 | I130: 15.50683065 | J130: 31.38378216 | K130: 6.925668867 | L130: 8.951282642 | M130: =IF(H130="SUP","SUP",IF((VLOOKUP("England"&A130&E130,'England values'!$D$2:$H$61,5,FALSE))<'Raw data'!I130,"significantly higher than",IF(AND((VLOOKUP("England"&A130&E130,'England values'!$D$2:$H$61,5,FALSE))>='Raw data'!I130,(VLOOKUP("England"&A130&E130,'England values'!$D$2:$H$61,5,FALSE))<='Raw data'!J130),"not significantly different from",IF((VLOOKUP("England"&A130&E130,'England values'!$D$2:$H$61,5,FALSE))>'Raw data'!J130,"significantly lower than","Error")))) -> not significantly different from | N130: not significantly different
A131: Aesthetic surgery (breast) | B131: E38000134 | C131: NHS Nottingham West | D131: =C131&A131&E131 -> NHS Nottingham WestAesthetic surgery (breast)2014/15 | E131: 2014/15 | F131: 20 | G131: 94309 | H131: 20.9706171 | I131: 12.78665403 | J131: 32.41923366 | K131: 8.183963079 | L131: 11.44861656 | M131: =IF(H131="SUP","SUP",IF((VLOOKUP("England"&A131&E131,'England values'!$D$2:$H$61,5,FALSE))<'Raw data'!I131,"significantly higher than",IF(AND((VLOOKUP("England"&A131&E131,'England values'!$D$2:$H$61,5,FALSE))>='Raw data'!I131,(VLOOKUP("England"&A131&E131,'England values'!$D$2:$H$61,5,FALSE))<='Raw data'!J131),"not significantly different from",IF((VLOOKUP("England"&A131&E131,'England values'!$D$2:$H$61,5,FALSE))>'Raw data'!J131,"significantly lower than","Error")))) -> not significantly different from | N131: =IF(M131="not significantly different from","not significantly different",IF(M131="significantly higher than","significantly higher",IF(M131="significantly lower than","significantly lower",IF(M131="SUP","SUP",IF(M131="","N/A"))))) -> not significantly different
A132: Aesthetic surgery (breast) | B132: E38000135 | C132: NHS Oldham | D132: NHS OldhamAesthetic surgery (breast)2014/15 | E132: 2014/15 | F132: 70 | G132: 244634 | H132: 30.49159391 | I132: 23.73383678 | J132: 38.56714328 | K132: 6.757757131 | L132: 8.075549371 | M132: =IF(H132="SUP","SUP",IF((VLOOKUP("England"&A132&E132,'England values'!$D$2:$H$61,5,FALSE))<'Raw data'!I132,"significantly higher than",IF(AND((VLOOKUP("England"&A132&E132,'England values'!$D$2:$H$61,5,FALSE))>='Raw data'!I132,(VLOOKUP("England"&A132&E132,'England values'!$D$2:$H$61,5,FALSE))<='Raw data'!J132),"not significantly different from",IF((VLOOKUP("England"&A132&E132,'England values'!$D$2:$H$61,5,FALSE))>'Raw data'!J132,"significantly lower than","Error")))) -> not significantly different from | N132: not significantly different
A133: Aesthetic surgery (breast) | B133: E38000136 | C133: NHS Oxfordshire | D133: NHS OxfordshireAesthetic surgery (breast)2014/15 | E133: 2014/15 | F133: 127 | G133: 708325 | H133: 19.09864372 | I133: 15.90517065 | J133: 22.74259936 | K133: 3.193473074 | L133: 3.643955637 | M133: =IF(H133="SUP","SUP",IF((VLOOKUP("England"&A133&E133,'England values'!$D$2:$H$61,5,FALSE))<'Raw data'!I133,"significantly higher than",IF(AND((VLOOKUP("England"&A133&E133,'England values'!$D$2:$H$61,5,FALSE))>='Raw data'!I133,(VLOOKUP("England"&A133&E133,'England values'!$D$2:$H$61,5,FALSE))<='Raw data'!J133),"not significantly different from",IF((VLOOKUP("England"&A133&E133,'England values'!$D$2:$H$61,5,FALSE))>'Raw data'!J133,"significantly lower than","Error")))) -> significantly lower than | N133: significantly lower
A134: Aesthetic surgery (breast) | B134: E38000137 | C134: NHS Portsmouth | D134: NHS PortsmouthAesthetic surgery (breast)2014/15 | E134: 2014/15 | F134: 37 | G134: 217035 | H134: 19.29980871 | I134: 13.49347998 | J134: 26.72418623 | K134: 5.806328733 | L134: 7.424377516 | M134: =IF(H134="SUP","SUP",IF((VLOOKUP("England"&A134&E134,'England values'!$D$2:$H$61,5,FALSE))<'Raw data'!I134,"significantly higher than",IF(AND((VLOOKUP("England"&A134&E134,'England values'!$D$2:$H$61,5,FALSE))>='Raw data'!I134,(VLOOKUP("England"&A134&E134,'England values'!$D$2:$H$61,5,FALSE))<='Raw data'!J134),"not significantly different from",IF((VLOOKUP("England"&A134&E134,'England values'!$D$2:$H$61,5,FALSE))>'Raw data'!J134,"significantly lower than","Error")))) -> not significantly different from | N134: not significantly different
A135: Aesthetic surgery (breast) | B135: E38000138 | C135: NHS Redbridge | D135: NHS RedbridgeAesthetic surgery (breast)2014/15 | E135: 2014/15 | F135: 27 | G135: 296599 | H135: 10.16757461 | I135: 6.576232018 | J135: 14.95907759 | K135: 3.591342587 | L135: 4.791502981 | M135: =IF(H135="SUP","SUP",IF((VLOOKUP("England"&A135&E135,'England values'!$D$2:$H$61,5,FALSE))<'Raw data'!I135,"significantly higher than",IF(AND((VLOOKUP("England"&A135&E135,'England values'!$D$2:$H$61,5,FALSE))>='Raw data'!I135,(VLOOKUP("England"&A135&E135,'England values'!$D$2:$H$61,5,FALSE))<='Raw data'!J135),"not significantly different from",IF((VLOOKUP("England"&A135&E135,'England values'!$D$2:$H$61,5,FALSE))>'Raw data'!J135,"significantly lower than","Error")))) -> significantly lower than | N135: significantly lower
A136: Aesthetic surgery (breast) | B136: E38000139 | C136: NHS Redditch & Bromsgrove | D136: NHS Redditch & BromsgroveAesthetic surgery (breast)2014/15 | E136: 2014/15 | F136: 49 | G136: 172838 | H136: 29.13317042 | I136: 21.52344368 | J136: 38.55203062 | K136: 7.609726738 | L136: 9.418860201 | M136: =IF(H136="SUP","SUP",IF((VLOOKUP("England"&A136&E136,'England values'!$D$2:$H$61,5,FALSE))<'Raw data'!I136,"significantly higher than",IF(AND((VLOOKUP("England"&A136&E136,'England values'!$D$2:$H$61,5,FALSE))>='Raw data'!I136,(VLOOKUP("England"&A136&E136,'England values'!$D$2:$H$61,5,FALSE))<='Raw data'!J136),"not significantly different from",IF((VLOOKUP("England"&A136&E136,'England values'!$D$2:$H$61,5,FALSE))>'Raw data'!J136,"significantly lower than","Error")))) -> not significantly different from | N136: not significantly different
A137: Aesthetic surgery (breast) | B137: E38000140 | C137: NHS Richmond | D137: NHS RichmondAesthetic surgery (breast)2014/15 | E137: 2014/15 | F137: 66 | G137: 206994 | H137: 33.83940634 | I137: 26.00783339 | J137: 43.24852978 | K137: 7.831572947 | L137: 9.409123442 | M137: =IF(H137="SUP","SUP",IF((VLOOKUP("England"&A137&E137,'England values'!$D$2:$H$61,5,FALSE))<'Raw data'!I137,"significantly higher than",IF(AND((VLOOKUP("England"&A137&E137,'England values'!$D$2:$H$61,5,FALSE))>='Raw data'!I137,(VLOOKUP("England"&A137&E137,'England values'!$D$2:$H$61,5,FALSE))<='Raw data'!J137),"not significantly different from",IF((VLOOKUP("England"&A137&E137,'England values'!$D$2:$H$61,5,FALSE))>'Raw data'!J137,"significantly lower than","Error")))) -> significantly higher than | N137: significantly higher
A138: Aesthetic surgery (breast) | B138: E38000141 | C138: NHS Rotherham | D138: NHS RotherhamAesthetic surgery (breast)2014/15 | E138: 2014/15 | F138: 110 | G138: 258781 | H138: 42.52483643 | I138: 34.92284427 | J138: 51.28550347 | K138: 7.601992161 | L138: 8.760667033 | M138: =IF(H138="SUP","SUP",IF((VLOOKUP("England"&A138&E138,'England values'!$D$2:$H$61,5,FALSE))<'Raw data'!I138,"significantly higher than",IF(AND((VLOOKUP("England"&A138&E138,'England values'!$D$2:$H$61,5,FALSE))>='Raw data'!I138,(VLOOKUP("England"&A138&E138,'England values'!$D$2:$H$61,5,FALSE))<='Raw data'!J138),"not significantly different from",IF((VLOOKUP("England"&A138&E138,'England values'!$D$2:$H$61,5,FALSE))>'Raw data'!J138,"significantly lower than","Error")))) -> significantly higher than | N138: significantly higher
A139: Aesthetic surgery (breast) | B139: E38000142 | C139: NHS Rushcliffe | D139: NHS RushcliffeAesthetic surgery (breast)2014/15 | E139: 2014/15 | F139: 33 | G139: 123082 | H139: 26.85936574 | I139: 18.45827821 | J139: 37.76007588 | K139: 8.401087533 | L139: 10.90071014 | M139: =IF(H139="SUP","SUP",IF((VLOOKUP("England"&A139&E139,'England values'!$D$2:$H$61,5,FALSE))<'Raw data'!I139,"significantly higher than",IF(AND((VLOOKUP("England"&A139&E139,'England values'!$D$2:$H$61,5,FALSE))>='Raw data'!I139,(VLOOKUP("England"&A139&E139,'England values'!$D$2:$H$61,5,FALSE))<='Raw data'!J139),"not significantly different from",IF((VLOOKUP("England"&A139&E139,'England values'!$D$2:$H$61,5,FALSE))>'Raw data'!J139,"significantly lower than","Error")))) -> not significantly different from | N139: not significantly different
A140: Aesthetic surgery (breast) | B140: E38000143 | C140: NHS Salford | D140: NHS SalfordAesthetic surgery (breast)2014/15 | E140: 2014/15 | F140: 86 | G140: 256839 | H140: 35.62028793 | I140: 28.39712328 | J140: 44.10173872 | K140: 7.22316465 | L140: 8.481450791 | M140: =IF(H140="SUP","SUP",IF((VLOOKUP("England"&A140&E140,'England values'!$D$2:$H$61,5,FALSE))<'Raw data'!I140,"significantly higher than",IF(AND((VLOOKUP("England"&A140&E140,'England values'!$D$2:$H$61,5,FALSE))>='Raw data'!I140,(VLOOKUP("England"&A140&E140,'England values'!$D$2:$H$61,5,FALSE))<='Raw data'!J140),"not significantly different from",IF((VLOOKUP("England"&A140&E140,'England values'!$D$2:$H$61,5,FALSE))>'Raw data'!J140,"significantly lower than","Error")))) -> significantly higher than | N140: significantly higher
A141: Aesthetic surgery (breast) | B141: E38000144 | C141: NHS Sandwell & West Birmingham | D141: NHS Sandwell & West BirminghamAesthetic surgery (breast)2014/15 | E141: 2014/15 | F141: 66 | G141: 551400 | H141: 12.72710616 | I141: 9.7637298 | J141: 16.28740933 | K141: 2.963376362 | L141: 3.56030317 | M141: =IF(H141="SUP","SUP",IF((VLOOKUP("England"&A141&E141,'England values'!$D$2:$H$61,5,FALSE))<'Raw data'!I141,"significantly higher than",IF(AND((VLOOKUP("England"&A141&E141,'England values'!$D$2:$H$61,5,FALSE))>='Raw data'!I141,(VLOOKUP("England"&A141&E141,'England values'!$D$2:$H$61,5,FALSE))<='Raw data'!J141),"not significantly different from",IF((VLOOKUP("England"&A141&E141,'England values'!$D$2:$H$61,5,FALSE))>'Raw data'!J141,"significantly lower than","Error")))) -> significantly lower than | N141: significantly lower
A142: Aesthetic surgery (breast) | B142: E38000145 | C142: NHS Scarborough & Ryedale | D142: NHS Scarborough & RyedaleAesthetic surgery (breast)2014/15 | E142: 2014/15 | F142: 26 | G142: 118538 | H142: 20.59462693 | I142: 13.36230561 | J142: 30.29770439 | K142: 7.232321326 | L142: 9.703077453 | M142: =IF(H142="SUP","SUP",IF((VLOOKUP("England"&A142&E142,'England values'!$D$2:$H$61,5,FALSE))<'Raw data'!I142,"significantly higher than",IF(AND((VLOOKUP("England"&A142&E142,'England values'!$D$2:$H$61,5,FALSE))>='Raw data'!I142,(VLOOKUP("England"&A142&E142,'England values'!$D$2:$H$61,5,FALSE))<='Raw data'!J142),"not significantly different from",IF((VLOOKUP("England"&A142&E142,'England values'!$D$2:$H$61,5,FALSE))>'Raw data'!J142,"significantly lower than","Error")))) -> not significantly different from | N142: not significantly different
A143: Aesthetic surgery (breast) | B143: E38000146 | C143: NHS Sheffield | D143: NHS SheffieldAesthetic surgery (breast)2014/15 | E143: 2014/15 | F143: 198 | G143: 587514 | H143: 36.61753966 | I143: 31.6438011 | J143: 42.14492749 | K143: 4.973738561 | L143: 5.527387829 | M143: =IF(H143="SUP","SUP",IF((VLOOKUP("England"&A143&E143,'England values'!$D$2:$H$61,5,FALSE))<'Raw data'!I143,"significantly higher than",IF(AND((VLOOKUP("England"&A143&E143,'England values'!$D$2:$H$61,5,FALSE))>='Raw data'!I143,(VLOOKUP("England"&A143&E143,'England values'!$D$2:$H$61,5,FALSE))<='Raw data'!J143),"not significantly different from",IF((VLOOKUP("England"&A143&E143,'England values'!$D$2:$H$61,5,FALSE))>'Raw data'!J143,"significantly lower than","Error")))) -> significantly higher than | N143: significantly higher
A144: Aesthetic surgery (breast) | B144: E38000147 | C144: NHS Shropshire | D144: NHS ShropshireAesthetic surgery (breast)2014/15 | E144: 2014/15 | F144: 37 | G144: 302419 | H144: 12.33329652 | I144: 8.642646572 | J144: 17.05241934 | K144: 3.690649943 | L144: 4.719122826 | M144: =IF(H144="SUP","SUP",IF((VLOOKUP("England"&A144&E144,'England values'!$D$2:$H$61,5,FALSE))<'Raw data'!I144,"significantly higher than",IF(AND((VLOOKUP("England"&A144&E144,'England values'!$D$2:$H$61,5,FALSE))>='Raw data'!I144,(VLOOKUP("England"&A144&E144,'England values'!$D$2:$H$61,5,FALSE))<='Raw data'!J144),"not significantly different from",IF((VLOOKUP("England"&A144&E144,'England values'!$D$2:$H$61,5,FALSE))>'Raw data'!J144,"significantly lower than","Error")))) -> significantly lower than | N144: significantly lower
A145: Aesthetic surgery (breast) | B145: E38000148 | C145: NHS Slough | D145: NHS SloughAesthetic surgery (breast)2014/15 | E145: 2014/15 | F145: 16 | G145: 149787 | H145: 14.19240223 | I145: 7.764619654 | J145: 23.55376157 | K145: 6.427782574 | L145: 9.361359341 | M145: =IF(H145="SUP","SUP",IF((VLOOKUP("England"&A145&E145,'England values'!$D$2:$H$61,5,FALSE))<'Raw data'!I145,"significantly higher than",IF(AND((VLOOKUP("England"&A145&E145,'England values'!$D$2:$H$61,5,FALSE))>='Raw data'!I145,(VLOOKUP("England"&A145&E145,'England values'!$D$2:$H$61,5,FALSE))<='Raw data'!J145),"not significantly different from",IF((VLOOKUP("England"&A145&E145,'England values'!$D$2:$H$61,5,FALSE))>'Raw data'!J145,"significantly lower than","Error")))) -> significantly lower than | N145: significantly lower
A146: Aesthetic surgery (breast) | B146: E38000149 | C146: NHS Solihull | D146: NHS SolihullAesthetic surgery (breast)2014/15 | E146: 2014/15 | F146: 33 | G146: 240900 | H146: 13.71747311 | I146: 9.431889401 | J146: 19.27817055 | K146: 4.285583714 | L146: 5.560697431 | M146: =IF(H146="SUP","SUP",IF((VLOOKUP("England"&A146&E146,'England values'!$D$2:$H$61,5,FALSE))<'Raw data'!I146,"significantly higher than",IF(AND((VLOOKUP("England"&A146&E146,'England values'!$D$2:$H$61,5,FALSE))>='Raw data'!I146,(VLOOKUP("England"&A146&E146,'England values'!$D$2:$H$61,5,FALSE))<='Raw data'!J146),"not significantly different from",IF((VLOOKUP("England"&A146&E146,'England values'!$D$2:$H$61,5,FALSE))>'Raw data'!J146,"significantly lower than","Error")))) -> significantly lower than | N146: significantly lower
A147: Aesthetic surgery (breast) | B147: E38000150 | C147: NHS Somerset | D147: NHS SomersetAesthetic surgery (breast)2014/15 | E147: 2014/15 | F147: 178 | G147: 556591 | H147: 31.08933345 | I147: 26.66184622 | J147: 36.0383083 | K147: 4.427487224 | L147: 4.948974857 | M147: =IF(H147="SUP","SUP",IF((VLOOKUP("England"&A147&E147,'England values'!$D$2:$H$61,5,FALSE))<'Raw data'!I147,"significantly higher than",IF(AND((VLOOKUP("England"&A147&E147,'England values'!$D$2:$H$61,5,FALSE))>='Raw data'!I147,(VLOOKUP("England"&A147&E147,'England values'!$D$2:$H$61,5,FALSE))<='Raw data'!J147),"not significantly different from",IF((VLOOKUP("England"&A147&E147,'England values'!$D$2:$H$61,5,FALSE))>'Raw data'!J147,"significantly lower than","Error")))) -> significantly higher than | N147: significantly higher
A148: Aesthetic surgery (breast) | B148: E38000151 | C148: NHS South Cheshire | D148: NHS South CheshireAesthetic surgery (breast)2014/15 | E148: 2014/15 | F148: 50 | G148: 178125 | H148: 28.0103263 | I148: 20.7641956 | J148: 36.95975133 | K148: 7.246130694 | L148: 8.94942503 | M148: =IF(H148="SUP","SUP",IF((VLOOKUP("England"&A148&E148,'England values'!$D$2:$H$61,5,FALSE))<'Raw data'!I148,"significantly higher than",IF(AND((VLOOKUP("England"&A148&E148,'England values'!$D$2:$H$61,5,FALSE))>='Raw data'!I148,(VLOOKUP("England"&A148&E148,'England values'!$D$2:$H$61,5,FALSE))<='Raw data'!J148),"not significantly different from",IF((VLOOKUP("England"&A148&E148,'England values'!$D$2:$H$61,5,FALSE))>'Raw data'!J148,"significantly lower than","Error")))) -> not significantly different from | N148: not significantly different
A149: Aesthetic surgery (breast) | B149: E38000152 | C149: NHS South Devon & Torbay | D149: NHS South Devon & TorbayAesthetic surgery (breast)2014/15 | E149: 2014/15 | F149: 112 | G149: 288356 | H149: 36.55669447 | I149: 30.02484831 | J149: 44.07446808 | K149: 6.531846161 | L149: 7.517773614 | M149: =IF(H149="SUP","SUP",IF((VLOOKUP("England"&A149&E149,'England values'!$D$2:$H$61,5,FALSE))<'Raw data'!I149,"significantly higher than",IF(AND((VLOOKUP("England"&A149&E149,'England values'!$D$2:$H$61,5,FALSE))>='Raw data'!I149,(VLOOKUP("England"&A149&E149,'England values'!$D$2:$H$61,5,FALSE))<='Raw data'!J149),"not significantly different from",IF((VLOOKUP("England"&A149&E149,'England values'!$D$2:$H$61,5,FALSE))>'Raw data'!J149,"significantly lower than","Error")))) -> significantly higher than | N149: significantly higher
A150: Aesthetic surgery (breast) | B150: E38000153 | C150: NHS South East Staffs & Seisdon Peninsula | D150: NHS South East Staffs & Seisdon PeninsulaAesthetic surgery (breast)2014/15 | E150: 2014/15 | F150: 56 | G150: 214090 | H150: 26.28531946 | I150: 19.82622223 | J150: 34.16959196 | K150: 6.459097233 | L150: 7.884272499 | M150: =IF(H150="SUP","SUP",IF((VLOOKUP("England"&A150&E150,'England values'!$D$2:$H$61,5,FALSE))<'Raw data'!I150,"significantly higher than",IF(AND((VLOOKUP("England"&A150&E150,'England values'!$D$2:$H$61,5,FALSE))>='Raw data'!I150,(VLOOKUP("England"&A150&E150,'England values'!$D$2:$H$61,5,FALSE))<='Raw data'!J150),"not significantly different from",IF((VLOOKUP("England"&A150&E150,'England values'!$D$2:$H$61,5,FALSE))>'Raw data'!J150,"significantly lower than","Error")))) -> not significantly different from | N150: not significantly different
A151: Aesthetic surgery (breast) | B151: E38000154 | C151: NHS South Eastern Hampshire | D151: NHS South Eastern HampshireAesthetic surgery (breast)2014/15 | E151: 2014/15 | F151: 56 | G151: 210199 | H151: 25.67035221 | I151: 19.36046878 | J151: 33.37248743 | K151: 6.309883421 | L151: 7.702135226 | M151: =IF(H151="SUP","SUP",IF((VLOOKUP("England"&A151&E151,'England values'!$D$2:$H$61,5,FALSE))<'Raw data'!I151,"significantly higher than",IF(AND((VLOOKUP("England"&A151&E151,'England values'!$D$2:$H$61,5,FALSE))>='Raw data'!I151,(VLOOKUP("England"&A151&E151,'England values'!$D$2:$H$61,5,FALSE))<='Raw data'!J151),"not significantly different from",IF((VLOOKUP("England"&A151&E151,'England values'!$D$2:$H$61,5,FALSE))>'Raw data'!J151,"significantly lower than","Error")))) -> not significantly different from | N151: not significantly different
A152: Aesthetic surgery (breast) | B152: E38000155 | C152: NHS South Gloucestershire | D152: NHS South GloucestershireAesthetic surgery (breast)2014/15 | E152: 2014/15 | F152: 79 | G152: 262847 | H152: 29.86234453 | I152: 23.62198578 | J152: 37.24141161 | K152: 6.240358746 | L152: 7.379067078 | M152: =IF(H152="SUP","SUP",IF((VLOOKUP("England"&A152&E152,'England values'!$D$2:$H$61,5,FALSE))<'Raw data'!I152,"significantly higher than",IF(AND((VLOOKUP("England"&A152&E152,'England values'!$D$2:$H$61,5,FALSE))>='Raw data'!I152,(VLOOKUP("England"&A152&E152,'England values'!$D$2:$H$61,5,FALSE))<='Raw data'!J152),"not significantly different from",IF((VLOOKUP("England"&A152&E152,'England values'!$D$2:$H$61,5,FALSE))>'Raw data'!J152,"significantly lower than","Error")))) -> not significantly different from | N152: not significantly different
A153: Aesthetic surgery (breast) | B153: E38000156 | C153: NHS South Kent Coast | D153: NHS South Kent CoastAesthetic surgery (breast)2014/15 | E153: 2014/15 | F153: 28 | G153: 202205 | H153: 13.96662086 | I153: 9.245029456 | J153: 20.23302111 | K153: 4.721591407 | L153: 6.266400251 | M153: =IF(H153="SUP","SUP",IF((VLOOKUP("England"&A153&E153,'England values'!$D$2:$H$61,5,FALSE))<'Raw data'!I153,"significantly higher than",IF(AND((VLOOKUP("England"&A153&E153,'England values'!$D$2:$H$61,5,FALSE))>='Raw data'!I153,(VLOOKUP("England"&A153&E153,'England values'!$D$2:$H$61,5,FALSE))<='Raw data'!J153),"not significantly different from",IF((VLOOKUP("England"&A153&E153,'England values'!$D$2:$H$61,5,FALSE))>'Raw data'!J153,"significantly lower than","Error")))) -> significantly lower than | N153: significantly lower
A154: Aesthetic surgery (breast) | B154: E38000157 | C154: NHS South Lincolnshire | D154: NHS South LincolnshireAesthetic surgery (breast)2014/15 | E154: 2014/15 | F154: 49 | G154: 161573 | H154: 29.82235008 | I154: 22.03415609 | J154: 39.46210626 | K154: 7.788193986 | L154: 9.639756182 | M154: =IF(H154="SUP","SUP",IF((VLOOKUP("England"&A154&E154,'England values'!$D$2:$H$61,5,FALSE))<'Raw data'!I154,"significantly higher than",IF(AND((VLOOKUP("England"&A154&E154,'England values'!$D$2:$H$61,5,FALSE))>='Raw data'!I154,(VLOOKUP("England"&A154&E154,'England values'!$D$2:$H$61,5,FALSE))<='Raw data'!J154),"not significantly different from",IF((VLOOKUP("England"&A154&E154,'England values'!$D$2:$H$61,5,FALSE))>'Raw data'!J154,"significantly lower than","Error")))) -> not significantly different from | N154: not significantly different
A155: Aesthetic surgery (breast) | B155: E38000158 | C155: NHS South Manchester | D155: NHS South ManchesterAesthetic surgery (breast)2014/15 | E155: 2014/15 | F155: 49 | G155: 170808 | H155: 35.32130849 | I155: 25.94238555 | J155: 46.92997291 | K155: 9.37892294 | L155: 11.60866442 | M155: =IF(H155="SUP","SUP",IF((VLOOKUP("England"&A155&E155,'England values'!$D$2:$H$61,5,FALSE))<'Raw data'!I155,"significantly higher than",IF(AND((VLOOKUP("England"&A155&E155,'England values'!$D$2:$H$61,5,FALSE))>='Raw data'!I155,(VLOOKUP("England"&A155&E155,'England values'!$D$2:$H$61,5,FALSE))<='Raw data'!J155),"not significantly different from",IF((VLOOKUP("England"&A155&E155,'England values'!$D$2:$H$61,5,FALSE))>'Raw data'!J155,"significantly lower than","Error")))) -> significantly higher than | N155: significantly higher
A156: Aesthetic surgery (breast) | B156: E38000159 | C156: NHS South Norfolk | D156: NHS South NorfolkAesthetic surgery (breast)2014/15 | E156: 2014/15 | F156: 33 | G156: 230234 | H156: 13.93656082 | I156: 9.581004637 | J156: 19.58805001 | K156: 4.355556179 | L156: 5.651489196 | M156: =IF(H156="SUP","SUP",IF((VLOOKUP("England"&A156&E156,'England values'!$D$2:$H$61,5,FALSE))<'Raw data'!I156,"significantly higher than",IF(AND((VLOOKUP("England"&A156&E156,'England values'!$D$2:$H$61,5,FALSE))>='Raw data'!I156,(VLOOKUP("England"&A156&E156,'England values'!$D$2:$H$61,5,FALSE))<='Raw data'!J156),"not significantly different from",IF((VLOOKUP("England"&A156&E156,'England values'!$D$2:$H$61,5,FALSE))>'Raw data'!J156,"significantly lower than","Error")))) -> significantly lower than | N156: significantly lower
A157: Aesthetic surgery (breast) | B157: E38000160 | C157: NHS South Reading | D157: NHS South ReadingAesthetic surgery (breast)2014/15 | E157: 2014/15 | F157: 27 | G157: 134426 | H157: 24.25493484 | I157: 15.62719613 | J157: 35.76590454 | K157: 8.627738706 | L157: 11.51096971 | M157: =IF(H157="SUP","SUP",IF((VLOOKUP("England"&A157&E157,'England values'!$D$2:$H$61,5,FALSE))<'Raw data'!I157,"significantly higher than",IF(AND((VLOOKUP("England"&A157&E157,'England values'!$D$2:$H$61,5,FALSE))>='Raw data'!I157,(VLOOKUP("England"&A157&E157,'England values'!$D$2:$H$61,5,FALSE))<='Raw data'!J157),"not significantly different from",IF((VLOOKUP("England"&A157&E157,'England values'!$D$2:$H$61,5,FALSE))>'Raw data'!J157,"significantly lower than","Error")))) -> not significantly different from | N157: not significantly different
A158: Aesthetic surgery (breast) | B158: E38000161 | C158: NHS South Sefton | D158: NHS South SeftonAesthetic surgery (breast)2014/15 | E158: 2014/15 | F158: 65 | G158: 154780 | H158: 41.71305843 | I158: 32.13598997 | J158: 53.2356185 | K158: 9.577068462 | L158: 11.52256006 | M158: =IF(H158="SUP","SUP",IF((VLOOKUP("England"&A158&E158,'England values'!$D$2:$H$61,5,FALSE))<'Raw data'!I158,"significantly higher than",IF(AND((VLOOKUP("England"&A158&E158,'England values'!$D$2:$H$61,5,FALSE))>='Raw data'!I158,(VLOOKUP("England"&A158&E158,'England values'!$D$2:$H$61,5,FALSE))<='Raw data'!J158),"not significantly different from",IF((VLOOKUP("England"&A158&E158,'England values'!$D$2:$H$61,5,FALSE))>'Raw data'!J158,"significantly lower than","Error")))) -> significantly higher than | N158: significantly higher
A159: Aesthetic surgery (breast) | B159: E38000162 | C159: NHS South Tees | D159: NHS South TeesAesthetic surgery (breast)2014/15 | E159: 2014/15 | F159: 108 | G159: 292030 | H159: 37.25034725 | I159: 30.5331326 | J159: 45.0015822 | K159: 6.717214652 | L159: 7.751234949 | M159: =IF(H159="SUP","SUP",IF((VLOOKUP("England"&A159&E159,'England values'!$D$2:$H$61,5,FALSE))<'Raw data'!I159,"significantly higher than",IF(AND((VLOOKUP("England"&A159&E159,'England values'!$D$2:$H$61,5,FALSE))>='Raw data'!I159,(VLOOKUP("England"&A159&E159,'England values'!$D$2:$H$61,5,FALSE))<='Raw data'!J159),"not significantly different from",IF((VLOOKUP("England"&A159&E159,'England values'!$D$2:$H$61,5,FALSE))>'Raw data'!J159,"significantly lower than","Error")))) -> significantly higher than | N159: significantly higher
A160: Aesthetic surgery (breast) | B160: E38000163 | C160: NHS South Tyneside | D160: NHS South TynesideAesthetic surgery (breast)2014/15 | E160: 2014/15 | F160: 89 | G160: 155125 | H160: 56.04003489 | I160: 44.97171736 | J160: 69.0007652 | K160: 11.06831754 | L160: 12.96073031 | M160: =IF(H160="SUP","SUP",IF((VLOOKUP("England"&A160&E160,'England values'!$D$2:$H$61,5,FALSE))<'Raw data'!I160,"significantly higher than",IF(AND((VLOOKUP("England"&A160&E160,'England values'!$D$2:$H$61,5,FALSE))>='Raw data'!I160,(VLOOKUP("England"&A160&E160,'England values'!$D$2:$H$61,5,FALSE))<='Raw data'!J160),"not significantly different from",IF((VLOOKUP("England"&A160&E160,'England values'!$D$2:$H$61,5,FALSE))>'Raw data'!J160,"significantly lower than","Error")))) -> significantly higher than | N160: significantly higher
A161: Aesthetic surgery (breast) | B161: E38000164 | C161: NHS South Warwickshire | D161: NHS South WarwickshireAesthetic surgery (breast)2014/15 | E161: 2014/15 | F161: 48 | G161: 275622 | H161: 17.02774036 | I161: 12.5395471 | J161: 22.59537304 | K161: 4.48819326 | L161: 5.567632682 | M161: =IF(H161="SUP","SUP",IF((VLOOKUP("England"&A161&E161,'England values'!$D$2:$H$61,5,FALSE))<'Raw data'!I161,"significantly higher than",IF(AND((VLOOKUP("England"&A161&E161,'England values'!$D$2:$H$61,5,FALSE))>='Raw data'!I161,(VLOOKUP("England"&A161&E161,'England values'!$D$2:$H$61,5,FALSE))<='Raw data'!J161),"not significantly different from",IF((VLOOKUP("England"&A161&E161,'England values'!$D$2:$H$61,5,FALSE))>'Raw data'!J161,"significantly lower than","Error")))) -> significantly lower than | N161: significantly lower
A162: Aesthetic surgery (breast) | B162: E38000165 | C162: NHS South West Lincolnshire | D162: NHS South West LincolnshireAesthetic surgery (breast)2014/15 | E162: 2014/15 | F162: 37 | G162: 131460 | H162: 26.71749253 | I162: 18.75697895 | J162: 36.89636127 | K162: 7.96051358 | L162: 10.17886874 | M162: =IF(H162="SUP","SUP",IF((VLOOKUP("England"&A162&E162,'England values'!$D$2:$H$61,5,FALSE))<'Raw data'!I162,"significantly higher than",IF(AND((VLOOKUP("England"&A162&E162,'England values'!$D$2:$H$61,5,FALSE))>='Raw data'!I162,(VLOOKUP("England"&A162&E162,'England values'!$D$2:$H$61,5,FALSE))<='Raw data'!J162),"not significantly different from",IF((VLOOKUP("England"&A162&E162,'England values'!$D$2:$H$61,5,FALSE))>'Raw data'!J162,"significantly lower than","Error")))) -> not significantly different from | N162: not significantly different
A163: Aesthetic surgery (breast) | B163: E38000166 | C163: NHS South Worcestershire | D163: NHS South WorcestershireAesthetic surgery (breast)2014/15 | E163: 2014/15 | F163: 79 | G163: 297244 | H163: 25.9906763 | I163: 20.55094308 | J163: 32.42302385 | K163: 5.439733215 | L163: 6.432347549 | M163: =IF(H163="SUP","SUP",IF((VLOOKUP("England"&A163&E163,'England values'!$D$2:$H$61,5,FALSE))<'Raw data'!I163,"significantly higher than",IF(AND((VLOOKUP("England"&A163&E163,'England values'!$D$2:$H$61,5,FALSE))>='Raw data'!I163,(VLOOKUP("England"&A163&E163,'England values'!$D$2:$H$61,5,FALSE))<='Raw data'!J163),"not significantly different from",IF((VLOOKUP("England"&A163&E163,'England values'!$D$2:$H$61,5,FALSE))>'Raw data'!J163,"significantly lower than","Error")))) -> not significantly different from | N163: not significantly different
A164: Aesthetic surgery (breast) | B164: E38000167 | C164: NHS Southampton | D164: NHS SouthamptonAesthetic surgery (breast)2014/15 | E164: 2014/15 | F164: 26 | G164: 268953 | H164: 10.935088 | I164: 7.081209172 | J164: 16.10555584 | K164: 3.853878831 | L164: 5.170467836 | M164: =IF(H164="SUP","SUP",IF((VLOOKUP("England"&A164&E164,'England values'!$D$2:$H$61,5,FALSE))<'Raw data'!I164,"significantly higher than",IF(AND((VLOOKUP("England"&A164&E164,'England values'!$D$2:$H$61,5,FALSE))>='Raw data'!I164,(VLOOKUP("England"&A164&E164,'England values'!$D$2:$H$61,5,FALSE))<='Raw data'!J164),"not significantly different from",IF((VLOOKUP("England"&A164&E164,'England values'!$D$2:$H$61,5,FALSE))>'Raw data'!J164,"significantly lower than","Error")))) -> significantly lower than | N164: significantly lower
A165: Aesthetic surgery (breast) | B165: E38000168 | C165: NHS Southend | D165: NHS SouthendAesthetic surgery (breast)2014/15 | E165: 2014/15 | F165: 28 | G165: 185009 | H165: 15.54122183 | I165: 10.30545579 | J165: 22.49002423 | K165: 5.235766047 | L165: 6.948802393 | M165: =IF(H165="SUP","SUP",IF((VLOOKUP("England"&A165&E165,'England values'!$D$2:$H$61,5,FALSE))<'Raw data'!I165,"significantly higher than",IF(AND((VLOOKUP("England"&A165&E165,'England values'!$D$2:$H$61,5,FALSE))>='Raw data'!I165,(VLOOKUP("England"&A165&E165,'England values'!$D$2:$H$61,5,FALSE))<='Raw data'!J165),"not significantly different from",IF((VLOOKUP("England"&A165&E165,'England values'!$D$2:$H$61,5,FALSE))>'Raw data'!J165,"significantly lower than","Error")))) -> significantly lower than | N165: significantly lower
A166: Aesthetic surgery (breast) | B166: E38000169 | C166: NHS Southern Derbyshire | D166: NHS Southern DerbyshireAesthetic surgery (breast)2014/15 | E166: 2014/15 | F166: 120 | G166: 540086 | H166: 22.51818848 | I166: 18.65644695 | J166: 26.94154716 | K166: 3.861741525 | L166: 4.423358689 | M166: =IF(H166="SUP","SUP",IF((VLOOKUP("England"&A166&E166,'England values'!$D$2:$H$61,5,FALSE))<'Raw data'!I166,"significantly higher than",IF(AND((VLOOKUP("England"&A166&E166,'England values'!$D$2:$H$61,5,FALSE))>='Raw data'!I166,(VLOOKUP("England"&A166&E166,'England values'!$D$2:$H$61,5,FALSE))<='Raw data'!J166),"not significantly different from",IF((VLOOKUP("England"&A166&E166,'England values'!$D$2:$H$61,5,FALSE))>'Raw data'!J166,"significantly lower than","Error")))) -> not significantly different from | N166: not significantly different
A167: Aesthetic surgery (breast) | B167: E38000170 | C167: NHS Southport & Formby | D167: NHS Southport & FormbyAesthetic surgery (breast)2014/15 | E167: 2014/15 | F167: 42 | G167: 122988 | H167: 32.42744693 | I167: 23.29244044 | J167: 43.93123151 | K167: 9.135006484 | L167: 11.50378459 | M167: =IF(H167="SUP","SUP",IF((VLOOKUP("England"&A167&E167,'England values'!$D$2:$H$61,5,FALSE))<'Raw data'!I167,"significantly higher than",IF(AND((VLOOKUP("England"&A167&E167,'England values'!$D$2:$H$61,5,FALSE))>='Raw data'!I167,(VLOOKUP("England"&A167&E167,'England values'!$D$2:$H$61,5,FALSE))<='Raw data'!J167),"not significantly different from",IF((VLOOKUP("England"&A167&E167,'England values'!$D$2:$H$61,5,FALSE))>'Raw data'!J167,"significantly lower than","Error")))) -> not significantly different from | N167: not significantly different
A168: Aesthetic surgery (breast) | B168: E38000171 | C168: NHS Southwark | D168: NHS SouthwarkAesthetic surgery (breast)2014/15 | E168: 2014/15 | F168: 68 | G168: 305461 | H168: 25.34347031 | I168: 19.05527638 | J168: 32.87763156 | K168: 6.288193929 | L168: 7.534161252 | M168: =IF(H168="SUP","SUP",IF((VLOOKUP("England"&A168&E168,'England values'!$D$2:$H$61,5,FALSE))<'Raw data'!I168,"significantly higher than",IF(AND((VLOOKUP("England"&A168&E168,'England values'!$D$2:$H$61,5,FALSE))>='Raw data'!I168,(VLOOKUP("England"&A168&E168,'England values'!$D$2:$H$61,5,FALSE))<='Raw data'!J168),"not significantly different from",IF((VLOOKUP("England"&A168&E168,'England values'!$D$2:$H$61,5,FALSE))>'Raw data'!J168,"significantly lower than","Error")))) -> not significantly different from | N168: not significantly different
A169: Aesthetic surgery (breast) | B169: E38000172 | C169: NHS St Helens | D169: NHS St HelensAesthetic surgery (breast)2014/15 | E169: 2014/15 | F169: 65 | G169: 194862 | H169: 33.70943553 | I169: 25.97977395 | J169: 43.00930533 | K169: 7.729661574 | L169: 9.2998698 | M169: =IF(H169="SUP","SUP",IF((VLOOKUP("England"&A169&E169,'England values'!$D$2:$H$61,5,FALSE))<'Raw data'!I169,"significantly higher than",IF(AND((VLOOKUP("England"&A169&E169,'England values'!$D$2:$H$61,5,FALSE))>='Raw data'!I169,(VLOOKUP("England"&A169&E169,'England values'!$D$2:$H$61,5,FALSE))<='Raw data'!J169),"not significantly different from",IF((VLOOKUP("England"&A169&E169,'England values'!$D$2:$H$61,5,FALSE))>'Raw data'!J169,"significantly lower than","Error")))) -> significantly higher than | N169: significantly higher
A170: Aesthetic surgery (breast) | B170: E38000173 | C170: NHS Stafford & Surrounds | D170: NHS Stafford & SurroundsAesthetic surgery (breast)2014/15 | E170: 2014/15 | F170: 50 | G170: 145891 | H170: 32.83943782 | I170: 24.32298359 | J170: 43.35779194 | K170: 8.516454227 | L170: 10.51835412 | M170: =IF(H170="SUP","SUP",IF((VLOOKUP("England"&A170&E170,'England values'!$D$2:$H$61,5,FALSE))<'Raw data'!I170,"significantly higher than",IF(AND((VLOOKUP("England"&A170&E170,'England values'!$D$2:$H$61,5,FALSE))>='Raw data'!I170,(VLOOKUP("England"&A170&E170,'England values'!$D$2:$H$61,5,FALSE))<='Raw data'!J170),"not significantly different from",IF((VLOOKUP("England"&A170&E170,'England values'!$D$2:$H$61,5,FALSE))>'Raw data'!J170,"significantly lower than","Error")))) -> not significantly different from | N170: not significantly different
A171: Aesthetic surgery (breast) | B171: E38000174 | C171: NHS Stockport | D171: NHS StockportAesthetic surgery (breast)2014/15 | E171: 2014/15 | F171: 56 | G171: 303182 | H171: 18.55638613 | I171: 14.00858051 | J171: 24.10764779 | K171: 4.547805622 | L171: 5.551261655 | M171: =IF(H171="SUP","SUP",IF((VLOOKUP("England"&A171&E171,'England values'!$D$2:$H$61,5,FALSE))<'Raw data'!I171,"significantly higher than",IF(AND((VLOOKUP("England"&A171&E171,'England values'!$D$2:$H$61,5,FALSE))>='Raw data'!I171,(VLOOKUP("England"&A171&E171,'England values'!$D$2:$H$61,5,FALSE))<='Raw data'!J171),"not significantly different from",IF((VLOOKUP("England"&A171&E171,'England values'!$D$2:$H$61,5,FALSE))>'Raw data'!J171,"significantly lower than","Error")))) -> significantly lower than | N171: significantly lower
A172: Aesthetic surgery (breast) | B172: E38000175 | C172: NHS Stoke on Trent | D172: NHS Stoke on TrentAesthetic surgery (breast)2014/15 | E172: 2014/15 | F172: 47 | G172: 283266 | H172: 17.07682263 | I172: 12.52455893 | J172: 22.73696243 | K172: 4.552263698 | L172: 5.660139803 | M172: =IF(H172="SUP","SUP",IF((VLOOKUP("England"&A172&E172,'England values'!$D$2:$H$61,5,FALSE))<'Raw data'!I172,"significantly higher than",IF(AND((VLOOKUP("England"&A172&E172,'England values'!$D$2:$H$61,5,FALSE))>='Raw data'!I172,(VLOOKUP("England"&A172&E172,'England values'!$D$2:$H$61,5,FALSE))<='Raw data'!J172),"not significantly different from",IF((VLOOKUP("England"&A172&E172,'England values'!$D$2:$H$61,5,FALSE))>'Raw data'!J172,"significantly lower than","Error")))) -> significantly lower than | N172: significantly lower
A173: Aesthetic surgery (breast) | B173: E38000176 | C173: NHS Sunderland | D173: NHS SunderlandAesthetic surgery (breast)2014/15 | E173: 2014/15 | F173: 146 | G173: 283810 | H173: 50.5941948 | I173: 42.68910693 | J173: 59.53411139 | K173: 7.905087873 | L173: 8.93991659 | M173: =IF(H173="SUP","SUP",IF((VLOOKUP("England"&A173&E173,'England values'!$D$2:$H$61,5,FALSE))<'Raw data'!I173,"significantly higher than",IF(AND((VLOOKUP("England"&A173&E173,'England values'!$D$2:$H$61,5,FALSE))>='Raw data'!I173,(VLOOKUP("England"&A173&E173,'England values'!$D$2:$H$61,5,FALSE))<='Raw data'!J173),"not significantly different from",IF((VLOOKUP("England"&A173&E173,'England values'!$D$2:$H$61,5,FALSE))>'Raw data'!J173,"significantly lower than","Error")))) -> significantly higher than | N173: significantly higher
A174: Aesthetic surgery (breast) | B174: E38000177 | C174: NHS Surrey Downs | D174: NHS Surrey DownsAesthetic surgery (breast)2014/15 | E174: 2014/15 | F174: 80 | G174: 300406 | H174: 26.67417076 | I174: 21.12108389 | J174: 33.23360302 | K174: 5.553086867 | L174: 6.559432259 | M174: =IF(H174="SUP","SUP",IF((VLOOKUP("England"&A174&E174,'England values'!$D$2:$H$61,5,FALSE))<'Raw data'!I174,"significantly higher than",IF(AND((VLOOKUP("England"&A174&E174,'England values'!$D$2:$H$61,5,FALSE))>='Raw data'!I174,(VLOOKUP("England"&A174&E174,'England values'!$D$2:$H$61,5,FALSE))<='Raw data'!J174),"not significantly different from",IF((VLOOKUP("England"&A174&E174,'England values'!$D$2:$H$61,5,FALSE))>'Raw data'!J174,"significantly lower than","Error")))) -> not significantly different from | N174: not significantly different
A175: Aesthetic surgery (breast) | B175: E38000178 | C175: NHS Surrey Heath | D175: NHS Surrey HeathAesthetic surgery (breast)2014/15 | E175: 2014/15 | F175: 27 | G175: 93620 | H175: 28.27304315 | I175: 18.58843161 | J175: 41.19407308 | K175: 9.68461154 | L175: 12.92102993 | M175: =IF(H175="SUP","SUP",IF((VLOOKUP("England"&A175&E175,'England values'!$D$2:$H$61,5,FALSE))<'Raw data'!I175,"significantly higher than",IF(AND((VLOOKUP("England"&A175&E175,'England values'!$D$2:$H$61,5,FALSE))>='Raw data'!I175,(VLOOKUP("England"&A175&E175,'England values'!$D$2:$H$61,5,FALSE))<='Raw data'!J175),"not significantly different from",IF((VLOOKUP("England"&A175&E175,'England values'!$D$2:$H$61,5,FALSE))>'Raw data'!J175,"significantly lower than","Error")))) -> not significantly different from | N175: not significantly different
A176: Aesthetic surgery (breast) | B176: E38000179 | C176: NHS Sutton | D176: NHS SuttonAesthetic surgery (breast)2014/15 | E176: 2014/15 | F176: 44 | G176: 188345 | H176: 23.65119108 | I176: 17.11771859 | J176: 31.83488494 | K176: 6.533472484 | L176: 8.18369386 | M176: =IF(H176="SUP","SUP",IF((VLOOKUP("England"&A176&E176,'England values'!$D$2:$H$61,5,FALSE))<'Raw data'!I176,"significantly higher than",IF(AND((VLOOKUP("England"&A176&E176,'England values'!$D$2:$H$61,5,FALSE))>='Raw data'!I176,(VLOOKUP("England"&A176&E176,'England values'!$D$2:$H$61,5,FALSE))<='Raw data'!J176),"not significantly different from",IF((VLOOKUP("England"&A176&E176,'England values'!$D$2:$H$61,5,FALSE))>'Raw data'!J176,"significantly lower than","Error")))) -> not significantly different from | N176: not significantly different
A177: Aesthetic surgery (breast) | B177: E38000180 | C177: NHS Swale | D177: NHS SwaleAesthetic surgery (breast)2014/15 | E177: 2014/15 | F177: 29 | G177: 108467 | H177: 27.98588857 | I177: 18.69589334 | J177: 40.25406934 | K177: 9.289995231 | L177: 12.26818077 | M177: =IF(H177="SUP","SUP",IF((VLOOKUP("England"&A177&E177,'England values'!$D$2:$H$61,5,FALSE))<'Raw data'!I177,"significantly higher than",IF(AND((VLOOKUP("England"&A177&E177,'England values'!$D$2:$H$61,5,FALSE))>='Raw data'!I177,(VLOOKUP("England"&A177&E177,'England values'!$D$2:$H$61,5,FALSE))<='Raw data'!J177),"not significantly different from",IF((VLOOKUP("England"&A177&E177,'England values'!$D$2:$H$61,5,FALSE))>'Raw data'!J177,"significantly lower than","Error")))) -> not significantly different from | N177: not significantly different
A178: Aesthetic surgery (breast) | B178: E38000181 | C178: NHS Swindon | D178: NHS SwindonAesthetic surgery (breast)2014/15 | E178: 2014/15 | F178: 64 | G178: 228747 | H178: 28.15652314 | I178: 21.62726698 | J178: 36.02355274 | K178: 6.529256164 | L178: 7.867029601 | M178: =IF(H178="SUP","SUP",IF((VLOOKUP("England"&A178&E178,'England values'!$D$2:$H$61,5,FALSE))<'Raw data'!I178,"significantly higher than",IF(AND((VLOOKUP("England"&A178&E178,'England values'!$D$2:$H$61,5,FALSE))>='Raw data'!I178,(VLOOKUP("England"&A178&E178,'England values'!$D$2:$H$61,5,FALSE))<='Raw data'!J178),"not significantly different from",IF((VLOOKUP("England"&A178&E178,'England values'!$D$2:$H$61,5,FALSE))>'Raw data'!J178,"significantly lower than","Error")))) -> not significantly different from | N178: not significantly different
A179: Aesthetic surgery (breast) | B179: E38000182 | C179: NHS Tameside & Glossop | D179: NHS Tameside & GlossopAesthetic surgery (breast)2014/15 | E179: 2014/15 | F179: 61 | G179: 242543 | H179: 25.14908221 | I179: 19.219182 | J179: 32.32668203 | K179: 5.929900212 | L179: 7.177599814 | M179: =IF(H179="SUP","SUP",IF((VLOOKUP("England"&A179&E179,'England values'!$D$2:$H$61,5,FALSE))<'Raw data'!I179,"significantly higher than",IF(AND((VLOOKUP("England"&A179&E179,'England values'!$D$2:$H$61,5,FALSE))>='Raw data'!I179,(VLOOKUP("England"&A179&E179,'England values'!$D$2:$H$61,5,FALSE))<='Raw data'!J179),"not significantly different from",IF((VLOOKUP("England"&A179&E179,'England values'!$D$2:$H$61,5,FALSE))>'Raw data'!J179,"significantly lower than","Error")))) -> not significantly different from | N179: not significantly different
A180: Aesthetic surgery (breast) | B180: E38000183 | C180: NHS Telford & Wrekin | D180: NHS Telford & WrekinAesthetic surgery (breast)2014/15 | E180: 2014/15 | F180: 38 | G180: 176942 | H180: 21.40584806 | I180: 15.13562312 | J180: 29.3970392 | K180: 6.270224935 | L180: 7.99119114 | M180: =IF(H180="SUP","SUP",IF((VLOOKUP("England"&A180&E180,'England values'!$D$2:$H$61,5,FALSE))<'Raw data'!I180,"significantly higher than",IF(AND((VLOOKUP("England"&A180&E180,'England values'!$D$2:$H$61,5,FALSE))>='Raw data'!I180,(VLOOKUP("England"&A180&E180,'England values'!$D$2:$H$61,5,FALSE))<='Raw data'!J180),"not significantly different from",IF((VLOOKUP("England"&A180&E180,'England values'!$D$2:$H$61,5,FALSE))>'Raw data'!J180,"significantly lower than","Error")))) -> not significantly different from | N180: not significantly different
A181: Aesthetic surgery (breast) | B181: E38000184 | C181: NHS Thanet | D181: NHS ThanetAesthetic surgery (breast)2014/15 | E181: 2014/15 | F181: 20 | G181: 143649 | H181: 13.56440533 | I181: 8.25321747 | J181: 20.99427186 | K181: 5.311187863 | L181: 7.429866523 | M181: =IF(H181="SUP","SUP",IF((VLOOKUP("England"&A181&E181,'England values'!$D$2:$H$61,5,FALSE))<'Raw data'!I181,"significantly higher than",IF(AND((VLOOKUP("England"&A181&E181,'England values'!$D$2:$H$61,5,FALSE))>='Raw data'!I181,(VLOOKUP("England"&A181&E181,'England values'!$D$2:$H$61,5,FALSE))<='Raw data'!J181),"not significantly different from",IF((VLOOKUP("England"&A181&E181,'England values'!$D$2:$H$61,5,FALSE))>'Raw data'!J181,"significantly lower than","Error")))) -> significantly lower than | N181: significantly lower
A182: Aesthetic surgery (breast) | B182: E38000185 | C182: NHS Thurrock | D182: NHS ThurrockAesthetic surgery (breast)2014/15 | E182: 2014/15 | F182: 22 | G182: 167863 | H182: 13.17173373 | I182: 8.197200839 | J182: 20.02127356 | K182: 4.97453289 | L182: 6.849539835 | M182: =IF(H182="SUP","SUP",IF((VLOOKUP("England"&A182&E182,'England values'!$D$2:$H$61,5,FALSE))<'Raw data'!I182,"significantly higher than",IF(AND((VLOOKUP("England"&A182&E182,'England values'!$D$2:$H$61,5,FALSE))>='Raw data'!I182,(VLOOKUP("England"&A182&E182,'England values'!$D$2:$H$61,5,FALSE))<='Raw data'!J182),"not significantly different from",IF((VLOOKUP("England"&A182&E182,'England values'!$D$2:$H$61,5,FALSE))>'Raw data'!J182,"significantly lower than","Error")))) -> significantly lower than | N182: significantly lower
A183: Aesthetic surgery (breast) | B183: E38000186 | C183: NHS Tower Hamlets | D183: NHS Tower HamletsAesthetic surgery (breast)2014/15 | E183: 2014/15 | F183: 23 | G183: 291721 | H183: 9.80901437 | I183: 5.755976694 | J183: 15.35008962 | K183: 4.053037676 | L183: 5.541075251 | M183: =IF(H183="SUP","SUP",IF((VLOOKUP("England"&A183&E183,'England values'!$D$2:$H$61,5,FALSE))<'Raw data'!I183,"significantly higher than",IF(AND((VLOOKUP("England"&A183&E183,'England values'!$D$2:$H$61,5,FALSE))>='Raw data'!I183,(VLOOKUP("England"&A183&E183,'England values'!$D$2:$H$61,5,FALSE))<='Raw data'!J183),"not significantly different from",IF((VLOOKUP("England"&A183&E183,'England values'!$D$2:$H$61,5,FALSE))>'Raw data'!J183,"significantly lower than","Error")))) -> significantly lower than | N183: significantly lower
A184: Aesthetic surgery (breast) | B184: E38000187 | C184: NHS Trafford | D184: NHS TraffordAesthetic surgery (breast)2014/15 | E184: 2014/15 | F184: 92 | G184: 238020 | H184: 39.16975703 | I184: 31.53739753 | J184: 48.08372607 | K184: 7.632359496 | L184: 8.913969045 | M184: =IF(H184="SUP","SUP",IF((VLOOKUP("England"&A184&E184,'England values'!$D$2:$H$61,5,FALSE))<'Raw data'!I184,"significantly higher than",IF(AND((VLOOKUP("England"&A184&E184,'England values'!$D$2:$H$61,5,FALSE))>='Raw data'!I184,(VLOOKUP("England"&A184&E184,'England values'!$D$2:$H$61,5,FALSE))<='Raw data'!J184),"not significantly different from",IF((VLOOKUP("England"&A184&E184,'England values'!$D$2:$H$61,5,FALSE))>'Raw data'!J184,"significantly lower than","Error")))) -> significantly higher than | N184: significantly higher
A185: Aesthetic surgery (breast) | B185: E38000188 | C185: NHS Vale of York | D185: NHS Vale of YorkAesthetic surgery (breast)2014/15 | E185: 2014/15 | F185: 98 | G185: 348363 | H185: 28.79656784 | I185: 23.36128641 | J185: 35.11373602 | K185: 5.435281431 | L185: 6.317168181 | M185: =IF(H185="SUP","SUP",IF((VLOOKUP("England"&A185&E185,'England values'!$D$2:$H$61,5,FALSE))<'Raw data'!I185,"significantly higher than",IF(AND((VLOOKUP("England"&A185&E185,'England values'!$D$2:$H$61,5,FALSE))>='Raw data'!I185,(VLOOKUP("England"&A185&E185,'England values'!$D$2:$H$61,5,FALSE))<='Raw data'!J185),"not significantly different from",IF((VLOOKUP("England"&A185&E185,'England values'!$D$2:$H$61,5,FALSE))>'Raw data'!J185,"significantly lower than","Error")))) -> not significantly different from | N185: not significantly different
A186: Aesthetic surgery (breast) | B186: E38000189 | C186: NHS Vale Royal | D186: NHS Vale RoyalAesthetic surgery (breast)2014/15 | E186: 2014/15 | F186: 16 | G186: 102849 | H186: 14.94713371 | I186: 8.527998758 | J186: 24.29589875 | K186: 6.419134956 | L186: 9.348765035 | M186: =IF(H186="SUP","SUP",IF((VLOOKUP("England"&A186&E186,'England values'!$D$2:$H$61,5,FALSE))<'Raw data'!I186,"significantly higher than",IF(AND((VLOOKUP("England"&A186&E186,'England values'!$D$2:$H$61,5,FALSE))>='Raw data'!I186,(VLOOKUP("England"&A186&E186,'England values'!$D$2:$H$61,5,FALSE))<='Raw data'!J186),"not significantly different from",IF((VLOOKUP("England"&A186&E186,'England values'!$D$2:$H$61,5,FALSE))>'Raw data'!J186,"significantly lower than","Error")))) -> significantly lower than | N186: significantly lower
A187: Aesthetic surgery (breast) | B187: E38000190 | C187: NHS Wakefield | D187: NHS WakefieldAesthetic surgery (breast)2014/15 | E187: 2014/15 | F187: 100 | G187: 360538 | H187: 26.84431238 | I187: 21.83177824 | J187: 32.66127908 | K187: 5.012534138 | L187: 5.816966693 | M187: =IF(H187="SUP","SUP",IF((VLOOKUP("England"&A187&E187,'England values'!$D$2:$H$61,5,FALSE))<'Raw data'!I187,"significantly higher than",IF(AND((VLOOKUP("England"&A187&E187,'England values'!$D$2:$H$61,5,FALSE))>='Raw data'!I187,(VLOOKUP("England"&A187&E187,'England values'!$D$2:$H$61,5,FALSE))<='Raw data'!J187),"not significantly different from",IF((VLOOKUP("England"&A187&E187,'England values'!$D$2:$H$61,5,FALSE))>'Raw data'!J187,"significantly lower than","Error")))) -> not significantly different from | N187: not significantly different
A188: Aesthetic surgery (breast) | B188: E38000191 | C188: NHS Walsall | D188: NHS WalsallAesthetic surgery (breast)2014/15 | E188: 2014/15 | F188: 34 | G188: 275947 | H188: 13.06198348 | I188: 9.033253879 | J188: 18.2690325 | K188: 4.028729597 | L188: 5.207049023 | M188: =IF(H188="SUP","SUP",IF((VLOOKUP("England"&A188&E188,'England values'!$D$2:$H$61,5,FALSE))<'Raw data'!I188,"significantly higher than",IF(AND((VLOOKUP("England"&A188&E188,'England values'!$D$2:$H$61,5,FALSE))>='Raw data'!I188,(VLOOKUP("England"&A188&E188,'England values'!$D$2:$H$61,5,FALSE))<='Raw data'!J188),"not significantly different from",IF((VLOOKUP("England"&A188&E188,'England values'!$D$2:$H$61,5,FALSE))>'Raw data'!J188,"significantly lower than","Error")))) -> significantly lower than | N188: significantly lower
A189: Aesthetic surgery (breast) | B189: E38000192 | C189: NHS Waltham Forest | D189: NHS Waltham ForestAesthetic surgery (breast)2014/15 | E189: 2014/15 | F189: 28 | G189: 298509 | H189: 10.30965108 | I189: 6.603126936 | J189: 15.22887466 | K189: 3.70652414 | L189: 4.919223583 | M189: =IF(H189="SUP","SUP",IF((VLOOKUP("England"&A189&E189,'England values'!$D$2:$H$61,5,FALSE))<'Raw data'!I189,"significantly higher than",IF(AND((VLOOKUP("England"&A189&E189,'England values'!$D$2:$H$61,5,FALSE))>='Raw data'!I189,(VLOOKUP("England"&A189&E189,'England values'!$D$2:$H$61,5,FALSE))<='Raw data'!J189),"not significantly different from",IF((VLOOKUP("England"&A189&E189,'England values'!$D$2:$H$61,5,FALSE))>'Raw data'!J189,"significantly lower than","Error")))) -> significantly lower than | N189: significantly lower
A190: Aesthetic surgery (breast) | B190: E38000193 | C190: NHS Wandsworth | D190: NHS WandsworthAesthetic surgery (breast)2014/15 | E190: 2014/15 | F190: 70 | G190: 372875 | H190: 21.75116124 | I190: 16.49486914 | J190: 28.03245333 | K190: 5.256292101 | L190: 6.281292083 | M190: =IF(H190="SUP","SUP",IF((VLOOKUP("England"&A190&E190,'England values'!$D$2:$H$61,5,FALSE))<'Raw data'!I190,"significantly higher than",IF(AND((VLOOKUP("England"&A190&E190,'England values'!$D$2:$H$61,5,FALSE))>='Raw data'!I190,(VLOOKUP("England"&A190&E190,'England values'!$D$2:$H$61,5,FALSE))<='Raw data'!J190),"not significantly different from",IF((VLOOKUP("England"&A190&E190,'England values'!$D$2:$H$61,5,FALSE))>'Raw data'!J190,"significantly lower than","Error")))) -> not significantly different from | N190: not significantly different
A191: Aesthetic surgery (breast) | B191: E38000194 | C191: NHS Warrington | D191: NHS WarringtonAesthetic surgery (breast)2014/15 | E191: 2014/15 | F191: 76 | G191: 212684 | H191: 35.04505021 | I191: 27.58768264 | J191: 43.89237894 | K191: 7.457367573 | L191: 8.847328727 | M191: =IF(H191="SUP","SUP",IF((VLOOKUP("England"&A191&E191,'England values'!$D$2:$H$61,5,FALSE))<'Raw data'!I191,"significantly higher than",IF(AND((VLOOKUP("England"&A191&E191,'England values'!$D$2:$H$61,5,FALSE))>='Raw data'!I191,(VLOOKUP("England"&A191&E191,'England values'!$D$2:$H$61,5,FALSE))<='Raw data'!J191),"not significantly different from",IF((VLOOKUP("England"&A191&E191,'England values'!$D$2:$H$61,5,FALSE))>'Raw data'!J191,"significantly lower than","Error")))) -> significantly higher than | N191: significantly higher
A192: Aesthetic surgery (breast) | B192: E38000195 | C192: NHS Warwickshire North | D192: NHS Warwickshire NorthAesthetic surgery (breast)2014/15 | E192: 2014/15 | F192: 24 | G192: 185336 | H192: 12.85071334 | I192: 8.217649225 | J192: 19.14263307 | K192: 4.633064111 | L192: 6.29191973 | M192: =IF(H192="SUP","SUP",IF((VLOOKUP("England"&A192&E192,'England values'!$D$2:$H$61,5,FALSE))<'Raw data'!I192,"significantly higher than",IF(AND((VLOOKUP("England"&A192&E192,'England values'!$D$2:$H$61,5,FALSE))>='Raw data'!I192,(VLOOKUP("England"&A192&E192,'England values'!$D$2:$H$61,5,FALSE))<='Raw data'!J192),"not significantly different from",IF((VLOOKUP("England"&A192&E192,'England values'!$D$2:$H$61,5,FALSE))>'Raw data'!J192,"significantly lower than","Error")))) -> significantly lower than | N192: significantly lower
A193: Aesthetic surgery (breast) | B193: E38000196 | C193: NHS West Cheshire | D193: NHS West CheshireAesthetic surgery (breast)2014/15 | E193: 2014/15 | F193: 69 | G193: 257967 | H193: 26.418772 | I193: 20.53687254 | J193: 33.45679384 | K193: 5.881899457 | L193: 7.038021845 | M193: =IF(H193="SUP","SUP",IF((VLOOKUP("England"&A193&E193,'England values'!$D$2:$H$61,5,FALSE))<'Raw data'!I193,"significantly higher than",IF(AND((VLOOKUP("England"&A193&E193,'England values'!$D$2:$H$61,5,FALSE))>='Raw data'!I193,(VLOOKUP("England"&A193&E193,'England values'!$D$2:$H$61,5,FALSE))<='Raw data'!J193),"not significantly different from",IF((VLOOKUP("England"&A193&E193,'England values'!$D$2:$H$61,5,FALSE))>'Raw data'!J193,"significantly lower than","Error")))) -> not significantly different from | N193: not significantly different
A194: Aesthetic surgery (breast) | B194: E38000197 | C194: NHS West Essex | D194: NHS West EssexAesthetic surgery (breast)2014/15 | E194: 2014/15 | F194: 30 | G194: 298298 | H194: 10.27673113 | I194: 6.916196055 | J194: 14.693636 | K194: 3.360535075 | L194: 4.41690487 | M194: =IF(H194="SUP","SUP",IF((VLOOKUP("England"&A194&E194,'England values'!$D$2:$H$61,5,FALSE))<'Raw data'!I194,"significantly higher than",IF(AND((VLOOKUP("England"&A194&E194,'England values'!$D$2:$H$61,5,FALSE))>='Raw data'!I194,(VLOOKUP("England"&A194&E194,'England values'!$D$2:$H$61,5,FALSE))<='Raw data'!J194),"not significantly different from",IF((VLOOKUP("England"&A194&E194,'England values'!$D$2:$H$61,5,FALSE))>'Raw data'!J194,"significantly lower than","Error")))) -> significantly lower than | N194: significantly lower
A195: Aesthetic surgery (breast) | B195: E38000198 | C195: NHS West Hampshire | D195: =C195&A195&E195 -> NHS West HampshireAesthetic surgery (breast)2014/15 | E195: 2014/15 | F195: 141 | G195: 547054 | H195: 25.87955155 | I195: 21.76263685 | J195: 30.54553981 | K195: 4.116914704 | L195: 4.66598826 | M195: =IF(H195="SUP","SUP",IF((VLOOKUP("England"&A195&E195,'England values'!$D$2:$H$61,5,FALSE))<'Raw data'!I195,"significantly higher than",IF(AND((VLOOKUP("England"&A195&E195,'England values'!$D$2:$H$61,5,FALSE))>='Raw data'!I195,(VLOOKUP("England"&A195&E195,'England values'!$D$2:$H$61,5,FALSE))<='Raw data'!J195),"not significantly different from",IF((VLOOKUP("England"&A195&E195,'England values'!$D$2:$H$61,5,FALSE))>'Raw data'!J195,"significantly lower than","Error")))) -> not significantly different from | N195: =IF(M195="not significantly different from","not significantly different",IF(M195="significantly higher than","significantly higher",IF(M195="significantly lower than","significantly lower",IF(M195="SUP","SUP",IF(M195="","N/A"))))) -> not significantly different
A196: Aesthetic surgery (breast) | B196: E38000199 | C196: NHS West Kent | D196: NHS West KentAesthetic surgery (breast)2014/15 | E196: 2014/15 | F196: 178 | G196: 475179 | H196: 37.38601516 | I196: 32.0749061 | J196: 43.32268846 | K196: 5.311109061 | L196: 5.936673304 | M196: =IF(H196="SUP","SUP",IF((VLOOKUP("England"&A196&E196,'England values'!$D$2:$H$61,5,FALSE))<'Raw data'!I196,"significantly higher than",IF(AND((VLOOKUP("England"&A196&E196,'England values'!$D$2:$H$61,5,FALSE))>='Raw data'!I196,(VLOOKUP("England"&A196&E196,'England values'!$D$2:$H$61,5,FALSE))<='Raw data'!J196),"not significantly different from",IF((VLOOKUP("England"&A196&E196,'England values'!$D$2:$H$61,5,FALSE))>'Raw data'!J196,"significantly lower than","Error")))) -> significantly higher than | N196: significantly higher
A197: Aesthetic surgery (breast) | B197: E38000200 | C197: NHS West Lancashire | D197: NHS West LancashireAesthetic surgery (breast)2014/15 | E197: 2014/15 | F197: 34 | G197: 111896 | H197: 28.9815027 | I197: 20.03045629 | J197: 40.55054361 | K197: 8.951046415 | L197: 11.5690409 | M197: =IF(H197="SUP","SUP",IF((VLOOKUP("England"&A197&E197,'England values'!$D$2:$H$61,5,FALSE))<'Raw data'!I197,"significantly higher than",IF(AND((VLOOKUP("England"&A197&E197,'England values'!$D$2:$H$61,5,FALSE))>='Raw data'!I197,(VLOOKUP("England"&A197&E197,'England values'!$D$2:$H$61,5,FALSE))<='Raw data'!J197),"not significantly different from",IF((VLOOKUP("England"&A197&E197,'England values'!$D$2:$H$61,5,FALSE))>'Raw data'!J197,"significantly lower than","Error")))) -> not significantly different from | N197: not significantly different
A198: Aesthetic surgery (breast) | B198: E38000201 | C198: NHS West Leicestershire | D198: NHS West LeicestershireAesthetic surgery (breast)2014/15 | E198: 2014/15 | F198: 133 | G198: 372740 | H198: 35.32652318 | I198: 29.56090244 | J198: 41.88555511 | K198: 5.765620741 | L198: 6.559031932 | M198: =IF(H198="SUP","SUP",IF((VLOOKUP("England"&A198&E198,'England values'!$D$2:$H$61,5,FALSE))<'Raw data'!I198,"significantly higher than",IF(AND((VLOOKUP("England"&A198&E198,'England values'!$D$2:$H$61,5,FALSE))>='Raw data'!I198,(VLOOKUP("England"&A198&E198,'England values'!$D$2:$H$61,5,FALSE))<='Raw data'!J198),"not significantly different from",IF((VLOOKUP("England"&A198&E198,'England values'!$D$2:$H$61,5,FALSE))>'Raw data'!J198,"significantly lower than","Error")))) -> significantly higher than | N198: significantly higher
A199: Aesthetic surgery (breast) | B199: E38000202 | C199: NHS West London | D199: NHS West LondonAesthetic surgery (breast)2014/15 | E199: 2014/15 | F199: 46 | G199: 239076 | H199: 20.28478492 | I199: 14.57189832 | J199: 27.40492828 | K199: 5.712886603 | L199: 7.120143357 | M199: =IF(H199="SUP","SUP",IF((VLOOKUP("England"&A199&E199,'England values'!$D$2:$H$61,5,FALSE))<'Raw data'!I199,"significantly higher than",IF(AND((VLOOKUP("England"&A199&E199,'England values'!$D$2:$H$61,5,FALSE))>='Raw data'!I199,(VLOOKUP("England"&A199&E199,'England values'!$D$2:$H$61,5,FALSE))<='Raw data'!J199),"not significantly different from",IF((VLOOKUP("England"&A199&E199,'England values'!$D$2:$H$61,5,FALSE))>'Raw data'!J199,"significantly lower than","Error")))) -> not significantly different from | N199: not significantly different
A200: Aesthetic surgery (breast) | B200: E38000203 | C200: NHS West Norfolk | D200: NHS West NorfolkAesthetic surgery (breast)2014/15 | E200: 2014/15 | F200: 41 | G200: 169815 | H200: 22.79569784 | I200: 16.25461918 | J200: 31.05623522 | K200: 6.541078662 | L200: 8.260537379 | M200: =IF(H200="SUP","SUP",IF((VLOOKUP("England"&A200&E200,'England values'!$D$2:$H$61,5,FALSE))<'Raw data'!I200,"significantly higher than",IF(AND((VLOOKUP("England"&A200&E200,'England values'!$D$2:$H$61,5,FALSE))>='Raw data'!I200,(VLOOKUP("England"&A200&E200,'England values'!$D$2:$H$61,5,FALSE))<='Raw data'!J200),"not significantly different from",IF((VLOOKUP("England"&A200&E200,'England values'!$D$2:$H$61,5,FALSE))>'Raw data'!J200,"significantly lower than","Error")))) -> not significantly different from | N200: not significantly different
... 4300 more rows

Sheet England values (hidden)
A1: Procedure Group | B1: CCG16CD | C1: CCG16NM | D1: CCG16NM&Procedure&Year | E1: Timeperiod | F1: Numerator | G1: Denominator | H1: DSR | I1: LCI | J1: UCI | K1: LEB | L1: UEB
A2: Aesthetic surgery (breast) | B2: E92000001 | C2: England | D2: EnglandAesthetic surgery (breast)2014/15 | E2: 2014/15 | F2: 14134 | G2: 56794232 | H2: 25.4944121 | I2: 25.07417095 | J2: 25.9199094 | K2: 0.420241155 | L2: 0.4254972913
A3: Aesthetic surgery (breast) | B3: E92000001 | C3: England | D3: EnglandAesthetic surgery (breast)2015/16 | E3: 2015/16 | F3: 13964 | G3: 57330205 | H3: 25.01842927 | I3: 24.60373538 | J3: 25.43834161 | K3: 0.4146938875 | L3: 0.4199123377
A4: Aesthetic surgery (ENT) | B4: E92000001 | C4: England | D4: EnglandAesthetic surgery (ENT)2014/15 | E4: 2014/15 | F4: 4234 | G4: 56794232 | H4: 7.587912241 | I4: 7.359673889 | J4: 7.821396271 | K4: 0.2282383521 | L4: 0.23348403
A5: Aesthetic surgery (ENT) | B5: E92000001 | C5: England | D5: EnglandAesthetic surgery (ENT)2015/16 | E5: 2015/16 | F5: 3826 | G5: 57330205 | H5: 6.802952795 | I5: 6.587848415 | J5: 7.023261339 | K5: 0.2151043799 | L5: 0.2203085441
A6: Aesthetic surgery (ophthalmology) | B6: E92000001 | C6: England | D6: EnglandAesthetic surgery (ophthalmology)2014/15 | E6: 2014/15 | F6: 11768 | G6: 56794232 | H6: 22.85750463 | I6: 22.44412445 | J6: 23.27655487 | K6: 0.4133801818 | L6: 0.4190502372
A7: Aesthetic surgery (ophthalmology) | B7: E92000001 | C7: England | D7: EnglandAesthetic surgery (ophthalmology)2015/16 | E7: 2015/16 | F7: 10894 | G7: 57330205 | H7: 20.9111468 | I7: 20.51837394 | J7: 21.30952067 | K7: 0.3927728616 | L7: 0.3983738723
A8: Aesthetic surgery (plastics) | B8: E92000001 | C8: England | D8: EnglandAesthetic surgery (plastics)2014/15 | E8: 2014/15 | F8: 2071 | G8: 56794232 | H8: 3.796086382 | I8: 3.633437928 | J8: 3.964109028 | K8: 0.162648454 | L8: 0.1680226463
A9: Aesthetic surgery (plastics) | B9: E92000001 | C9: England | D9: EnglandAesthetic surgery (plastics)2015/16 | E9: 2015/16 | F9: 1802 | G9: 57330205 | H9: 3.288179665 | I9: 3.137359134 | J9: 3.444349576 | K9: 0.1508205309 | L9: 0.1561699118
A10: Anal procedures | B10: E92000001 | C10: England | D10: EnglandAnal procedures2014/15 | E10: 2014/15 | F10: 56096 | G10: 56794232 | H10: 101.2717001 | I10: 100.4308851 | J10: 102.1177758 | K10: 0.8408150491 | L10: 0.8460756863
A11: Anal procedures | B11: E92000001 | C11: England | D11: EnglandAnal procedures2015/16 | E11: 2015/16 | F11: 56796 | G11: 57330205 | H11: 101.3729628 | I11: 100.5369744 | J11: 102.2141493 | K11: 0.8359884534 | L11: 0.841186449
A12: Back pain (injections & fusions) | B12: E92000001 | C12: England | D12: EnglandBack pain (injections & fusions)2014/15 | E12: 2014/15 | F12: 5180 | G12: 56794232 | H12: 9.649184382 | I12: 9.386904918 | J12: 9.916907122 | K12: 0.2622794633 | L12: 0.2677227409
A13: Back pain (injections & fusions) | B13: E92000001 | C13: England | D13: EnglandBack pain (injections & fusions)2015/16 | E13: 2015/16 | F13: 5294 | G13: 57330205 | H13: 9.739458946 | I13: 9.477726574 | J13: 10.00656377 | K13: 0.2617323718 | L13: 0.2671048262
A14: Carpal tunnel | B14: E92000001 | C14: England | D14: EnglandCarpal tunnel2014/15 | E14: 2014/15 | F14: 52045 | G14: 56794232 | H14: 98.6728277 | I14: 97.82286058 | J14: 99.52831653 | K14: 0.8499671199 | L14: 0.8554888355
A15: Carpal tunnel | B15: E92000001 | C15: England | D15: EnglandCarpal tunnel2015/16 | E15: 2015/16 | F15: 51465 | G15: 57330205 | H15: 96.19066676 | I15: 95.35770818 | J15: 97.02906707 | K15: 0.8329585712 | L15: 0.8384003092
A16: Cataract removal surgery | B16: E92000001 | C16: England | D16: EnglandCataract removal surgery2014/15 | E16: 2014/15 | F16: 772117 | G16: 56794232 | H16: 1549.372522 | I16: 1545.905051 | J16: 1552.845826 | K16: 3.467471117 | L16: 3.473303874
A17: Cataract removal surgery | B17: E92000001 | C17: England | D17: EnglandCataract removal surgery2015/16 | E17: 2015/16 | F17: 782107 | G17: 57330205 | H17: 1547.226469 | I17: 1543.786435 | J17: 1550.672252 | K17: 3.440033713 | L17: 3.445783206
A18: Dilation and curettage | B18: E92000001 | C18: England | D18: EnglandDilation and curettage2014/15 | E18: 2014/15 | F18: 3233 | G18: 56794232 | H18: 5.856396317 | I18: 5.655433419 | J18: 6.062654575 | K18: 0.2009628976 | L18: 0.2062582586
A19: Dilation and curettage | B19: E92000001 | C19: England | D19: EnglandDilation and curettage2015/16 | E19: 2015/16 | F19: 2888 | G19: 57330205 | H19: 5.194239675 | I19: 5.00582969 | J19: 5.387906846 | K19: 0.1884099852 | L19: 0.1936671706
A20: Dupuytren's contracture | B20: E92000001 | C20: England | D20: EnglandDupuytren's contracture2014/15 | E20: 2014/15 | F20: 10605 | G20: 56794232 | H20: 20.87755008 | I20: 20.48040805 | J20: 21.28043269 | K20: 0.3971420297 | L20: 0.4028826058
A21: Dupuytren's contracture | B21: E92000001 | C21: England | D21: EnglandDupuytren's contracture2015/16 | E21: 2015/16 | F21: 9810 | G21: 57330205 | H21: 19.03403902 | I21: 18.65775962 | J21: 19.41597533 | K21: 0.3762794024 | L21: 0.3819363068
